﻿Body Name,Service Area,Expenses type,Invoice Payment Date,Transaction Number,Net Amount,Supplier Name
Manchester City Council,Manchester Leisure,GRIR,08/06/2022,5105819680,-11470,Acorn Scaffolding & Event Struct
Manchester City Council,Manchester Leisure,GRIR,08/06/2022,5105819736,-550,Trinity Chambers
Manchester City Council,Manchester Leisure,GRIR,14/06/2022,5105820603,-1185,Bag It Don't Bin It Ltd
Manchester City Council,Childrens & Education Services,Transport Coach Hire,06/06/2022,5105819234,2014,Beresford Travel
Manchester City Council,Manchester Leisure,Agency staff provision,06/06/2022,5105819146,5250,Gatenby Sanderson
Manchester City Council,Manchester Leisure,Agency staff provision,27/06/2022,5105822278,15000,HOME
Manchester City Council,Manchester Leisure,Agency staff provision,29/06/2022,5105822737,4785,Michael Page International
Manchester City Council,Manchester Leisure,Other Allowances,06/06/2022,1907761538,9595.78,Tusker Direct
Manchester City Council,Manchester Leisure,Training and Development,09/06/2022,5105819703,2906.1,GMCA
Manchester City Council,Manchester Leisure,Training and Development,24/06/2022,5105822036,1331.2,Resolve Antisocial Behaviour
Manchester City Council,Manchester Leisure,Training and Development,28/06/2022,5105821428,1676.4,Break into Business Ltd
Manchester City Council,Environment and Operations,Construction Works,21/06/2022,5105821408,2470,GMCA
Manchester City Council,Environment and Operations,Construction Works,22/06/2022,5105821406,719.64,GMCA
Manchester City Council,Environment and Operations,Construction Works,22/06/2022,5105821407,4138.85,GMCA
Manchester City Council,Environment and Operations,Construction Works,22/06/2022,5105821750,5750,GMCA
Manchester City Council,Environment and Operations,Construction Works,22/06/2022,5105821781,4760,GMCA
Manchester City Council,Environment and Operations,Construction Works,23/06/2022,5105821782,1344.48,GMCA
Manchester City Council,Environment and Operations,Construction Works,30/06/2022,5105822529,1212.85,GMCA
Manchester City Council,Environment and Operations,Construction Works,30/06/2022,5105822654,46317.4,GMCA
Manchester City Council,Environment and Operations,Construction Works,30/06/2022,5105822655,35898.44,GMCA
Manchester City Council,Environment and Operations,Construction Works,30/06/2022,5105822733,2329.6,GMCA
Manchester City Council,Manchester Leisure,External repairs and maintenance for buildings,28/06/2022,5105822303,1400,Keebuilders Uk Ltd
Manchester City Council,Manchester Leisure,External repairs and maintenance for buildings,28/06/2022,5105822434,52284.22,J Greenwood (Builders) Limited
Manchester City Council,Manchester Leisure,External repairs and maintenance for buildings,29/06/2022,5105822670,625,Fencelines Ltd
Manchester City Council,Manchester Leisure,External repairs and maintenance for buildings,29/06/2022,5105822671,1444,Fencelines Ltd
Manchester City Council,Manchester Leisure,External repairs and maintenance for buildings,30/06/2022,5105822921,41366.72,Scrutiny Cleaning Services
Manchester City Council,Manchester Leisure,Responsive Repairs Work,17/06/2022,5105821013,778,Cadent Gas Ltd.
Manchester City Council,Manchester Leisure,Responsive Repairs Work,17/06/2022,5105821014,740,Cadent Gas Ltd.
Manchester City Council,Manchester Leisure,Responsive Repairs Work,20/06/2022,5105821136,13554.34,EQUANS Regeneration Limited
Manchester City Council,Manchester Leisure,Responsive Repairs Work,20/06/2022,5105821137,13335.23,EQUANS Regeneration Limited
Manchester City Council,Manchester Leisure,Responsive Repairs Work,20/06/2022,5105821138,87274.95,EQUANS Regeneration Limited
Manchester City Council,Manchester Leisure,Responsive Repairs Work,20/06/2022,5105821139,4503.76,EQUANS Regeneration Limited
Manchester City Council,Manchester Leisure,Responsive Repairs Work,20/06/2022,5105821161,90004.33,EQUANS Regeneration Limited
Manchester City Council,Manchester Leisure,Responsive Repairs Work,20/06/2022,5105821163,63453.89,EQUANS Regeneration Limited
Manchester City Council,Manchester Leisure,Responsive Repairs Work,20/06/2022,5105821164,1399.56,EQUANS Regeneration Limited
Manchester City Council,Manchester Leisure,Responsive Repairs Work,27/06/2022,5105822263,443608.58,EQUANS Regeneration Limited
Manchester City Council,Manchester Leisure,Responsive Repairs Work,30/06/2022,5105821972,13554.34,EQUANS Regeneration Limited
Manchester City Council,Manchester Leisure,Responsive Repairs Work,30/06/2022,5105821974,13335.23,EQUANS Regeneration Limited
Manchester City Council,Manchester Leisure,Responsive Repairs Work,30/06/2022,5105821975,87274.95,EQUANS Regeneration Limited
Manchester City Council,Manchester Leisure,Responsive Repairs Work,30/06/2022,5105821976,4503.76,EQUANS Regeneration Limited
Manchester City Council,Manchester Leisure,Responsive Repairs Work,30/06/2022,5105821978,90004.33,EQUANS Regeneration Limited
Manchester City Council,Manchester Leisure,Responsive Repairs Work,30/06/2022,5105821979,1399.56,EQUANS Regeneration Limited
Manchester City Council,Manchester Leisure,Responsive Repairs Work,30/06/2022,5105822706,4769.44,EQUANS Regeneration Limited
Manchester City Council,Manchester Leisure,Responsive Repairs Work,30/06/2022,5105822710,24292.56,EQUANS Regeneration Limited
Manchester City Council,Manchester Leisure,Environmental Services,29/06/2022,5105822585,-618.26,Master Moves Ltd
Manchester City Council,Manchester Leisure,Environmental Services,29/06/2022,5105822586,618.26,Master Moves Ltd
Manchester City Council,Manchester Leisure,Environmental Services,30/06/2022,5105821866,1395,CPD Property Services
Manchester City Council,Manchester Leisure,Contract Cleaning External,15/06/2022,5105820674,5275.78,Scrutiny Cleaning Services
Manchester City Council,Manchester Leisure,Contract Cleaning External,15/06/2022,5105820675,1987.6,Scrutiny Cleaning Services
Manchester City Council,Manchester Leisure,Contract Cleaning External,24/06/2022,5105822196,805,CPD Property Services
Manchester City Council,Manchester Leisure,Refuse Collection,16/06/2022,5105820673,538,Scrutiny Cleaning Services
Manchester City Council,Manchester Leisure,Payments to Sub-Contractors,30/06/2022,5105822888,1913.52,Redacted Personal Information
Manchester City Council,Manchester Leisure,Payments to Sub-Contractors,30/06/2022,5105822889,3415.66,Redacted Personal Information
Manchester City Council,Manchester Leisure,Payments to Sub-Contractors,15/06/2022,5105820678,8652.41,Scrutiny Cleaning Services
Manchester City Council,Manchester Leisure,Payments to Sub-Contractors,15/06/2022,5105820679,4808.72,Scrutiny Cleaning Services
Manchester City Council,Manchester Leisure,Payments to Sub-Contractors,23/06/2022,5105820676,8652.41,Scrutiny Cleaning Services
Manchester City Council,Manchester Leisure,Building Materials for direct delivery,30/06/2022,5105822471,650,CPD Property Services
Manchester City Council,Manchester Leisure,Works and associated costs for Land and Buildings,30/06/2022,5105822355,223650.49,EQUANS Regeneration Limited
Manchester City Council,Childrens & Education Services,Professional fees,23/06/2022,1907603964,750,Redacted Personal Information
Manchester City Council,Childrens & Education Services,Professional fees,20/06/2022,1907767002,625,Redacted Personal Information
Manchester City Council,Manchester Leisure,Gas,07/06/2022,5105819400,6076.44,Wythenshawe Forum Trust Ltd
Manchester City Council,Manchester Leisure,Gas,23/06/2022,1700135365,-752.82,Scottish & Southern Energy Plc
Manchester City Council,Manchester Leisure,Gas,23/06/2022,1700135367,-558.9,Scottish & Southern Energy Plc
Manchester City Council,Manchester Leisure,Gas,23/06/2022,1700135369,-536.6,Scottish & Southern Energy Plc
Manchester City Council,Manchester Leisure,Gas,23/06/2022,1907780972,688.66,Scottish & Southern Energy Plc
Manchester City Council,Manchester Leisure,Gas,23/06/2022,1907780973,946.39,Scottish & Southern Energy Plc
Manchester City Council,Manchester Leisure,Gas,23/06/2022,1907780974,2644.95,Scottish & Southern Energy Plc
Manchester City Council,Manchester Leisure,Gas,23/06/2022,1907780977,946.14,Scottish & Southern Energy Plc
Manchester City Council,Manchester Leisure,Gas,23/06/2022,1907780978,1103.06,Scottish & Southern Energy Plc
Manchester City Council,Manchester Leisure,Gas,23/06/2022,1907780981,921.24,Scottish & Southern Energy Plc
Manchester City Council,Manchester Leisure,Gas,23/06/2022,1907780982,766.28,Scottish & Southern Energy Plc
Manchester City Council,Manchester Leisure,Gas,23/06/2022,1907780983,725.11,Scottish & Southern Energy Plc
Manchester City Council,Manchester Leisure,Gas,23/06/2022,1907780985,697.48,Scottish & Southern Energy Plc
Manchester City Council,Manchester Leisure,Gas,23/06/2022,1907780986,536.02,Scottish & Southern Energy Plc
Manchester City Council,Manchester Leisure,Gas,23/06/2022,1907780988,800.89,Scottish & Southern Energy Plc
Manchester City Council,Manchester Leisure,Gas,23/06/2022,1907780991,834.48,Scottish & Southern Energy Plc
Manchester City Council,Manchester Leisure,Gas,23/06/2022,1907780999,662.82,Scottish & Southern Energy Plc
Manchester City Council,Manchester Leisure,Gas,23/06/2022,1907781000,1417.3,Scottish & Southern Energy Plc
Manchester City Council,Manchester Leisure,Gas,23/06/2022,1907781002,553.32,Scottish & Southern Energy Plc
Manchester City Council,Manchester Leisure,Gas,23/06/2022,1907781004,731.42,Scottish & Southern Energy Plc
Manchester City Council,Manchester Leisure,Gas,23/06/2022,1907781005,599.75,Scottish & Southern Energy Plc
Manchester City Council,Manchester Leisure,Gas,23/06/2022,1907781009,861.13,Scottish & Southern Energy Plc
Manchester City Council,Manchester Leisure,Gas,23/06/2022,1907781013,1122.99,Scottish & Southern Energy Plc
Manchester City Council,Manchester Leisure,Gas,23/06/2022,1907781014,516.53,Scottish & Southern Energy Plc
Manchester City Council,Manchester Leisure,Gas,23/06/2022,1907781016,710.01,Scottish & Southern Energy Plc
Manchester City Council,Manchester Leisure,Gas,23/06/2022,1907781021,1790.42,Scottish & Southern Energy Plc
Manchester City Council,Manchester Leisure,Gas,23/06/2022,1907781022,1417.18,Scottish & Southern Energy Plc
Manchester City Council,Manchester Leisure,Gas,23/06/2022,1907781023,1150.43,Scottish & Southern Energy Plc
Manchester City Council,Manchester Leisure,Gas,23/06/2022,1907781024,1057.32,Scottish & Southern Energy Plc
Manchester City Council,Manchester Leisure,Electricity,07/06/2022,5105819400,6563.42,Wythenshawe Forum Trust Ltd
Manchester City Council,Manchester Leisure,Electricity,23/06/2022,1907780653,598.01,Scottish & Southern Energy Plc
Manchester City Council,Manchester Leisure,Electricity,23/06/2022,1907780665,570.82,Scottish & Southern Energy Plc
Manchester City Council,Manchester Leisure,Electricity,23/06/2022,1907780673,1231.42,Scottish & Southern Energy Plc
Manchester City Council,Manchester Leisure,Electricity,23/06/2022,1907780674,2257.61,Scottish & Southern Energy Plc
Manchester City Council,Manchester Leisure,Electricity,23/06/2022,1907780681,725.59,Scottish & Southern Energy Plc
Manchester City Council,Manchester Leisure,Electricity,23/06/2022,1907780694,682.95,Scottish & Southern Energy Plc
Manchester City Council,Manchester Leisure,Electricity,23/06/2022,1907780701,598.01,Scottish & Southern Energy Plc
Manchester City Council,Manchester Leisure,Electricity,23/06/2022,1907780711,598.01,Scottish & Southern Energy Plc
Manchester City Council,Manchester Leisure,Electricity,23/06/2022,1907780714,598.01,Scottish & Southern Energy Plc
Manchester City Council,Manchester Leisure,Electricity,23/06/2022,1907780719,1953.56,Scottish & Southern Energy Plc
Manchester City Council,Manchester Leisure,Electricity,23/06/2022,1907780730,679.55,Scottish & Southern Energy Plc
Manchester City Council,Manchester Leisure,Electricity,23/06/2022,1907780731,590.62,Scottish & Southern Energy Plc
Manchester City Council,Manchester Leisure,Electricity,23/06/2022,1907780735,719.41,Scottish & Southern Energy Plc
Manchester City Council,Manchester Leisure,Electricity,23/06/2022,1907780738,724.08,Scottish & Southern Energy Plc
Manchester City Council,Manchester Leisure,Electricity,23/06/2022,1907780740,621.15,Scottish & Southern Energy Plc
Manchester City Council,Manchester Leisure,Electricity,23/06/2022,1907780742,598.01,Scottish & Southern Energy Plc
Manchester City Council,Manchester Leisure,Electricity,23/06/2022,1907780788,679.55,Scottish & Southern Energy Plc
Manchester City Council,Manchester Leisure,Electricity,23/06/2022,1907780808,598.01,Scottish & Southern Energy Plc
Manchester City Council,Manchester Leisure,Electricity,23/06/2022,1907780814,542.02,Scottish & Southern Energy Plc
Manchester City Council,Manchester Leisure,Electricity,23/06/2022,1907780816,654.67,Scottish & Southern Energy Plc
Manchester City Council,Manchester Leisure,Electricity,23/06/2022,1907780836,621.77,Scottish & Southern Energy Plc
Manchester City Council,Manchester Leisure,Electricity,23/06/2022,1907780901,828.86,Scottish & Southern Energy Plc
Manchester City Council,Manchester Leisure,Electricity,30/06/2022,1907793616,6432.23,Scottish & Southern Energy Plc
Manchester City Council,Manchester Leisure,Electricity,30/06/2022,1907793617,5677.46,Scottish & Southern Energy Plc
Manchester City Council,Manchester Leisure,Electricity,30/06/2022,1907793618,6243.46,Scottish & Southern Energy Plc
Manchester City Council,Manchester Leisure,Electricity,30/06/2022,1907793619,5300.23,Scottish & Southern Energy Plc
Manchester City Council,Manchester Leisure,Electricity,01/06/2022,1907761005,7315.94,Npower
Manchester City Council,Manchester Leisure,Electricity,01/06/2022,1907761006,760.41,Npower
Manchester City Council,Manchester Leisure,Electricity,01/06/2022,1907761009,6007.55,Npower
Manchester City Council,Manchester Leisure,Electricity,01/06/2022,1907761010,1068.13,Npower
Manchester City Council,Manchester Leisure,Electricity,01/06/2022,1907761011,6645.22,Npower
Manchester City Council,Manchester Leisure,Electricity,01/06/2022,1907761014,1045.2,Npower
Manchester City Council,Manchester Leisure,Electricity,01/06/2022,1907761016,2417.48,Npower
Manchester City Council,Manchester Leisure,Electricity,01/06/2022,1907761017,1164.51,Npower
Manchester City Council,Manchester Leisure,Electricity,23/06/2022,1700135288,-2546.34,Npower
Manchester City Council,Manchester Leisure,Electricity,23/06/2022,1700135289,-2647.27,Npower
Manchester City Council,Manchester Leisure,Electricity,23/06/2022,1700135290,-2849.13,Npower
Manchester City Council,Manchester Leisure,Electricity,23/06/2022,1700135291,-1243.58,Npower
Manchester City Council,Manchester Leisure,Electricity,23/06/2022,1700135292,-1356.41,Npower
Manchester City Council,Manchester Leisure,Electricity,23/06/2022,1700135293,-2268.53,Npower
Manchester City Council,Manchester Leisure,Electricity,23/06/2022,1700135294,-1212.85,Npower
Manchester City Council,Manchester Leisure,Electricity,23/06/2022,1700135295,-1251.11,Npower
Manchester City Council,Manchester Leisure,Electricity,23/06/2022,1700135296,-2121.66,Npower
Manchester City Council,Manchester Leisure,Electricity,23/06/2022,1700135301,-21744.77,Npower
Manchester City Council,Manchester Leisure,Electricity,23/06/2022,1700135302,-11436.69,Npower
Manchester City Council,Manchester Leisure,Electricity,23/06/2022,1700135303,-11305.37,Npower
Manchester City Council,Manchester Leisure,Electricity,23/06/2022,1700135304,-10491.03,Npower
Manchester City Council,Manchester Leisure,Electricity,23/06/2022,1700135305,-10862.79,Npower
Manchester City Council,Manchester Leisure,Electricity,23/06/2022,1700135306,-21453.6,Npower
Manchester City Council,Manchester Leisure,Electricity,23/06/2022,1700135307,-21199.62,Npower
Manchester City Council,Manchester Leisure,Electricity,23/06/2022,1907780486,1858.8,Npower
Manchester City Council,Manchester Leisure,Electricity,23/06/2022,1907780487,653.4,Npower
Manchester City Council,Manchester Leisure,Electricity,23/06/2022,1907780488,811.13,Npower
Manchester City Council,Manchester Leisure,Electricity,23/06/2022,1907780489,2826.87,Npower
Manchester City Council,Manchester Leisure,Electricity,23/06/2022,1907780490,2768.46,Npower
Manchester City Council,Manchester Leisure,Electricity,23/06/2022,1907780491,774.5,Npower
Manchester City Council,Manchester Leisure,Electricity,23/06/2022,1907780492,2556.27,Npower
Manchester City Council,Manchester Leisure,Electricity,23/06/2022,1907780493,1911.98,Npower
Manchester City Council,Manchester Leisure,Electricity,23/06/2022,1907780494,2759.71,Npower
Manchester City Council,Manchester Leisure,Electricity,23/06/2022,1907780495,580.46,Npower
Manchester City Council,Manchester Leisure,Electricity,23/06/2022,1907780498,8792.97,Npower
Manchester City Council,Manchester Leisure,Electricity,23/06/2022,1907780502,10080.83,Npower
Manchester City Council,Manchester Leisure,Electricity,23/06/2022,1907780505,1434.64,Npower
Manchester City Council,Manchester Leisure,Electricity,23/06/2022,1907780512,4504.3,Npower
Manchester City Council,Manchester Leisure,Electricity,23/06/2022,1907780514,1329.97,Npower
Manchester City Council,Manchester Leisure,Electricity,23/06/2022,1907780515,1413.63,Npower
Manchester City Council,Manchester Leisure,Electricity,23/06/2022,1907780516,11164.28,Npower
Manchester City Council,Manchester Leisure,Electricity,23/06/2022,1907780534,5782.91,Npower
Manchester City Council,Manchester Leisure,Electricity,23/06/2022,1907780535,5597.7,Npower
Manchester City Council,Manchester Leisure,Electricity,23/06/2022,1907780536,5663.95,Npower
Manchester City Council,Manchester Leisure,Electricity,23/06/2022,1907780537,5732.3,Npower
Manchester City Council,Manchester Leisure,Electricity,23/06/2022,1907780539,4677.67,Npower
Manchester City Council,Manchester Leisure,Electricity,23/06/2022,1907780540,3495.49,Npower
Manchester City Council,Manchester Leisure,Electricity,23/06/2022,1907780541,5480.85,Npower
Manchester City Council,Manchester Leisure,Electricity,23/06/2022,1907780542,4272.44,Npower
Manchester City Council,Manchester Leisure,Electricity,23/06/2022,1907780545,5501.92,Npower
Manchester City Council,Manchester Leisure,Electricity,23/06/2022,1907780546,6131.77,Npower
Manchester City Council,Manchester Leisure,Electricity,23/06/2022,1907780549,8159.76,Npower
Manchester City Council,Manchester Leisure,Electricity,23/06/2022,1907780552,1316.44,Npower
Manchester City Council,Manchester Leisure,Electricity,23/06/2022,1907780553,600.79,Npower
Manchester City Council,Manchester Leisure,Electricity,23/06/2022,1907780555,1399.37,Npower
Manchester City Council,Manchester Leisure,Electricity,23/06/2022,1907780556,1528.72,Npower
Manchester City Council,Manchester Leisure,Electricity,23/06/2022,1907780557,1678.02,Npower
Manchester City Council,Manchester Leisure,Electricity,23/06/2022,1907780563,20390.35,Npower
Manchester City Council,Manchester Leisure,Electricity,23/06/2022,1907780565,2683.05,Npower
Manchester City Council,Manchester Leisure,Electricity,23/06/2022,1907780566,5167.41,Npower
Manchester City Council,Manchester Leisure,Electricity,23/06/2022,1907780567,833.02,Npower
Manchester City Council,Manchester Leisure,Electricity,23/06/2022,1907780568,10563.98,Npower
Manchester City Council,Manchester Leisure,Electricity,23/06/2022,1907780569,20110.1,Npower
Manchester City Council,Manchester Leisure,Electricity,23/06/2022,1907780570,13536.39,Npower
Manchester City Council,Manchester Leisure,Electricity,23/06/2022,1907780572,7906.6,Npower
Manchester City Council,Manchester Leisure,Electricity,23/06/2022,1907780574,2947.88,Npower
Manchester City Council,Manchester Leisure,Electricity,23/06/2022,1907780587,1100.42,Npower
Manchester City Council,Manchester Leisure,Electricity,23/06/2022,1907780588,1259.5,Npower
Manchester City Council,Manchester Leisure,Electricity,23/06/2022,1907780591,4331.66,Npower
Manchester City Council,Manchester Leisure,Electricity,23/06/2022,1907780593,1026.9,Npower
Manchester City Council,Manchester Leisure,Electricity,23/06/2022,1907780594,5780.07,Npower
Manchester City Council,Manchester Leisure,Electricity,23/06/2022,1907780608,1071.4,Npower
Manchester City Council,Manchester Leisure,Electricity,23/06/2022,1907780609,988.01,Npower
Manchester City Council,Manchester Leisure,Electricity,23/06/2022,1907780611,2988.78,Npower
Manchester City Council,Manchester Leisure,Electricity,23/06/2022,1907780614,1314.21,Npower
Manchester City Council,Manchester Leisure,Electricity,23/06/2022,1907780615,807.84,Npower
Manchester City Council,Manchester Leisure,Electricity,23/06/2022,1907780616,1393.49,Npower
Manchester City Council,Manchester Leisure,Electricity,23/06/2022,1907780617,1142.56,Npower
Manchester City Council,Manchester Leisure,Electricity,23/06/2022,1907780618,1368.35,Npower
Manchester City Council,Manchester Leisure,Electricity,23/06/2022,1907780620,1771.34,Npower
Manchester City Council,Hospitality + Trading Services,Electricity,23/06/2022,1700135297,-21244.06,Npower
Manchester City Council,Hospitality + Trading Services,Electricity,23/06/2022,1907780499,21964.38,Npower
Manchester City Council,Hospitality + Trading Services,Electricity,23/06/2022,1907780500,20841.93,Npower
Manchester City Council,Hospitality + Trading Services,Electricity,23/06/2022,1907780503,2789.53,Npower
Manchester City Council,Hospitality + Trading Services,Electricity,23/06/2022,1907780517,642.78,Npower
Manchester City Council,Hospitality + Trading Services,Electricity,23/06/2022,1907780521,9952.09,Npower
Manchester City Council,Hospitality + Trading Services,Electricity,23/06/2022,1907780524,13034.83,Npower
Manchester City Council,Hospitality + Trading Services,Electricity,23/06/2022,1907780561,2714.64,Npower
Manchester City Council,Hospitality + Trading Services,Electricity,23/06/2022,1907780562,2927.82,Npower
Manchester City Council,Hospitality + Trading Services,Electricity,23/06/2022,1907780571,54931.92,Npower
Manchester City Council,Hospitality + Trading Services,Electricity,23/06/2022,1907780597,2119.88,Npower
Manchester City Council,Childrens & Education Services,Electricity,01/06/2022,1907761012,1355.3,Npower
Manchester City Council,Childrens & Education Services,Electricity,23/06/2022,1907780508,1083.57,Npower
Manchester City Council,Childrens & Education Services,Electricity,23/06/2022,1907780582,1602.69,Npower
Manchester City Council,Childrens & Education Services,Electricity,23/06/2022,1907780583,3263.63,Npower
Manchester City Council,Childrens & Education Services,Electricity,23/06/2022,1907780596,908.32,Npower
Manchester City Council,Manchester Leisure,Electricity,09/06/2022,1907765119,3940.64,Haven Power Ltd
Manchester City Council,Manchester Leisure,Electricity,16/06/2022,5105820362,1048.36,Switch2 Energey Limited
Manchester City Council,Manchester Leisure,Electricity,16/06/2022,5105820363,729.08,Switch2 Energey Limited
Manchester City Council,Manchester Leisure,Electricity,24/06/2022,5105822078,1093.37,Switch2 Energey Limited
Manchester City Council,Manchester Leisure,Electricity,30/06/2022,5105822370,729.08,Switch2 Energey Limited
Manchester City Council,Manchester Leisure,Electricity,30/06/2022,5105822373,7361.36,Switch2 Energey Limited
Manchester City Council,Manchester Leisure,Electricity,30/06/2022,5105822564,7355.74,Switch2 Energey Limited
Manchester City Council,Childrens & Education Services,Professional fees,14/06/2022,1907766988,700,Redacted Personal Information
Manchester City Council,Childrens & Education Services,Transport Coach Hire,10/06/2022,5105819546,2280,Redacted Personal Information
Manchester City Council,Childrens & Education Services,Transport Coach Hire,10/06/2022,5105819547,2090,Redacted Personal Information
Manchester City Council,Manchester Leisure,Rents,07/06/2022,1907760347,321954.53,Colliers International (Client A/C)
Manchester City Council,Manchester Leisure,Rents,23/06/2022,1907772700,8250,Mason Owen Property
Manchester City Council,Manchester Leisure,Water - Metered,23/06/2022,1907780461,1923.14,Anglian Water Business (National)
Manchester City Council,Hospitality + Trading Services,Water - Metered,23/06/2022,1907780299,1831.67,Anglian Water Business (National)
Manchester City Council,Hospitality + Trading Services,Water - Metered,23/06/2022,1907780393,6287.79,Anglian Water Business (National)
Manchester City Council,Hospitality + Trading Services,Water - Metered,23/06/2022,1907780405,12037.81,Anglian Water Business (National)
Manchester City Council,Hospitality + Trading Services,Water - Metered,23/06/2022,1907780438,681.13,Anglian Water Business (National)
Manchester City Council,Childrens & Education Services,Water - Metered,23/06/2022,1907780467,1411.09,Anglian Water Business (National)
Manchester City Council,Manchester Leisure,Contract Cleaning External,06/06/2022,5105819017,-2424.85,Biffa Municipal Limited
Manchester City Council,Manchester Leisure,Refuse Collection,17/06/2022,5105819783,1110323.54,Biffa Municipal Limited
Manchester City Council,Manchester Leisure,Refuse Collection,17/06/2022,5105819784,87994.52,Biffa Municipal Limited
Manchester City Council,Manchester Leisure,Refuse Collection,24/06/2022,5105820305,93182.54,Biffa Municipal Limited
Manchester City Council,Manchester Leisure,Special Event,20/06/2022,5105821122,3009.23,Biffa Municipal Limited
Manchester City Council,Hospitality + Trading Services,Contract Cleaning External,20/06/2022,5105821127,1900,Biffa Municipal Limited
Manchester City Council,Hospitality + Trading Services,Contract Cleaning External,20/06/2022,5105821128,2000,Biffa Municipal Limited
Manchester City Council,Environment and Operations,Vehicle Plant Furniture and Equipment,30/06/2022,5105822343,265000,Biffa Municipal Limited
Manchester City Council,Environment and Operations,Vehicle Plant Furniture and Equipment,30/06/2022,5105822343,50000,Biffa Municipal Limited
Manchester City Council,Childrens & Education Services,Grounds Maintenance,20/06/2022,5105820727,1045.35,Biffa Municipal Limited
Manchester City Council,Manchester Leisure,Contract Cleaning External,06/06/2022,5105819124,10704.5,Clearview Event Services Limited
Manchester City Council,Manchester Leisure,Professional fees,30/06/2022,5105822825,994,Clearview Event Services Limited
Manchester City Council,Manchester Leisure,Contract Cleaning External,13/06/2022,5105820205,2135.05,Initial Medical Services
Manchester City Council,Manchester Leisure,Contract Cleaning External,20/06/2022,1907777140,522.99,Business Stream
Manchester City Council,Manchester Leisure,Contract Cleaning External,30/06/2022,5105821425,1790.9,Ramora Ltd
Manchester City Council,Manchester Leisure,Contract Cleaning External,30/06/2022,5105821426,15000,Ramora Ltd
Manchester City Council,Manchester Leisure,Refuse Collection,10/06/2022,5105820028,3600,Ramora Ltd
Manchester City Council,Manchester Leisure,Refuse Collection,07/06/2022,5105818993,1082.8,GTS Steam Cleaners
Manchester City Council,Manchester Leisure,Refuse Collection,10/06/2022,5105819746,547.25,GTS Steam Cleaners
Manchester City Council,Manchester Leisure,Refuse Collection,17/06/2022,5105820845,784,GTS Steam Cleaners
Manchester City Council,Manchester Leisure,Refuse Collection,10/06/2022,5105819221,1267.43,Egbert Taylor Group
Manchester City Council,Environment and Operations,Works and associated costs for Land and Buildings,30/06/2022,5105819224,5584,Egbert Taylor Group
Manchester City Council,Environment and Operations,Works and associated costs for Land and Buildings,30/06/2022,5105821805,8136,Egbert Taylor Group
Manchester City Council,Manchester Leisure,Refuse Collection,29/06/2022,5105822538,1244.89,Community Security (North West)
Manchester City Council,Manchester Leisure,Security,17/06/2022,5105821143,4044.71,Community Security (North West)
Manchester City Council,Manchester Leisure,Security,17/06/2022,5105821144,4044.71,Community Security (North West)
Manchester City Council,Manchester Leisure,Payments to Sub-Contractors,17/06/2022,5105821236,3968.12,Community Security (North West)
Manchester City Council,Manchester Leisure,Refuse Collection,29/06/2022,5105822791,1744,Dickinson Environmental
Manchester City Council,Manchester Leisure,Refuse Collection,30/06/2022,5105821680,81182.3,Redgate Holdings Ltd
Manchester City Council,Manchester Leisure,Cleaning Equipment and Materials,30/06/2022,5105821678,17887.1,Redgate Holdings Ltd
Manchester City Council,Manchester Leisure,Grounds Maintenance,30/06/2022,5105821677,9429.7,Redgate Holdings Ltd
Manchester City Council,Manchester Leisure,Disposables,30/06/2022,5105821679,78988.9,Redgate Holdings Ltd
Manchester City Council,Manchester Leisure,Liquid Contnr Recycl,30/06/2022,5105821675,1402.9,Redgate Holdings Ltd
Manchester City Council,Manchester Leisure,Recycling Facilities,30/06/2022,5105821691,17641.14,Redgate Holdings Ltd
Manchester City Council,Manchester Leisure,Tipping - Tonnage,29/06/2022,5105821674,91486.5,Redgate Holdings Ltd
Manchester City Council,Manchester Leisure,Tipping - Skips,30/06/2022,5105821676,36890.72,Redgate Holdings Ltd
Manchester City Council,Manchester Leisure,Security,10/06/2022,5105819888,1348.27,Showsec International Ltd
Manchester City Council,Manchester Leisure,Security,30/06/2022,5105821834,15836.8,Showsec International Ltd
Manchester City Council,Manchester Leisure,Security,30/06/2022,5105819315,3764.94,Showsec International Ltd
Manchester City Council,Manchester Leisure,Security,30/06/2022,5105822497,12613.38,Showsec International Ltd
Manchester City Council,Manchester Leisure,Security,30/06/2022,5105819094,45529.15,Showsec International Ltd
Manchester City Council,Manchester Leisure,Security,30/06/2022,5105819627,4486.15,Showsec International Ltd
Manchester City Council,Manchester Leisure,Security,30/06/2022,5105821768,3944.51,Showsec International Ltd
Manchester City Council,Manchester Leisure,Hire of Premises,21/06/2022,5105821098,1000,Moss Side Millennium Powerhouse Ltd
Manchester City Council,Manchester Leisure,Grant and subscriptions awarded,27/06/2022,5105821741,17637.5,Moss Side Millennium Powerhouse Ltd
Manchester City Council,Manchester Leisure,Grounds Maintenance,08/06/2022,5105819354,5429.64,Tivoli Group Ltd
Manchester City Council,Manchester Leisure,Grounds Maintenance,20/06/2022,5105821287,2338.88,Woodhouse Park Allotments Society
Manchester City Council,Manchester Leisure,Grounds Maintenance,29/06/2022,5105822594,3333.29,Gorton Horticultural Society
Manchester City Council,Manchester Leisure,Grounds Maintenance,29/06/2022,5105822661,732.78,Northern Moor Gardening Society
Manchester City Council,Manchester Leisure,Grounds Maintenance,30/06/2022,5105822404,560,Arboricultural Services Treework
Manchester City Council,Manchester Leisure,Payments to Sub-Contractors,09/06/2022,5105819667,5000,Arboricultural Services Treework
Manchester City Council,Manchester Leisure,Payments to Sub-Contractors,09/06/2022,5105819668,5000,Arboricultural Services Treework
Manchester City Council,Manchester Leisure,Payments to Sub-Contractors,30/06/2022,5105819664,5000,Arboricultural Services Treework
Manchester City Council,Childrens & Education Services,Grounds Maintenance,24/06/2022,5105822224,-500,Arboricultural Services Treework
Manchester City Council,Childrens & Education Services,Grounds Maintenance,24/06/2022,5105822225,500,Arboricultural Services Treework
Manchester City Council,Manchester Leisure,Vehicle contract hire and leases,13/06/2022,5105820431,625,T.H. Horn Ltd
Manchester City Council,Manchester Leisure,Vehicle contract hire and leases,13/06/2022,5105820434,625,T.H. Horn Ltd
Manchester City Council,Manchester Leisure,Vehicle contract hire and leases,14/06/2022,5105820078,625,T.H. Horn Ltd
Manchester City Council,Manchester Leisure,Vehicle contract hire and leases,14/06/2022,5105820420,-625,T.H. Horn Ltd
Manchester City Council,Manchester Leisure,Vehicle contract hire and leases,14/06/2022,5105820432,625,T.H. Horn Ltd
Manchester City Council,Manchester Leisure,Vehicle contract hire and leases,14/06/2022,5105820433,-625,T.H. Horn Ltd
Manchester City Council,Manchester Leisure,Transport and Driver Hire,07/06/2022,5105819331,10519,M&G Transport & Technical Services
Manchester City Council,Manchester Leisure,Travel,30/06/2022,5105822896,980.47,Corporate & Sporting Events
Manchester City Council,Manchester Leisure,Travel,30/06/2022,5105822898,1536.67,Corporate & Sporting Events
Manchester City Council,Manchester Leisure,Transport Coach Hire,30/06/2022,5105822913,990,Corporate & Sporting Events
Manchester City Council,Manchester Leisure,Transport Coach Hire,30/06/2022,5105822914,8019,Corporate & Sporting Events
Manchester City Council,Manchester Leisure,Catering,30/06/2022,5105822900,583.33,Corporate & Sporting Events
Manchester City Council,Manchester Leisure,Subsistence and Conference Expenses,30/06/2022,5105822897,898.82,Corporate & Sporting Events
Manchester City Council,Manchester Leisure,Subsistence and Conference Expenses,30/06/2022,5105822911,5850,Corporate & Sporting Events
Manchester City Council,Manchester Leisure,Subsistence and Conference Expenses,30/06/2022,5105822912,850,Corporate & Sporting Events
Manchester City Council,Manchester Leisure,Subsistence and Conference Expenses,30/06/2022,5105822917,1625,Corporate & Sporting Events
Manchester City Council,Manchester Leisure,Subsistence and Conference Expenses,30/06/2022,5105822920,1425,Corporate & Sporting Events
Manchester City Council,Manchester Leisure,Goods purchased for resale in Council outlets,28/06/2022,5105822513,1072.2,Redacted Personal Information
Manchester City Council,Childrens & Education Services,Professional fees,14/06/2022,1907767024,550,Redacted Personal Information
Manchester City Council,Childrens & Education Services,Professional fees,21/06/2022,1907766412,650,Redacted Personal Information
Manchester City Council,Manchester Leisure,Equipment,06/06/2022,5105819077,1116.22,North West Timber Treatments Ltd
Manchester City Council,Manchester Leisure,Equipment,07/06/2022,5105819325,1868.75,Massey & Harris (Engrg) Ltd
Manchester City Council,Manchester Leisure,Equipment,09/06/2022,5105820054,1876.64,Alliance Disposables Ltd
Manchester City Council,Manchester Leisure,Equipment,10/06/2022,1907766745,582.46,Amazon Co.Uk
Manchester City Council,Manchester Leisure,Equipment,10/06/2022,5105819770,583.5,Green-Tech Ltd
Manchester City Council,Manchester Leisure,Equipment,10/06/2022,5105819912,13286,Cromwell Polythene Limited
Manchester City Council,Manchester Leisure,Equipment,28/06/2022,5105822563,13286,Cromwell Polythene Limited
Manchester City Council,Manchester Leisure,Equipment,14/06/2022,1907767984,7835,Dirt Factory Limited
Manchester City Council,Manchester Leisure,Equipment,14/06/2022,5105820388,13481.25,MGB Plastics Limited
Manchester City Council,Manchester Leisure,Equipment,14/06/2022,5105820389,13500,MGB Plastics Limited
Manchester City Council,Manchester Leisure,Equipment,14/06/2022,5105820390,13500,MGB Plastics Limited
Manchester City Council,Manchester Leisure,Equipment,14/06/2022,5105820392,13500,MGB Plastics Limited
Manchester City Council,Manchester Leisure,Equipment,14/06/2022,5105820440,-842.8,Tudor Environmental
Manchester City Council,Manchester Leisure,Equipment,15/06/2022,5105820734,842.8,Tudor Environmental
Manchester City Council,Manchester Leisure,Building Materials for direct delivery,23/06/2022,5105821868,829.5,Tudor Environmental
Manchester City Council,Manchester Leisure,Equipment,16/06/2022,5105819938,3000,Willfab Ltd
Manchester City Council,Manchester Leisure,Payments to Sub-Contractors,17/06/2022,5105819937,1400,Willfab Ltd
Manchester City Council,Manchester Leisure,Payments to Sub-Contractors,29/06/2022,5105822766,1860,Willfab Ltd
Manchester City Council,Manchester Leisure,Equipment,16/06/2022,5105820804,1800,Groundwork Landscapes Ltd
Manchester City Council,Manchester Leisure,Equipment,16/06/2022,5105820912,875,Groundwork Landscapes Ltd
Manchester City Council,Manchester Leisure,Equipment,16/06/2022,5105820913,650,Groundwork Landscapes Ltd
Manchester City Council,Manchester Leisure,Payments to Sub-Contractors,21/06/2022,5105821469,1560,Groundwork Landscapes Ltd
Manchester City Council,Manchester Leisure,Payments to Sub-Contractors,23/06/2022,5105821813,948,Groundwork Landscapes Ltd
Manchester City Council,Manchester Leisure,Payments to Sub-Contractors,23/06/2022,5105821814,3000,Groundwork Landscapes Ltd
Manchester City Council,Manchester Leisure,Payments to Sub-Contractors,30/06/2022,5105821348,3048,Groundwork Landscapes Ltd
Manchester City Council,Manchester Leisure,Equipment,17/06/2022,1907774893,4283.5,N-VIROL
Manchester City Council,Manchester Leisure,Equipment,17/06/2022,1907775007,790.95,RUNNING IMP INTERNATIONAL
Manchester City Council,Manchester Leisure,Equipment,17/06/2022,1907775131,511.9,EXPEDIA
Manchester City Council,Manchester Leisure,Equipment,17/06/2022,1907775336,1532.96,TRAVELODGE P CARD ONLY
Manchester City Council,Manchester Leisure,Equipment,17/06/2022,1907775339,851.64,TRAVELODGE P CARD ONLY
Manchester City Council,Manchester Leisure,Equipment,17/06/2022,1907775604,1235,N/A
Manchester City Council,Manchester Leisure,Equipment,17/06/2022,1907775815,2025,N/A
Manchester City Council,Manchester Leisure,Equipment,17/06/2022,1907775696,700,SECURESAFE LTD
Manchester City Council,Manchester Leisure,Equipment,17/06/2022,1907775744,1479,WWW.CONTAINERLIFT.CO.U
Manchester City Council,Manchester Leisure,Legal Fees,29/06/2022,1907790990,750,Redacted Personal Information
Manchester City Council,Manchester Leisure,Equipment,17/06/2022,1907775820,7050,KIMPTON CLOCK TOWER MANCH
Manchester City Council,Manchester Leisure,Equipment,17/06/2022,1907775864,860,Premier Inn P CARD ONLY
Manchester City Council,Manchester Leisure,Equipment,17/06/2022,1907775912,860,Premier Inn P CARD ONLY
Manchester City Council,Manchester Leisure,Equipment,21/06/2022,5105821383,815,Earth Anchors Ltd
Manchester City Council,Manchester Leisure,Equipment,30/06/2022,5105822852,805,Earth Anchors Ltd
Manchester City Council,Manchester Leisure,Equipment,30/06/2022,5105822855,805,Earth Anchors Ltd
Manchester City Council,Manchester Leisure,Works and associated costs for Land and Buildings,21/06/2022,5105821379,5620,Earth Anchors Ltd
Manchester City Council,Manchester Leisure,Equipment,23/06/2022,5105821995,1070,Solon Security Ltd
Manchester City Council,Manchester Leisure,Equipment,27/06/2022,5105822381,6845.22,HAGS-SMP Limited
Manchester City Council,Manchester Leisure,Equipment,30/06/2022,5105822872,715.4,Kompan Ltd
Manchester City Council,Manchester Leisure,Works and associated costs for Land and Buildings,30/06/2022,5105822870,5038.44,Kompan Ltd
Manchester City Council,Manchester Leisure,Equipment,30/06/2022,5105822885,576.65,Biffa Waste Services Ltd
Manchester City Council,Environment and Operations,Long Term Debtors,30/06/2022,1907741794,83750,Biffa Waste Services Ltd
Manchester City Council,Manchester Leisure,Furniture,07/06/2022,5105819452,640,Rackline Limited
Manchester City Council,Manchester Leisure,"Consumable items eg Toilet rolls, soap etc",17/06/2022,1907775196,786.6,MSFT * E0400IIFSZ
Manchester City Council,Manchester Leisure,"Consumable items eg Toilet rolls, soap etc",17/06/2022,1907775223,950.52,AIRTABLE.COM/BILL
Manchester City Council,Manchester Leisure,"Consumable items eg Toilet rolls, soap etc",17/06/2022,1907775233,680,ROYAL MAIL ONLINE SHOP
Manchester City Council,Manchester Leisure,"Consumable items eg Toilet rolls, soap etc",17/06/2022,1907775308,4691.43,SP RBLI
Manchester City Council,Manchester Leisure,"Consumable items eg Toilet rolls, soap etc",17/06/2022,1907775544,554,PLUME LABS
Manchester City Council,Manchester Leisure,"Consumable items eg Toilet rolls, soap etc",17/06/2022,1907775600,2698.72,COBWEB SOLUTIONS LIMIT
Manchester City Council,Manchester Leisure,"Consumable items eg Toilet rolls, soap etc",17/06/2022,1907776144,915.8,LIVESTORM* LIVESTORM
Manchester City Council,Manchester Leisure,"Consumable items eg Toilet rolls, soap etc",23/06/2022,5105821755,950,Wilkinson Bros
Manchester City Council,Manchester Leisure,"Consumable items eg Toilet rolls, soap etc",23/06/2022,5105821757,-950,Wilkinson Bros
Manchester City Council,Manchester Leisure,"Consumable items eg Toilet rolls, soap etc",30/06/2022,5105821771,950,Wilkinson Bros
Manchester City Council,Manchester Leisure,"Consumable items eg Toilet rolls, soap etc",30/06/2022,5105821774,950,Wilkinson Bros
Manchester City Council,Manchester Leisure,Building Materials for direct delivery,09/06/2022,5105819979,714.15,Chambers & Perkins
Manchester City Council,Manchester Leisure,Payments to Sub-Contractors,09/06/2022,5105819977,565.32,Chambers & Perkins
Manchester City Council,Manchester Leisure,Payments to Sub-Contractors,09/06/2022,5105820084,500.16,Chambers & Perkins
Manchester City Council,Manchester Leisure,Payments to Sub-Contractors,09/06/2022,5105820086,1533,Chambers & Perkins
Manchester City Council,Manchester Leisure,Building Materials for direct delivery,10/06/2022,5105819898,1850,Wythenshawe Community Farm
Manchester City Council,Manchester Leisure,Payments to Sub-Contractors,09/06/2022,5105819737,5000,Wythenshawe Community Farm
Manchester City Council,Manchester Leisure,Hire of Machinery,13/06/2022,5105819606,1900,Wythenshawe Community Farm
Manchester City Council,Manchester Leisure,Building Materials for direct delivery,15/06/2022,5105820690,700,One Green World
Manchester City Council,Manchester Leisure,Building Materials for direct delivery,15/06/2022,5105820701,1300,One Green World
Manchester City Council,Manchester Leisure,Payments to Sub-Contractors,17/06/2022,5105820600,880,One Green World
Manchester City Council,Manchester Leisure,Payments to Sub-Contractors,30/06/2022,5105822806,-1999,One Green World
Manchester City Council,Manchester Leisure,Payments to Sub-Contractors,30/06/2022,5105822807,1999,One Green World
Manchester City Council,Manchester Leisure,Payments to Sub-Contractors,30/06/2022,5105822846,-1999,One Green World
Manchester City Council,Manchester Leisure,Payments to Sub-Contractors,30/06/2022,5105822892,1999,One Green World
Manchester City Council,Manchester Leisure,Building Materials for direct delivery,23/06/2022,5105820709,1995,Flowprotect Ltd
Manchester City Council,Manchester Leisure,Works and associated costs for Land and Buildings,23/06/2022,5105820705,2000,Flowprotect Ltd
Manchester City Council,Manchester Leisure,Building Materials for direct delivery,29/06/2022,5105822681,518.53,Landscape Supply Company
Manchester City Council,Manchester Leisure,Payments to Sub-Contractors,07/06/2022,5105819135,2414,British Parking Association
Manchester City Council,Manchester Leisure,Payments to Sub-Contractors,07/06/2022,5105819380,1200,PSS (UK)
Manchester City Council,Manchester Leisure,Payments to Sub-Contractors,07/06/2022,5105819450,9900,WSP UK Limited
Manchester City Council,Manchester Leisure,Payments to Sub-Contractors,09/06/2022,5105819682,830.94,Synectics Security Limited
Manchester City Council,Manchester Leisure,Payments to Sub-Contractors,13/06/2022,5105820339,57605.65,NSL Ltd
Manchester City Council,Manchester Leisure,Payments to Sub-Contractors,13/06/2022,5105820340,3863.33,NSL Ltd
Manchester City Council,Manchester Leisure,Payments to Sub-Contractors,13/06/2022,5105820352,-57605.65,NSL Ltd
Manchester City Council,Manchester Leisure,Payments to Sub-Contractors,13/06/2022,5105820354,57606.65,NSL Ltd
Manchester City Council,Manchester Leisure,Payments to Sub-Contractors,15/06/2022,5105820599,9063.41,M247 UK Ltd
Manchester City Council,Manchester Leisure,Payments to Sub-Contractors,16/06/2022,5105819530,12930,Pell Frischmann Consultants Ltd
Manchester City Council,Manchester Leisure,Payments to Sub-Contractors,20/06/2022,5105821253,2702.08,Park NOW Limited
Manchester City Council,Manchester Leisure,Payments to Sub-Contractors,20/06/2022,5105821258,1131.2,Flowbird Smart City Uk Ltd
Manchester City Council,Manchester Leisure,Payments to Sub-Contractors,30/06/2022,5105822076,684.93,Flowbird Smart City Uk Ltd
Manchester City Council,Manchester Leisure,Payments to Sub-Contractors,30/06/2022,5105822077,1532.77,Flowbird Smart City Uk Ltd
Manchester City Council,Manchester Leisure,Payments to Sub-Contractors,22/06/2022,5105821300,4434.25,Verrus (UK) T/A paybyphone
Manchester City Council,Manchester Leisure,Payments to Sub-Contractors,23/06/2022,5105822123,2700,Clean-Up UK Limited
Manchester City Council,Manchester Leisure,Payments to Sub-Contractors,23/06/2022,5105822124,600,Clean-Up UK Limited
Manchester City Council,Manchester Leisure,Payments to Sub-Contractors,24/06/2022,5105820818,900,Groundwork & Leisure Services Ltd
Manchester City Council,Manchester Leisure,Payments to Sub-Contractors,30/06/2022,5105822042,1161.24,HMG Paints Ltd
Manchester City Council,Manchester Leisure,Payments to Sub-Contractors,30/06/2022,5105822829,1936.95,Amey Highways Lighting (Manchester)
Manchester City Council,Manchester Leisure,Hire of Machinery,17/06/2022,5105821006,726.64,Bradshaw Lawnmover Engineers
Manchester City Council,Manchester Leisure,Hire of Equipment,06/06/2022,5105819105,1330,William G.Search Ltd
Manchester City Council,Manchester Leisure,Hire of Equipment,09/06/2022,5105819609,3560,William G.Search Ltd
Manchester City Council,Manchester Leisure,Hire of Equipment,27/06/2022,5105821903,1215,William G.Search Ltd
Manchester City Council,Manchester Leisure,Hire of Equipment,29/06/2022,5105822603,1120,William G.Search Ltd
Manchester City Council,Manchester Leisure,Hire of Equipment,08/06/2022,5105819287,5884.52,dbnAudile Limited
Manchester City Council,Manchester Leisure,Professional fees,15/06/2022,5105820557,1333.74,dbnAudile Limited
Manchester City Council,Manchester Leisure,Hire of Equipment,22/06/2022,1907772693,16400,AESG Ltd t/a Arena Structures
Manchester City Council,Manchester Leisure,Grant Payments,23/06/2022,5105821835,3150,Southway Housing Trust
Manchester City Council,Manchester Leisure,Grant Payments,28/06/2022,5105822448,1215.02,Softlink Europe Ltd
Manchester City Council,Manchester Leisure,Catering Provisions,08/06/2022,1907762608,1032,Open Kitchen MCR CIC
Manchester City Council,Childrens & Education Services,Professional fees,10/06/2022,1907759239,710,Redacted Personal Information
Manchester City Council,Childrens & Education Services,Professional fees,13/06/2022,1907767027,650,Redacted Personal Information
Manchester City Council,Manchester Leisure,Catering,22/06/2022,5105821616,845.1,Manchester Art Gallery
Manchester City Council,Manchester Leisure,I T Provision,23/06/2022,5105821877,6301.72,Manchester Art Gallery
Manchester City Council,Manchester Leisure,Legal Fees,07/06/2022,1907759227,750,18 St John Street Chambers
Manchester City Council,Manchester Leisure,Legal Fees,07/06/2022,1907759228,750,18 St John Street Chambers
Manchester City Council,Childrens & Education Services,Professional fees,10/06/2022,1907759220,750,18 St John Street Chambers
Manchester City Council,Childrens & Education Services,Professional fees,10/06/2022,1907762767,710,18 St John Street Chambers
Manchester City Council,Childrens & Education Services,Professional fees,10/06/2022,1907762778,650,18 St John Street Chambers
Manchester City Council,Childrens & Education Services,Professional fees,10/06/2022,1907762833,650,18 St John Street Chambers
Manchester City Council,Childrens & Education Services,Professional fees,20/06/2022,1907606886,710,18 St John Street Chambers
Manchester City Council,Childrens & Education Services,Professional fees,20/06/2022,1907765156,650,18 St John Street Chambers
Manchester City Council,Childrens & Education Services,Professional fees,27/06/2022,1907772687,770,18 St John Street Chambers
Manchester City Council,Manchester Leisure,Legal Fees,09/06/2022,1907762522,875,CGDM Ltd T/A
Manchester City Council,Manchester Leisure,Legal Fees,10/06/2022,1907762804,688,Department For Work & Pensions
Manchester City Council,Manchester Leisure,Legal Fees,20/06/2022,1907777131,744,Department For Work & Pensions
Manchester City Council,Hospitality + Trading Services,Compensation Payments,29/06/2022,1907788954,16944,Department For Work & Pensions
Manchester City Council,Childrens & Education Services,Legal Fees,28/06/2022,1907788238,688,Department For Work & Pensions
Manchester City Council,Manchester Leisure,Legal Fees,10/06/2022,1907766505,650,BESPOKE
Manchester City Council,Manchester Leisure,Legal Fees,20/06/2022,1907777115,2850,Bentley Sterling & Co Solicitors
Manchester City Council,Manchester Leisure,Legal Fees,20/06/2022,1907777170,6500,BENTLEY STIRLING & CO SOLICITORS
Manchester City Council,Manchester Leisure,Legal Fees,22/06/2022,1907777986,960,Calland Mellor Consulting
Manchester City Council,Manchester Leisure,Legal Fees,22/06/2022,1907779970,2699.56,Peasegoods
Manchester City Council,Manchester Leisure,Legal Fees,23/06/2022,1907777995,1000,Graham Coffey & Co.Solicitors
Manchester City Council,Manchester Leisure,Legal Fees,27/06/2022,1907788184,5000,Crompton Solicitors
Manchester City Council,Manchester Leisure,Legal Fees,27/06/2022,1907788939,16500,Satchell Moran Solicitors
Manchester City Council,Manchester Leisure,Legal Fees,28/06/2022,1907788875,25000,Clearwater Solicitors
Manchester City Council,Manchester Leisure,Legal Fees,30/06/2022,1907793481,650,SK Real Estate (Liverpool) Ltd
Manchester City Council,Manchester Leisure,Professional Fees,07/06/2022,5105819349,695.78,Redacted Personal Information
Manchester City Council,Manchester Leisure,Professional Fees,16/06/2022,5105820811,749.25,Redacted Personal Information
Manchester City Council,Manchester Leisure,Professional Fees,20/06/2022,5105821183,710.7,Redacted Personal Information
Manchester City Council,Manchester Leisure,Professional Fees,20/06/2022,5105821200,601.66,Redacted Personal Information
Manchester City Council,Manchester Leisure,Professional Fees,09/06/2022,5105819147,986,Kingfisher Design & Management Ltd
Manchester City Council,Manchester Leisure,Professional Fees,09/06/2022,5105819348,625,Aareon UK Ltd
Manchester City Council,Manchester Leisure,Professional Fees,10/06/2022,5105819711,2371.86,UPS Building & Maintenance Ltd
Manchester City Council,Manchester Leisure,Professional Fees,10/06/2022,5105819907,9750,FoodSync CIC
Manchester City Council,Manchester Leisure,Professional Fees,17/06/2022,5105821005,4950,Inforhousing
Manchester City Council,Manchester Leisure,Professional Fees,30/06/2022,5105821476,5197.05,DASCO Construction Limited
Manchester City Council,Manchester Leisure,Professional Fees,30/06/2022,5105819191,5340,Creative Tourist Limited
Manchester City Council,Manchester Leisure,Signers/Interpreters,10/06/2022,1907766733,3227.26,O2 UK PAYMENT
Manchester City Council,Manchester Leisure,Mobilephone Charges,17/06/2022,1907776108,2949.28,O2 UK PAYMENT
Manchester City Council,Manchester Leisure,Professional fees,01/06/2022,1907762171,7791.53,Restrike d.o.o.
Manchester City Council,Manchester Leisure,Professional fees,06/06/2022,1907760415,1371.1,W J Lewis (Builders Merchants) Ltd
Manchester City Council,Manchester Leisure,Professional fees,06/06/2022,5105819254,2016,Arena Seating
Manchester City Council,Manchester Leisure,Professional fees,07/06/2022,1907762165,2250,Goal Centred Development Limited
Manchester City Council,Manchester Leisure,Professional fees,07/06/2022,5105819457,600,Common Practices Ltd
Manchester City Council,Manchester Leisure,Professional fees,07/06/2022,5105819462,600,British Youth Council
Manchester City Council,Manchester Leisure,Professional fees,08/06/2022,1907762798,2475,WA Management
Manchester City Council,Manchester Leisure,Professional fees,20/06/2022,5105821312,2475,WA Management
Manchester City Council,Manchester Leisure,Professional fees,09/06/2022,1907764373,650,Redacted Personal Information
Manchester City Council,Manchester Leisure,Professional fees,10/06/2022,1907728993,720,Institute of Art & Law Ltd
Manchester City Council,Manchester Leisure,Professional fees,10/06/2022,5105819877,800,Redacted Personal Information
Manchester City Council,Manchester Leisure,Professional fees,10/06/2022,5105819953,10780,Televideo Limited
Manchester City Council,Manchester Leisure,Professional fees,13/06/2022,1907767981,4070.54,MARTIAL EVENTS
Manchester City Council,Manchester Leisure,Professional fees,20/06/2022,1907777854,715.19,MARTIAL EVENTS
Manchester City Council,Manchester Leisure,Professional fees,13/06/2022,5105819249,50000,Nova International Ltd
Manchester City Council,Manchester Leisure,Professional fees,14/06/2022,5105820403,1750,Vertical Access Ltd
Manchester City Council,Manchester Leisure,Professional fees,27/06/2022,5105822279,750,Vertical Access Ltd
Manchester City Council,Manchester Leisure,Professional fees,27/06/2022,5105822383,1000,Vertical Access Ltd
Manchester City Council,Manchester Leisure,Professional fees,15/06/2022,5105819795,1390.87,Response Team 247 Ltd
Manchester City Council,Manchester Leisure,Professional fees,15/06/2022,5105820494,3206.06,Response Team 247 Ltd
Manchester City Council,Manchester Leisure,Professional fees,16/06/2022,5105820771,1460,NASIMA J DUNNE LTD
Manchester City Council,Manchester Leisure,Professional fees,24/06/2022,5105822191,2160,NASIMA J DUNNE LTD
Manchester City Council,Manchester Leisure,Professional fees,24/06/2022,5105822193,1320,NASIMA J DUNNE LTD
Manchester City Council,Manchester Leisure,Professional fees,16/06/2022,5105820868,1000,Redacted Personal Information
Manchester City Council,Manchester Leisure,Professional fees,17/06/2022,5105820304,1109238,British Cycling Federation
Manchester City Council,Manchester Leisure,Professional fees,20/06/2022,5105821255,1320,Redacted Personal Information
Manchester City Council,Manchester Leisure,Professional fees,20/06/2022,5105821354,2974.2,Greenwich Leisure Limited
Manchester City Council,Manchester Leisure,Professional fees,21/06/2022,5105821353,1240,Wythenshawe Community Housing Group
Manchester City Council,Manchester Leisure,Grant and subscriptions awarded,27/06/2022,5105820786,41055.5,Wythenshawe Community Housing Group
Manchester City Council,Manchester Leisure,Professional fees,21/06/2022,5105821382,4693.09,British Taekwondo Limited
Manchester City Council,Manchester Leisure,Professional fees,23/06/2022,5105821828,800,Redacted Personal Information
Manchester City Council,Manchester Leisure,Professional fees,23/06/2022,5105821879,1475.25,HSL Compliance Limited
Manchester City Council,Manchester Leisure,Professional fees,24/06/2022,1907781287,4050,ICON SIGNS LTD
Manchester City Council,Manchester Leisure,Professional fees,24/06/2022,5105821652,9625,Gekay Carpets
Manchester City Council,Manchester Leisure,Professional fees,27/06/2022,5105820785,5861.9,Hirequirements Ltd
Manchester City Council,Manchester Leisure,Professional fees,29/06/2022,1907789199,617.35,Smart Office Systems Limited
Manchester City Council,Manchester Leisure,Professional fees,29/06/2022,1907789227,550,Manchester Youth Academy
Manchester City Council,Manchester Leisure,Payments for services,07/06/2022,5105819267,10000,Manchester Youth Academy
Manchester City Council,Manchester Leisure,Professional fees,29/06/2022,5105822464,702,Effusion LLP
Manchester City Council,Manchester Leisure,Professional fees,29/06/2022,5105822625,3899.7,Experian Limited
Manchester City Council,Manchester Leisure,Professional fees,29/06/2022,5105822627,3248.45,Experian Limited
Manchester City Council,Manchester Leisure,Professional fees,30/06/2022,5105822858,500,Redacted Personal Information
Manchester City Council,Manchester Leisure,Professional fees,30/06/2022,5105822950,7403.88,Eville & Jones Commercial Services
Manchester City Council,Manchester Leisure,Professional fees,30/06/2022,5105821769,506793.05,Manchester Active
Manchester City Council,Manchester Leisure,Professional fees,30/06/2022,5105819358,766.77,Shoppertrak Ltd
Manchester City Council,Manchester Leisure,Landline Telephone,16/06/2022,1907770871,1418.7,BT PLC
Manchester City Council,Manchester Leisure,I T Provision,10/06/2022,5105819351,3181.05,BT PLC
Manchester City Council,Manchester Leisure,Landline Telephone,30/06/2022,5105822837,-2071.25,Windsor Telecom
Manchester City Council,Manchester Leisure,I T Provision,14/06/2022,5105820215,1203.65,Eldercare (UK) Ltd
Manchester City Council,Manchester Leisure,I T Provision,27/06/2022,5105822339,1171.13,Eldercare (UK) Ltd
Manchester City Council,Manchester Leisure,I T Provision,27/06/2022,5105822357,1140.39,Eldercare (UK) Ltd
Manchester City Council,Manchester Leisure,I T Provision,27/06/2022,5105822359,1243.76,Eldercare (UK) Ltd
Manchester City Council,Manchester Leisure,I T Provision,15/06/2022,5105820566,12396.5,Upland Software UK Ltd
Manchester City Council,Manchester Leisure,I T Provision,15/06/2022,5105820567,9585,Upland Software UK Ltd
Manchester City Council,Manchester Leisure,I T Provision,15/06/2022,5105820643,2400,Upland Software UK Ltd
Manchester City Council,Childrens & Education Services,Transport Coach Hire,07/06/2022,5105819323,3401,Redacted Personal Information
Manchester City Council,Childrens & Education Services,Transport Coach Hire,28/06/2022,5105822408,1432,Redacted Personal Information
Manchester City Council,Manchester Leisure,I T Provision,30/06/2022,5105822765,723.25,Cleardata
Manchester City Council,Manchester Leisure,I T Provision,30/06/2022,5105822764,723.25,Cleardata
Manchester City Council,Manchester Leisure,I T Provision,30/06/2022,5105819775,2309.76,Siemens Financial Services Ltd
Manchester City Council,Manchester Leisure,ICT Sup & Maintnance,14/06/2022,5105819113,26998.96,TELEFÓNICA TECH NI LTD
Manchester City Council,Manchester Leisure,ICT Sup & Maintnance,14/06/2022,5105820282,-26998.96,TELEFÓNICA TECH NI LTD
Manchester City Council,Manchester Leisure,ICT Sup & Maintnance,14/06/2022,5105820283,31144.5,TELEFÓNICA TECH NI LTD
Manchester City Council,Manchester Leisure,ICT Sup & Maintnance,30/06/2022,5105821042,31144.5,TELEFÓNICA TECH NI LTD
Manchester City Council,Childrens & Education Services,Transport Coach Hire,09/06/2022,5105819590,529.31,Redacted Personal Information
Manchester City Council,Childrens & Education Services,Transport Coach Hire,09/06/2022,5105819741,3998,Redacted Personal Information
Manchester City Council,Manchester Leisure,ICT Sup & Maintnance,22/06/2022,5105821638,2100,Equisys Timemaster Ltd
Manchester City Council,Manchester Leisure,ICT Sup & Maintnance,24/06/2022,5105821977,9900,Prodo Digital Marketing Ltd
Manchester City Council,Manchester Leisure,ICT Sup & Maintnance,30/06/2022,5105821870,17358.75,Prodo Digital Marketing Ltd
Manchester City Council,Manchester Leisure,Other Insurance,08/06/2022,1907762815,9069.37,Aon Ltd
Manchester City Council,Manchester Leisure,Compensation Payments,20/06/2022,1907772349,1000,Redacted Personal Information
Manchester City Council,Manchester Leisure,Subsistence and Conference Expenses,30/06/2022,5105822140,545,Local Government Association
Manchester City Council,Manchester Leisure,Cash Collection,30/06/2022,5105822606,21209.96,APCOA PARKING UK Ltd
Manchester City Council,Manchester Leisure,Grant and subscriptions awarded,01/06/2022,5105819002,1340,Grove Village Residents association
Manchester City Council,Manchester Leisure,Grant and subscriptions awarded,06/06/2022,5105818989,575,4CT Limited
Manchester City Council,Manchester Leisure,Grant and subscriptions awarded,20/06/2022,5105820212,215000,4CT Limited
Manchester City Council,Manchester Leisure,Grant and subscriptions awarded,24/06/2022,5105822116,500,4CT Limited
Manchester City Council,Manchester Leisure,Grant and subscriptions awarded,06/06/2022,5105818990,5500,Active Communities Network Limited
Manchester City Council,Manchester Leisure,Grant and subscriptions awarded,06/06/2022,5105819215,2150,Platt Claremont Residents Assoc
Manchester City Council,Manchester Leisure,Grant and subscriptions awarded,06/06/2022,5105819222,1652.45,Bowes St Residents Association
Manchester City Council,Manchester Leisure,Grant and subscriptions awarded,06/06/2022,5105819227,500,DGMRGA - The Derbyshire
Manchester City Council,Manchester Leisure,Grant and subscriptions awarded,07/06/2022,5105819489,-31250,M13 Youth Project
Manchester City Council,Manchester Leisure,Grant and subscriptions awarded,10/06/2022,5105819265,125000,M13 Youth Project
Manchester City Council,Manchester Leisure,Grant and subscriptions awarded,09/06/2022,5105819684,500,Moston Meadows Residents Assoc
Manchester City Council,Manchester Leisure,Grant and subscriptions awarded,09/06/2022,5105819798,720,Community Minded Ltd
Manchester City Council,Manchester Leisure,Grant and subscriptions awarded,10/06/2022,5105819840,1319,Proforma Arts
Manchester City Council,Manchester Leisure,Grant and subscriptions awarded,10/06/2022,5105819853,1775,Peel Estate Home Watch Group
Manchester City Council,Manchester Leisure,Grant and subscriptions awarded,10/06/2022,5105819855,500,Work For Smile
Manchester City Council,Manchester Leisure,Grant and subscriptions awarded,10/06/2022,5105819859,500,Newton Heath Eco Youth
Manchester City Council,Manchester Leisure,Grant and subscriptions awarded,10/06/2022,5105819883,500,Community of Westlea 22
Manchester City Council,Manchester Leisure,Grant and subscriptions awarded,10/06/2022,5105820019,50000,Community on Solid Ground
Manchester City Council,Manchester Leisure,Grant and subscriptions awarded,13/06/2022,5105820187,750,Friends of Fog Lane Park Group
Manchester City Council,Manchester Leisure,Grant and subscriptions awarded,13/06/2022,5105820200,961.24,Acorn Close Allotment Society
Manchester City Council,Manchester Leisure,Grant and subscriptions awarded,13/06/2022,5105820317,500,Moston Brook Friends Group
Manchester City Council,Manchester Leisure,Grant and subscriptions awarded,13/06/2022,5105820318,6700,Redacted Personal Information
Manchester City Council,Manchester Leisure,Grant and subscriptions awarded,15/06/2022,5105820629,2000,Youth on Solid Ground
Manchester City Council,Manchester Leisure,Grant and subscriptions awarded,15/06/2022,5105820641,7500,Greater Manchester Youth
Manchester City Council,Manchester Leisure,Grant and subscriptions awarded,16/06/2022,5105820764,10000,Manchester Womens Aid
Manchester City Council,Manchester Leisure,Grant and subscriptions awarded,16/06/2022,5105820820,3300,Manchester Alliance For
Manchester City Council,Manchester Leisure,Grant and subscriptions awarded,16/06/2022,5105820884,10000,Manchester Alliance For
Manchester City Council,Manchester Leisure,Grant and subscriptions awarded,17/06/2022,5105821069,2500,Abraham Moss Warriors JFC
Manchester City Council,Manchester Leisure,Grant and subscriptions awarded,21/06/2022,5105821419,1398,Levenshulme Square Residents Assoc
Manchester City Council,Manchester Leisure,Grant and subscriptions awarded,21/06/2022,5105821553,1830,Inspired Taskforce CIC
Manchester City Council,Manchester Leisure,Grant and subscriptions awarded,22/06/2022,5105820219,3485.84,Haveley Hey Community School
Manchester City Council,Manchester Leisure,Grant and subscriptions awarded,22/06/2022,5105821775,800,Royal Mills Residents Association
Manchester City Council,Manchester Leisure,Grant and subscriptions awarded,24/06/2022,5105822021,52788,N-Gage Project
Manchester City Council,Manchester Leisure,Grant and subscriptions awarded,28/06/2022,5105822444,2730,Levenshulme Inspire
Manchester City Council,Manchester Leisure,Grant and subscriptions awarded,28/06/2022,5105822447,24600,Open Data Manchester CIC
Manchester City Council,Manchester Leisure,Grant and subscriptions awarded,29/06/2022,5105822574,2727,Parrs Wood Ave Residents Assoc
Manchester City Council,Manchester Leisure,Grant and subscriptions awarded,29/06/2022,5105822602,1188,Friends of Beech Road Park
Manchester City Council,Manchester Leisure,Grant and subscriptions awarded,30/06/2022,5105822905,1000,Friends of Sackville Gardens
Manchester City Council,Manchester Leisure,Grant and subscriptions awarded,30/06/2022,5105822995,937.64,St Peter'S Rc Primary School
Manchester City Council,Manchester Leisure,Grant and subscriptions awarded,30/06/2022,5105822653,63340,42nd Street
Manchester City Council,Manchester Leisure,Grant and subscriptions awarded,30/06/2022,5105822643,14445,Greater Manchester Coalition Of Dis
Manchester City Council,Manchester Leisure,Advertising,15/06/2022,5105820630,2500,Royal Flush Marketing Ltd
Manchester City Council,Manchester Leisure,Goods purchased for resale in Council outlets,07/06/2022,5105819163,-1565,Cornflower Ltd
Manchester City Council,Manchester Leisure,Goods purchased for resale in Council outlets,22/06/2022,5105821618,1113,Cornflower Ltd
Manchester City Council,Manchester Leisure,Goods purchased for resale in Council outlets,22/06/2022,5105821620,1265,Cornflower Ltd
Manchester City Council,Manchester Leisure,Goods purchased for resale in Council outlets,23/06/2022,5105821861,687.5,Cornflower Ltd
Manchester City Council,Manchester Leisure,Goods purchased for resale in Council outlets,23/06/2022,5105821862,1092,Cornflower Ltd
Manchester City Council,Manchester Leisure,Goods purchased for resale in Council outlets,30/06/2022,5105819167,1565,Cornflower Ltd
Manchester City Council,Manchester Leisure,Goods purchased for resale in Council outlets,07/06/2022,5105819326,525.39,Yorkshire Purchasing
Manchester City Council,Manchester Leisure,Goods purchased for resale in Council outlets,07/06/2022,5105819328,788.09,Redacted Personal Information
Manchester City Council,Manchester Leisure,Goods purchased for resale in Council outlets,21/06/2022,5105821384,615.5,Playpress Toys Limited
Manchester City Council,Manchester Leisure,Goods purchased for resale in Council outlets,30/06/2022,1907793734,1940.2,Massive Records Company Ltd
Manchester City Council,Childrens & Education Services,Professional fees,16/06/2022,5105820962,1666.7,Redacted Personal Information
Manchester City Council,Manchester Leisure,Library Materials Acquisition,06/06/2022,1907760417,615.27,Askews and Holts
Manchester City Council,Manchester Leisure,Library Materials Acquisition,15/06/2022,1907770743,539.56,Askews and Holts
Manchester City Council,Manchester Leisure,Library Materials Acquisition,23/06/2022,1907779792,670.81,Askews and Holts
Manchester City Council,Manchester Leisure,Library Materials Acquisition,16/06/2022,1700135092,-680,ICE Data Services Europe Ltd
Manchester City Council,Manchester Leisure,Library Materials Acquisition,16/06/2022,1907770739,680,ICE Data Services Europe Ltd
Manchester City Council,Manchester Leisure,Library Materials Acquisition,16/06/2022,1907770699,1203.94,Martin-Lavell Limited
Manchester City Council,Manchester Leisure,Library Materials Acquisition,17/06/2022,1907774757,1120,THOMSON REUTERS UK LTD
Manchester City Council,Manchester Leisure,Library Materials Acquisition,17/06/2022,1907775047,830,SUMUP  *LEARNING UNLIMITE
Manchester City Council,Manchester Leisure,Library Materials Acquisition,17/06/2022,1907775066,1000,SUMUP  *LEARNING UNLIMITE
Manchester City Council,Manchester Leisure,Library Materials Acquisition,23/06/2022,1907779813,572.4,W.F.Howes Ltd
Manchester City Council,Manchester Leisure,Special Event,08/06/2022,1907762800,5209.5,RSA Adelphi Enterprises Ltd
Manchester City Council,Manchester Leisure,Special Event,08/06/2022,5105819314,669.2,Event Technical Support
Manchester City Council,Manchester Leisure,Special Event,09/06/2022,5105819712,6346.61,Utilities Design & Planning Ltd
Manchester City Council,Manchester Leisure,Special Event,13/06/2022,5105820232,1750,Stute Theatre CIC
Manchester City Council,Manchester Leisure,Special Event,15/06/2022,5105820556,5616,Showmed
Manchester City Council,Manchester Leisure,Special Event,24/06/2022,5105821973,617.5,Showmed
Manchester City Council,Manchester Leisure,Special Event,16/06/2022,5105820846,15600,Manchester Jazz Festival
Manchester City Council,Manchester Leisure,Special Event,21/06/2022,1907772689,2422.5,City Glass (Manchester) Co. Ltd
Manchester City Council,Manchester Leisure,Special Event,21/06/2022,5105821396,1240,Imageit
Manchester City Council,Manchester Leisure,Special Event,22/06/2022,1907772690,10000,Anamika Group
Manchester City Council,Manchester Leisure,Special Event,23/06/2022,1907779886,7500,MACFEST
Manchester City Council,Manchester Leisure,Special Event,27/06/2022,5105821710,853.26,Authors Aloud UK Ltd
Manchester City Council,Manchester Leisure,Special Event,28/06/2022,1907788961,5500,Education Policy Institute
Manchester City Council,Manchester Leisure,Special Event,30/06/2022,5105821703,1190,Cornerstone Design and Marketing
Manchester City Council,Childrens & Education Services,Professional fees,28/06/2022,5105822424,16650,Cornerstone Design and Marketing
Manchester City Council,Manchester Leisure,Special Event,30/06/2022,5105822800,146800,Walk The Plank Ltd
Manchester City Council,Manchester Leisure,Third party payments relating to Voluntary Organisations,06/06/2022,5105819010,174841,"TLC: Talk, Listen, Change"
Manchester City Council,Manchester Leisure,Third party payments relating to Voluntary Organisations,06/06/2022,5105819011,174999,"TLC: Talk, Listen, Change"
Manchester City Council,Manchester Leisure,Third party payments relating to Voluntary Organisations,10/06/2022,5105819263,90753,The Children'S Society Services Ltd
Manchester City Council,Manchester Leisure,Third party payments relating to Voluntary Organisations,30/06/2022,5105822894,690,Afrocats
Manchester City Council,Manchester Leisure,Outdoor Recreation,10/06/2022,1907762786,773.25,Friends of Heaton Hall
Manchester City Council,Manchester Leisure,Works and associated costs for Land and Buildings,20/06/2022,5105820357,1979934.56,ISG Construction Limited
Manchester City Council,Manchester Leisure,Works and associated costs for Land and Buildings,30/06/2022,5105821628,1125,Urban Green Space Limited
Manchester City Council,Manchester Leisure,Works and associated costs for Land and Buildings,30/06/2022,5105822605,1687.5,Urban Green Space Limited
Manchester City Council,Manchester Leisure,Works and associated costs for Land and Buildings,28/06/2022,5105822463,-2549.5,Brentwood Moss Nurseries
Manchester City Council,Manchester Leisure,Works and associated costs for Land and Buildings,30/06/2022,5105819213,14770.35,Wicksteed Leisure Ltd
Manchester City Council,Manchester Leisure,Works and associated costs for Land and Buildings,20/06/2022,5105820248,2152908.94,Kier Construction North and
Manchester City Council,Manchester Leisure,Works and associated costs for Land and Buildings,28/06/2022,5105821649,1404191.06,Kier Construction North and
Manchester City Council,Libraries and Theatres,Training and Development,23/06/2022,5105821853,2175,LGV4U Ltd
Manchester City Council,Libraries and Theatres,Training and Development,30/06/2022,5105822131,2945,Salford Professional Development
Manchester City Council,Libraries and Theatres,Works and associated costs for Land and Buildings,07/06/2022,5105819226,17130.75,Robertson Construction Group
Manchester City Council,Libraries and Theatres,Vehicle Plant Furniture and Equipment,30/06/2022,5105822960,2474.65,H Jenkinson & Co Ltd.
Manchester City Council,Hospitality + Trading Services,Internal Repairs and Maintenance for buildings,20/06/2022,5105821330,14686,Facultatieve Technologies Ltd
Manchester City Council,Hospitality + Trading Services,External repairs and maintenance for buildings,08/06/2022,1907762826,1950,Redacted Personal Information
Manchester City Council,Hospitality + Trading Services,External repairs and maintenance for buildings,08/06/2022,1907762827,1975,Redacted Personal Information
Manchester City Council,Hospitality + Trading Services,Rents,13/06/2022,1907765578,32758.75,CBRE Ltd
Manchester City Council,Hospitality + Trading Services,Cleaning Equipment and Materials,17/06/2022,1907777196,700.85,PHS Group
Manchester City Council,Hospitality + Trading Services,Cleaning Equipment and Materials,17/06/2022,1907777197,715.45,PHS Group
Manchester City Council,Hospitality + Trading Services,Cleaning Equipment and Materials,17/06/2022,1907777209,1552.46,PHS Group
Manchester City Council,Hospitality + Trading Services,Cleaning Equipment and Materials,17/06/2022,1907777210,1574.39,PHS Group
Manchester City Council,Childrens & Education Services,Cleaning Equipment and Materials,17/06/2022,1907777191,627.34,PHS Group
Manchester City Council,Hospitality + Trading Services,Security,30/06/2022,5105822487,652,Dante Fire & Security Ltd
Manchester City Council,Hospitality + Trading Services,Security,30/06/2022,5105822489,702.45,Dante Fire & Security Ltd
Manchester City Council,Hospitality + Trading Services,Equipment,06/06/2022,5105818986,620.5,Dante Fire & Security Ltd
Manchester City Council,Hospitality + Trading Services,Equipment,06/06/2022,5105818988,669,Dante Fire & Security Ltd
Manchester City Council,Hospitality + Trading Services,Vehicle Fuel Costs,10/06/2022,5105819747,1289.89,Standard Fuels Oils
Manchester City Council,Hospitality + Trading Services,Vehicle Fuel Costs,13/06/2022,5105820303,20838.99,Standard Fuels Oils
Manchester City Council,Hospitality + Trading Services,Vehicle Fuel Costs,14/06/2022,5105819650,20972.82,Standard Fuels Oils
Manchester City Council,Hospitality + Trading Services,Vehicle Fuel Costs,20/06/2022,5105820332,16798.94,Standard Fuels Oils
Manchester City Council,Hospitality + Trading Services,Vehicle Fuel Costs,21/06/2022,5105821403,22556.96,Standard Fuels Oils
Manchester City Council,Hospitality + Trading Services,Vehicle Fuel Costs,23/06/2022,5105820894,20595.46,Standard Fuels Oils
Manchester City Council,Hospitality + Trading Services,Vehicle Fuel Costs,30/06/2022,5105822401,13560.42,Standard Fuels Oils
Manchester City Council,Hospitality + Trading Services,Vehicle Costs,06/06/2022,5105819062,1390.65,Verizon Connect UK Ltd
Manchester City Council,Hospitality + Trading Services,Insurance,07/06/2022,1907757915,3553.78,Zurich Municipal
Manchester City Council,Hospitality + Trading Services,Vehicle Hire Costs,10/06/2022,5105819591,24266,F.R.Sharrock Ltd
Manchester City Council,Hospitality + Trading Services,Vehicle Hire Costs,10/06/2022,5105819875,1295,F.R.Sharrock Ltd
Manchester City Council,Hospitality + Trading Services,Vehicle Hire Costs,10/06/2022,5105819941,2338.6,F.R.Sharrock Ltd
Manchester City Council,Hospitality + Trading Services,Vehicle Hire Costs,30/06/2022,5105823001,13456,F.R.Sharrock Ltd
Manchester City Council,Hospitality + Trading Services,Vehicle Hire Costs,10/06/2022,5105819706,2000,Peter Douglass Platforms
Manchester City Council,Hospitality + Trading Services,Vehicle Hire Costs,10/06/2022,5105819944,518,Peter Douglass Platforms
Manchester City Council,Hospitality + Trading Services,Vehicle Hire Costs,10/06/2022,5105819995,71171.95,Winners Contract Hire Ltd
Manchester City Council,Hospitality + Trading Services,Vehicle Hire Costs,24/06/2022,5105822065,3246.34,Winners Contract Hire Ltd
Manchester City Council,Hospitality + Trading Services,Vehicle Hire Costs,30/06/2022,5105822349,68394.1,Winners Contract Hire Ltd
Manchester City Council,Hospitality + Trading Services,Vehicle Repairs,24/06/2022,5105822097,5150.58,Winners Contract Hire Ltd
Manchester City Council,Hospitality + Trading Services,Vehicle Hire Costs,17/06/2022,5105821269,31546.46,Manchester Van Hire Ltd
Manchester City Council,Hospitality + Trading Services,Vehicle Repairs,17/06/2022,5105821270,2169.71,Manchester Van Hire Ltd
Manchester City Council,Hospitality + Trading Services,Vehicle Repairs,21/06/2022,5105821683,2343.17,Manchester Van Hire Ltd
Manchester City Council,Hospitality + Trading Services,Vehicle Repairs,21/06/2022,5105821684,1289.19,Manchester Van Hire Ltd
Manchester City Council,Hospitality + Trading Services,Vehicle Repairs,22/06/2022,5105821681,1289.19,Manchester Van Hire Ltd
Manchester City Council,Hospitality + Trading Services,Vehicle Repairs,22/06/2022,5105821682,-1289.19,Manchester Van Hire Ltd
Manchester City Council,Hospitality + Trading Services,Vehicle Hire Costs,23/06/2022,5105821825,2715.77,TIP Trailer Services UK Ltd
Manchester City Council,Childrens & Education Services,Professional fees,29/06/2022,5105822703,2500,Redacted Personal Information
Manchester City Council,Hospitality + Trading Services,Vehicle Hire Costs,24/06/2022,5105822068,741,Gibsons Garden Machinery Limited
Manchester City Council,Hospitality + Trading Services,Vehicle Hire Costs,24/06/2022,5105822070,741,Gibsons Garden Machinery Limited
Manchester City Council,Hospitality + Trading Services,Hire of Machinery,09/06/2022,5105819803,1150.8,Gibsons Garden Machinery Limited
Manchester City Council,Hospitality + Trading Services,Hire of Machinery,10/06/2022,5105819834,751.8,Gibsons Garden Machinery Limited
Manchester City Council,Hospitality + Trading Services,Hire of Machinery,10/06/2022,5105819835,751.8,Gibsons Garden Machinery Limited
Manchester City Council,Hospitality + Trading Services,Hire of Machinery,10/06/2022,5105820121,819,Gibsons Garden Machinery Limited
Manchester City Council,Hospitality + Trading Services,Hire of Machinery,10/06/2022,5105820123,819,Gibsons Garden Machinery Limited
Manchester City Council,Hospitality + Trading Services,Hire of Machinery,10/06/2022,5105820140,986.4,Gibsons Garden Machinery Limited
Manchester City Council,Hospitality + Trading Services,Hire of Machinery,10/06/2022,5105820141,1239,Gibsons Garden Machinery Limited
Manchester City Council,Hospitality + Trading Services,Hire of Machinery,10/06/2022,5105820142,1239,Gibsons Garden Machinery Limited
Manchester City Council,Hospitality + Trading Services,Hire of Machinery,10/06/2022,5105820152,644.4,Gibsons Garden Machinery Limited
Manchester City Council,Hospitality + Trading Services,Hire of Machinery,10/06/2022,5105820156,644.4,Gibsons Garden Machinery Limited
Manchester City Council,Hospitality + Trading Services,Machinery and equipment repairs,10/06/2022,5105820198,1648.31,Gibsons Garden Machinery Limited
Manchester City Council,Hospitality + Trading Services,Vehicle Hire Costs,28/06/2022,5105822522,3823.47,Fleet Dynamic Consultancy Ltd
Manchester City Council,Hospitality + Trading Services,Vehicle Hire Costs,30/06/2022,5105819946,1826.56,Enterprise Flex-E-Rent
Manchester City Council,Hospitality + Trading Services,Vehicle Repairs,30/06/2022,5105822557,2026.51,Advanced Vehicle Technicians Ltd
Manchester City Council,Hospitality + Trading Services,Vehicle Repairs,30/06/2022,5105822558,1785,Advanced Vehicle Technicians Ltd
Manchester City Council,Hospitality + Trading Services,Equipment,23/06/2022,5105821660,1600,Emerge 3Rs (Recycling)
Manchester City Council,Hospitality + Trading Services,"Consumable items eg Toilet rolls, soap etc",17/06/2022,1907774907,928,WHICH?
Manchester City Council,Hospitality + Trading Services,Building Materials for direct delivery,17/06/2022,1907776135,787.5,SUMUP  *HEATON PARK GARDE
Manchester City Council,Hospitality + Trading Services,Hire of Machinery,09/06/2022,5105820075,2373,H & C Plant Hire Ltd
Manchester City Council,Hospitality + Trading Services,Hire of Machinery,10/06/2022,5105820148,1073.5,R & M Developments Ltd
Manchester City Council,Hospitality + Trading Services,Hire of Machinery,10/06/2022,5105820149,1073.5,R & M Developments Ltd
Manchester City Council,Hospitality + Trading Services,Hire of Machinery,16/06/2022,5105820973,511.33,R & M Developments Ltd
Manchester City Council,Hospitality + Trading Services,Hire of Machinery,16/06/2022,5105820974,606.67,R & M Developments Ltd
Manchester City Council,Hospitality + Trading Services,Hire of Machinery,16/06/2022,5105820975,511.33,R & M Developments Ltd
Manchester City Council,Hospitality + Trading Services,Hire of Machinery,17/06/2022,5105820976,606.67,R & M Developments Ltd
Manchester City Council,Hospitality + Trading Services,Hire of Machinery,17/06/2022,5105820977,511.33,R & M Developments Ltd
Manchester City Council,Hospitality + Trading Services,Hire of Machinery,17/06/2022,5105820978,606.67,R & M Developments Ltd
Manchester City Council,Hospitality + Trading Services,Hire of Machinery,17/06/2022,5105820979,511.33,R & M Developments Ltd
Manchester City Council,Hospitality + Trading Services,Hire of Machinery,17/06/2022,5105820980,511.33,R & M Developments Ltd
Manchester City Council,Hospitality + Trading Services,Hire of Machinery,17/06/2022,5105821011,541.67,R & M Developments Ltd
Manchester City Council,Hospitality + Trading Services,Hire of Machinery,17/06/2022,5105821012,541.67,R & M Developments Ltd
Manchester City Council,Hospitality + Trading Services,Hire of Machinery,29/06/2022,5105822735,644.1,R & M Developments Ltd
Manchester City Council,Environment and Operations,Construction Works,20/06/2022,5105820672,850,R & M Developments Ltd
Manchester City Council,Hospitality + Trading Services,Hire of Equipment,09/06/2022,5105820073,9175.2,Fast Hire UK
Manchester City Council,Hospitality + Trading Services,Machinery and equipment repairs,09/06/2022,5105820074,771.29,Fast Hire UK
Manchester City Council,Hospitality + Trading Services,Hire of Equipment,17/06/2022,5105821264,510.4,Mastacab LLP
Manchester City Council,Hospitality + Trading Services,Legal Fees,28/06/2022,1907788945,8197.5,Leigh Day Solicitors
Manchester City Council,Hospitality + Trading Services,Compensation Payments,28/06/2022,1907788945,27325,Leigh Day Solicitors
Manchester City Council,Hospitality + Trading Services,Professional fees,21/06/2022,1907776109,1350,Absolute DJ’s Ltd
Manchester City Council,Hospitality + Trading Services,Professional fees,30/06/2022,5105822929,500,Pennine Pump & Tank Co.
Manchester City Council,Hospitality + Trading Services,Compensation Payments,13/06/2022,1907766990,115422,Slater & Gordon (UK) LLP
Manchester City Council,Hospitality + Trading Services,Compensation Payments,29/06/2022,1907788956,15000,Slater & Gordon (UK) LLP
Manchester City Council,Hospitality + Trading Services,Compensation Payments,29/06/2022,1907789191,570,Neil Clifford and Co
Manchester City Council,Hospitality + Trading Services,Cash Collection,07/06/2022,1907737589,1564.29,G4S Cash Solutions (Uk) Ltd
Manchester City Council,Hospitality + Trading Services,Cash Collection,07/06/2022,1907755074,1564.29,G4S Cash Solutions (Uk) Ltd
Manchester City Council,Hospitality + Trading Services,Goods purchased for resale in Council outlets,06/06/2022,5105819126,2775,Albert Jones Memorials
Manchester City Council,Hospitality + Trading Services,Goods purchased for resale in Council outlets,06/06/2022,5105819212,2138,Albert Jones Memorials
Manchester City Council,Hospitality + Trading Services,Goods purchased for resale in Council outlets,21/06/2022,5105821223,1486,Albert Jones Memorials
Manchester City Council,Hospitality + Trading Services,Goods purchased for resale in Council outlets,22/06/2022,5105821668,-1657.2,Albert Jones Memorials
Manchester City Council,Hospitality + Trading Services,Goods purchased for resale in Council outlets,22/06/2022,5105821669,1381,Albert Jones Memorials
Manchester City Council,Hospitality + Trading Services,Goods purchased for resale in Council outlets,22/06/2022,5105821670,-602.2,Albert Jones Memorials
Manchester City Council,Hospitality + Trading Services,Goods purchased for resale in Council outlets,22/06/2022,5105821711,3146,Albert Jones Memorials
Manchester City Council,Hospitality + Trading Services,Goods purchased for resale in Council outlets,27/06/2022,5105822285,1250,Albert Jones Memorials
Manchester City Council,Hospitality + Trading Services,Goods purchased for resale in Council outlets,27/06/2022,5105822286,2143,Albert Jones Memorials
Manchester City Council,Hospitality + Trading Services,Goods purchased for resale in Council outlets,20/06/2022,5105821226,691.75,Treasured Memories Ltd
Manchester City Council,Hospitality + Trading Services,Goods purchased for resale in Council outlets,30/06/2022,5105821880,1840,Granart Ltd
Manchester City Council,Environment and Operations,GRIR,09/06/2022,5105819896,-1200,Transport for Greater Manchester
Manchester City Council,Environment and Operations,GRIR,09/06/2022,5105819897,-1000,Transport for Greater Manchester
Manchester City Council,Environment and Operations,Construction Works,01/06/2022,5105819004,3794.33,Transport for Greater Manchester
Manchester City Council,Environment and Operations,Construction Works,01/06/2022,5105819044,-3794.33,Transport for Greater Manchester
Manchester City Council,Environment and Operations,Construction Works,07/06/2022,5105819046,3794.33,Transport for Greater Manchester
Manchester City Council,Environment and Operations,Construction Works,07/06/2022,5105819071,-3794.33,Transport for Greater Manchester
Manchester City Council,Environment and Operations,Construction Works,23/06/2022,5105821894,3794.33,Transport for Greater Manchester
Manchester City Council,Childrens & Education Services,Public Transport,06/06/2022,5105819007,33309.8,Transport for Greater Manchester
Manchester City Council,Childrens & Education Services,Public Transport,06/06/2022,5105819008,16800.4,Transport for Greater Manchester
Manchester City Council,Childrens & Education Services,Public Transport,06/06/2022,5105819009,18740.4,Transport for Greater Manchester
Manchester City Council,Environment and Operations,Storage Costs,22/06/2022,5105821751,798.75,Lighthouse Security Limited
Manchester City Council,Environment and Operations,Construction Works,01/06/2022,5105819030,6916.74,Ventbrook
Manchester City Council,Environment and Operations,Construction Works,30/06/2022,5105819393,4941.32,Ventbrook
Manchester City Council,Environment and Operations,Construction Works,06/06/2022,5105819128,-1000,Turner & Townsend Project
Manchester City Council,Environment and Operations,Construction Works,06/06/2022,5105819129,-1000,Turner & Townsend Project
Manchester City Council,Environment and Operations,Construction Works,06/06/2022,5105819346,-672.35,Bt Repayments And Claims Group
Manchester City Council,Environment and Operations,Construction Works,10/06/2022,5105820231,-2401.6,Bt Repayments And Claims Group
Manchester City Council,Environment and Operations,Construction Works,07/06/2022,5105819252,-529.68,Virgin Media Limited
Manchester City Council,Environment and Operations,Construction Works,07/06/2022,5105819321,8160.2,Wilde Consultants Ltd
Manchester City Council,Environment and Operations,Construction Works,16/06/2022,5105819309,2268.23,Wilde Consultants Ltd
Manchester City Council,Environment and Operations,Construction Works,10/06/2022,5105819006,48473.73,J.Hopkins (Contractors) Ltd.
Manchester City Council,Environment and Operations,Construction Works,22/06/2022,5105821699,124000,J.Hopkins (Contractors) Ltd.
Manchester City Council,Environment and Operations,Construction Works,10/06/2022,5105819257,1487.52,Steer Davies & Geave Limited
Manchester City Council,Environment and Operations,Construction Works,27/06/2022,5105821480,6003.84,Steer Davies & Geave Limited
Manchester City Council,Environment and Operations,Construction Works,27/06/2022,5105821980,3808.33,Steer Davies & Geave Limited
Manchester City Council,Environment and Operations,Construction Works,10/06/2022,5105819666,700,Stockport Metropolitan Borough
Manchester City Council,Environment and Operations,Construction Works,13/06/2022,5105819922,2000,Box Clever Theatre Company
Manchester City Council,Environment and Operations,Construction Works,17/06/2022,5105820787,750,Box Clever Theatre Company
Manchester City Council,Environment and Operations,Construction Works,22/06/2022,5105820788,1500,Box Clever Theatre Company
Manchester City Council,Environment and Operations,Construction Works,22/06/2022,5105820789,1250,Box Clever Theatre Company
Manchester City Council,Environment and Operations,Construction Works,15/06/2022,5105820532,68992.08,Bethell Construction Ltd
Manchester City Council,Environment and Operations,Construction Works,15/06/2022,5105820533,64217.08,Bethell Construction Ltd
Manchester City Council,Environment and Operations,Construction Works,15/06/2022,5105820534,27253.99,Bethell Construction Ltd
Manchester City Council,Environment and Operations,Construction Works,15/06/2022,5105820535,200000,Bethell Construction Ltd
Manchester City Council,Environment and Operations,Construction Works,15/06/2022,5105820536,33301.47,Bethell Construction Ltd
Manchester City Council,Environment and Operations,Construction Works,16/06/2022,5105819232,7581,Civic Engineers
Manchester City Council,Environment and Operations,Construction Works,21/06/2022,5105821457,31350,Kiely Bros Ltd
Manchester City Council,Environment and Operations,Construction Works,21/06/2022,5105821458,-31350,Kiely Bros Ltd
Manchester City Council,Environment and Operations,Construction Works,22/06/2022,5105821454,77108.65,Kiely Bros Ltd
Manchester City Council,Environment and Operations,Construction Works,22/06/2022,5105821456,151600,Kiely Bros Ltd
Manchester City Council,Environment and Operations,Construction Works,30/06/2022,5105822623,64080,Yunex Ltd
Manchester City Council,Environment and Operations,Construction Works,30/06/2022,5105820310,3935.32,Balfour Beatty Living Places Ltd
Manchester City Council,Environment and Operations,Construction Works,30/06/2022,5105820311,523.79,Balfour Beatty Living Places Ltd
Manchester City Council,Environment and Operations,Construction Works,30/06/2022,5105820313,14473.68,Balfour Beatty Living Places Ltd
Manchester City Council,Environment and Operations,Construction Works,30/06/2022,5105820314,3888.06,Balfour Beatty Living Places Ltd
Manchester City Council,Environment and Operations,Construction Works,30/06/2022,5105820316,8564.63,Balfour Beatty Living Places Ltd
Manchester City Council,Environment and Operations,Construction Works,30/06/2022,5105821041,234171.75,Balfour Beatty Living Places Ltd
Manchester City Council,Environment and Operations,Construction Works,30/06/2022,5105821687,23400,Rosgal Ltd
Manchester City Council,Childrens & Education Services,Agency staff provision,09/06/2022,5105819685,2400,Tameside Metropolitan Bouough
Manchester City Council,Childrens & Education Services,Agency staff provision,27/06/2022,5105822302,16775.5,Staff Resources Ltd
Manchester City Council,Childrens & Education Services,Agency staff provision,30/06/2022,5105822880,23580,Staff Resources Ltd
Manchester City Council,Childrens & Education Services,Training and Development,29/06/2022,5105822436,2130,Right 2 Write Ltd
Manchester City Council,Childrens & Education Services,Training and Development,10/06/2022,5105820179,88890,One Education Ltd
Manchester City Council,Childrens & Education Services,Training and Development,30/06/2022,5105821686,5575,One Education Ltd
Manchester City Council,Childrens & Education Services,Professional fees,07/06/2022,5105819269,1750,One Education Ltd
Manchester City Council,Childrens & Education Services,Internal Repairs and Maintenance for buildings,09/06/2022,5105819691,3027,Manchester School Services Limited
Manchester City Council,Childrens & Education Services,Internal Repairs and Maintenance for buildings,16/06/2022,5105820981,1548.67,Manchester School Services Limited
Manchester City Council,Childrens & Education Services,Gas,07/06/2022,5105819390,17749.02,Manchester School Services Limited
Manchester City Council,Childrens & Education Services,Private Finance and Public Private partnership initiatives,07/06/2022,5105819389,426185.25,Manchester School Services Limited
Manchester City Council,Childrens & Education Services,Electricity,23/06/2022,1907780483,517.26,Total Gas & Power
Manchester City Council,Childrens & Education Services,Transport Coach Hire,01/06/2022,5105819051,10925.2,Redacted Personal Information
Manchester City Council,Childrens & Education Services,Transport Coach Hire,01/06/2022,5105819053,20780.64,Redacted Personal Information
Manchester City Council,Childrens & Education Services,Rents,06/06/2022,5105819255,7843.66,Partners Of Prisoners & Families
Manchester City Council,Childrens & Education Services,Rents,30/06/2022,1907775071,11345.71,Fairhurst Estates Ltd
Manchester City Council,Childrens & Education Services,Rates,22/06/2022,5105821661,1055.15,Brighter Beginnings (Newton Heath)
Manchester City Council,Childrens & Education Services,Rates,28/06/2022,5105822438,771.24,Brighter Beginnings (Newton Heath)
Manchester City Council,Childrens & Education Services,Contract Cleaning External,27/06/2022,5105822362,551,Freshwave Cleaning Services Ltd
Manchester City Council,Childrens & Education Services,Storage Costs,22/06/2022,5105821642,3497.27,Restore PLC
Manchester City Council,Childrens & Education Services,Storage Costs,22/06/2022,5105821643,2251.58,Restore PLC
Manchester City Council,Childrens & Education Services,Hire of Premises,08/06/2022,5105819387,510.83,The Monastery Manchester Ltd
Manchester City Council,Childrens & Education Services,Hire of Premises,08/06/2022,5105819388,660,The Monastery Manchester Ltd
Manchester City Council,Childrens & Education Services,Hire of Premises,27/06/2022,5105822172,526.5,The St Thomas Centre Ltd
Manchester City Council,Childrens & Education Services,Hire of Premises,30/06/2022,5105821818,526.5,GMCVO
Manchester City Council,Childrens & Education Services,Fixtures and Fitting,17/06/2022,1907774897,934.99,Lockhart Catering Equipment Ltd
Manchester City Council,Childrens & Education Services,Fixtures and Fitting,17/06/2022,1907774914,786.94,Lockhart Catering Equipment Ltd
Manchester City Council,Childrens & Education Services,Fixtures and Fitting,17/06/2022,1907775104,586.95,Lockhart Catering Equipment Ltd
Manchester City Council,Childrens & Education Services,Fixtures and Fitting,17/06/2022,1907775428,980.95,Lockhart Catering Equipment Ltd
Manchester City Council,Childrens & Education Services,Fixtures and Fitting,17/06/2022,1907775969,701.95,Lockhart Catering Equipment Ltd
Manchester City Council,Childrens & Education Services,Fixtures and Fitting,17/06/2022,1907775980,681.95,Lockhart Catering Equipment Ltd
Manchester City Council,Childrens & Education Services,Equipment,22/06/2022,1700135258,-512.95,Lockhart Catering Equipment Ltd
Manchester City Council,Childrens & Education Services,Furniture,10/06/2022,1907766500,526.95,Lockhart Catering Equipment Ltd
Manchester City Council,Childrens & Education Services,Vehicle Parts/Spares,21/06/2022,5105821484,555,The Windmill Special Need Co Ltd
Manchester City Council,Childrens & Education Services,Transport Taxis,06/06/2022,1907751500,1327.87,Cresta Car Hire
Manchester City Council,Childrens & Education Services,Transport Taxis,13/06/2022,1907759259,1415.43,Cresta Car Hire
Manchester City Council,Childrens & Education Services,Transport Taxis,13/06/2022,1907764516,2005.91,Cresta Car Hire
Manchester City Council,Childrens & Education Services,Transport Taxis,21/06/2022,1907774729,2054.58,Cresta Car Hire
Manchester City Council,Childrens & Education Services,Transport Coach Hire,30/06/2022,5105821173,750.1,Cresta Car Hire
Manchester City Council,Childrens & Education Services,Transport Coach Hire,30/06/2022,5105821174,1354.7,Cresta Car Hire
Manchester City Council,Childrens & Education Services,Transport Coach Hire,30/06/2022,5105821176,803.8,Cresta Car Hire
Manchester City Council,Childrens & Education Services,Transport Coach Hire,30/06/2022,5105821177,1600.1,Cresta Car Hire
Manchester City Council,Childrens & Education Services,Transport Coach Hire,30/06/2022,5105822089,760,Cresta Car Hire
Manchester City Council,Childrens & Education Services,Transport Coach Hire,06/06/2022,5105819229,98249,Communitytransportservices.co.uk
Manchester City Council,Childrens & Education Services,Transport Coach Hire,07/06/2022,5105819283,14590,CW Travel
Manchester City Council,Childrens & Education Services,Transport Coach Hire,07/06/2022,5105819454,-14590,CW Travel
Manchester City Council,Childrens & Education Services,Transport Coach Hire,07/06/2022,5105819461,14115,CW Travel
Manchester City Council,Childrens & Education Services,Transport Coach Hire,07/06/2022,5105819318,2090,JKR Travel
Manchester City Council,Childrens & Education Services,Transport Coach Hire,09/06/2022,5105819292,3990,D.J. Minibus Travel
Manchester City Council,Childrens & Education Services,Transport Coach Hire,09/06/2022,5105819334,1890,D.J. Minibus Travel
Manchester City Council,Childrens & Education Services,Transport Coach Hire,09/06/2022,5105819702,-3990,D.J. Minibus Travel
Manchester City Council,Childrens & Education Services,Transport Coach Hire,30/06/2022,5105819800,3990,D.J. Minibus Travel
Manchester City Council,Childrens & Education Services,Transport Coach Hire,09/06/2022,5105819352,5177,AA Buses
Manchester City Council,Childrens & Education Services,Transport Coach Hire,09/06/2022,5105819353,2831,Home to School Travel Ltd
Manchester City Council,Childrens & Education Services,Transport Coach Hire,09/06/2022,5105820011,5472,Street Cars
Manchester City Council,Childrens & Education Services,Transport Coach Hire,29/06/2022,5105822770,5000,Street Cars
Manchester City Council,Childrens & Education Services,Transport Coach Hire,13/06/2022,5105819468,2470,Middleton Cars Ltd
Manchester City Council,Childrens & Education Services,Transport Coach Hire,20/06/2022,5105819473,880,Middleton Cars Ltd
Manchester City Council,Childrens & Education Services,Transport Coach Hire,20/06/2022,5105819475,740,Middleton Cars Ltd
Manchester City Council,Childrens & Education Services,Transport Coach Hire,20/06/2022,5105819482,2280,Middleton Cars Ltd
Manchester City Council,Childrens & Education Services,Transport Coach Hire,13/06/2022,5105820183,14294.75,Royton Minibuses Ltd
Manchester City Council,Childrens & Education Services,Transport Coach Hire,21/06/2022,5105819319,26367.25,Royton Minibuses Ltd
Manchester City Council,Childrens & Education Services,Transport Coach Hire,16/06/2022,5105820940,2280,Ibuses
Manchester City Council,Childrens & Education Services,Transport Coach Hire,17/06/2022,5105821273,57673.5,Mantax Radio Taxis Ltd
Manchester City Council,Childrens & Education Services,Transport Coach Hire,17/06/2022,5105821274,35989,Mantax Radio Taxis Ltd
Manchester City Council,Childrens & Education Services,Transport Coach Hire,20/06/2022,5105819305,12139,Sumi Travel Ltd.
Manchester City Council,Childrens & Education Services,Transport Coach Hire,20/06/2022,5105819951,7448,MS Minibuses Ltd
Manchester City Council,Childrens & Education Services,Transport Coach Hire,20/06/2022,5105820409,10051,Schools Direct
Manchester City Council,Childrens & Education Services,Transport Coach Hire,21/06/2022,5105819396,17504,M Travel
Manchester City Council,Childrens & Education Services,Transport Coach Hire,21/06/2022,5105819397,34656,M Travel
Manchester City Council,Childrens & Education Services,Transport Coach Hire,21/06/2022,5105820578,2090,Exec-Coach Services
Manchester City Council,Childrens & Education Services,Transport Coach Hire,21/06/2022,5105821359,990,Exec-Coach Services
Manchester City Council,Childrens & Education Services,Transport Coach Hire,21/06/2022,5105821520,866.4,Westfield Minibuses
Manchester City Council,Childrens & Education Services,Transport Coach Hire,21/06/2022,5105821544,684,Westfield Minibuses
Manchester City Council,Childrens & Education Services,Transport Coach Hire,21/06/2022,5105821552,1048.8,Westfield Minibuses
Manchester City Council,Childrens & Education Services,Transport Coach Hire,21/06/2022,5105821559,770,Westfield Minibuses
Manchester City Council,Childrens & Education Services,Transport Coach Hire,22/06/2022,5105819016,101621.06,Westfield Minibuses
Manchester City Council,Childrens & Education Services,Transport Coach Hire,30/06/2022,5105821591,592.8,Westfield Minibuses
Manchester City Council,Childrens & Education Services,Transport Coach Hire,22/06/2022,5105819278,8796,New City Cars Ltd
Manchester City Council,Childrens & Education Services,Transport Coach Hire,22/06/2022,5105819740,16876,Parkway Cabs & Cars
Manchester City Council,Childrens & Education Services,Transport Coach Hire,22/06/2022,5105820112,3040,PDR Travel Ltd
Manchester City Council,Childrens & Education Services,Transport Coach Hire,24/06/2022,5105822099,-1580,PDR Travel Ltd
Manchester City Council,Childrens & Education Services,Transport Coach Hire,24/06/2022,5105822100,-3430,PDR Travel Ltd
Manchester City Council,Childrens & Education Services,Transport Coach Hire,24/06/2022,5105822111,1580,PDR Travel Ltd
Manchester City Council,Childrens & Education Services,Transport Coach Hire,30/06/2022,5105822280,6030,PDR Travel Ltd
Manchester City Council,Childrens & Education Services,Transport Coach Hire,23/06/2022,5105819322,1697.78,Youbus Ltd
Manchester City Council,Childrens & Education Services,Transport Coach Hire,23/06/2022,5105819745,13036,Youbus Ltd
Manchester City Council,Childrens & Education Services,Transport Coach Hire,23/06/2022,5105819656,3657.5,Ricks Travel
Manchester City Council,Childrens & Education Services,Transport Coach Hire,28/06/2022,5105821281,18299.25,MCR Blackcab Ltd
Manchester City Council,Childrens & Education Services,Transport Coach Hire,28/06/2022,5105821282,3867.01,MCR Blackcab Ltd
Manchester City Council,Childrens & Education Services,Transport Coach Hire,28/06/2022,5105821489,4056.46,MCR Blackcab Ltd
Manchester City Council,Childrens & Education Services,Transport Coach Hire,28/06/2022,5105821490,9285.71,MCR Blackcab Ltd
Manchester City Council,Childrens & Education Services,Transport Coach Hire,28/06/2022,5105821501,4858.9,MCR Blackcab Ltd
Manchester City Council,Childrens & Education Services,Transport Coach Hire,28/06/2022,5105821502,2769.12,MCR Blackcab Ltd
Manchester City Council,Childrens & Education Services,Professional fees,10/06/2022,1907762761,750,Redacted Personal Information
Manchester City Council,Childrens & Education Services,Transport Coach Hire,29/06/2022,5105822592,-8613,School Transport Solutions
Manchester City Council,Childrens & Education Services,Transport Coach Hire,29/06/2022,5105822593,8613,School Transport Solutions
Manchester City Council,Childrens & Education Services,Transport Coach Hire,30/06/2022,5105819705,3270,RK Travel Ltd
Manchester City Council,Childrens & Education Services,Transport Coach Hire,30/06/2022,5105821374,990,Connect Cars Ltd
Manchester City Council,Childrens & Education Services,Transport Coach Hire,30/06/2022,5105819355,3469,David'S Handy Rider
Manchester City Council,Childrens & Education Services,Transport Coach Hire,30/06/2022,5105820843,9549.5,MCR Elite Taxis Ltd
Manchester City Council,Childrens & Education Services,Transport Coach Hire,30/06/2022,5105819359,5225,Liddle Hackney Carriage
Manchester City Council,Childrens & Education Services,Transport Coach Hire,30/06/2022,5105820291,4180,Liddle Hackney Carriage
Manchester City Council,Childrens & Education Services,Transport Coach Hire,30/06/2022,5105820292,5475,Liddle Hackney Carriage
Manchester City Council,Childrens & Education Services,Transport Coach Hire,30/06/2022,5105820364,4225.2,Club Radio Cars Manchester Ltd
Manchester City Council,Childrens & Education Services,Transport Coach Hire,30/06/2022,5105820686,11400,Galaxy Transport (Manchester) Ltd
Manchester City Council,Childrens & Education Services,Transport Coach Hire,30/06/2022,5105822298,17188.9,Hastings Private Hire
Manchester City Council,Childrens & Education Services,Transport Coach Hire,30/06/2022,5105822299,540,Hastings Private Hire
Manchester City Council,Childrens & Education Services,Transport Coach Hire,30/06/2022,5105819230,95633,APTSL
Manchester City Council,Childrens & Education Services,Equipment,09/06/2022,5105819766,1733,Ability Smart Ltd
Manchester City Council,Childrens & Education Services,Equipment,09/06/2022,5105819774,-1733,Ability Smart Ltd
Manchester City Council,Childrens & Education Services,Equipment,09/06/2022,5105819776,1733,Ability Smart Ltd
Manchester City Council,Childrens & Education Services,Professional fees,15/06/2022,5105820537,612,Ability Smart Ltd
Manchester City Council,Childrens & Education Services,Equipment,22/06/2022,1700135252,-1115,HOLIDAY PAYMENT AVR
Manchester City Council,Childrens & Education Services,Equipment,22/06/2022,1700135254,-3092,OFSTED INTERNET
Manchester City Council,Childrens & Education Services,Equipment,22/06/2022,1700135255,-600,HOTELSCOM9166773783644
Manchester City Council,Childrens & Education Services,Equipment,22/06/2022,1700135257,-739,NORMANHURST HOTEL
Manchester City Council,Childrens & Education Services,Equipment,22/06/2022,1700135280,-1031.2,NFEE2215571M UKVI
Manchester City Council,Childrens & Education Services,Equipment,22/06/2022,1700135281,-1031.2,NFEE2215572M UKVI
Manchester City Council,Childrens & Education Services,Furniture,10/06/2022,5105820229,956.85,Eps Supplies Ltd
Manchester City Council,Childrens & Education Services,Furniture,10/06/2022,5105820230,1173.59,Eps Supplies Ltd
Manchester City Council,Childrens & Education Services,Furniture,10/06/2022,5105820251,700,Eps Supplies Ltd
Manchester City Council,Childrens & Education Services,Furniture,14/06/2022,5105820587,534.97,Eps Supplies Ltd
Manchester City Council,Childrens & Education Services,Furniture,23/06/2022,5105822125,553.39,Eps Supplies Ltd
Manchester City Council,Childrens & Education Services,Professional fees,27/06/2022,1907779892,937.5,Redacted Personal Information
Manchester City Council,Childrens & Education Services,"Consumable items eg Toilet rolls, soap etc",08/06/2022,5105819517,564,Cellmark
Manchester City Council,Childrens & Education Services,"Consumable items eg Toilet rolls, soap etc",17/06/2022,5105821016,649,Cellmark
Manchester City Council,Childrens & Education Services,"Consumable items eg Toilet rolls, soap etc",17/06/2022,5105821017,899,Cellmark
Manchester City Council,Childrens & Education Services,Professional fees,16/06/2022,5105820774,649,Cellmark
Manchester City Council,Childrens & Education Services,"Consumable items eg Toilet rolls, soap etc",10/06/2022,1907766483,594,WWW.ADASS.ORG.UK
Manchester City Council,Childrens & Education Services,"Consumable items eg Toilet rolls, soap etc",17/06/2022,1907774980,1000,APPNTECH OUTLET
Manchester City Council,Childrens & Education Services,"Consumable items eg Toilet rolls, soap etc",17/06/2022,1907775713,500,APPNTECH OUTLET
Manchester City Council,Childrens & Education Services,"Consumable items eg Toilet rolls, soap etc",17/06/2022,1907775750,640,APPNTECH OUTLET
Manchester City Council,Childrens & Education Services,"Consumable items eg Toilet rolls, soap etc",17/06/2022,1907775970,500,APPNTECH OUTLET
Manchester City Council,Childrens & Education Services,"Consumable items eg Toilet rolls, soap etc",17/06/2022,1907775954,958.8,WWW.LUXINN.CO.UK
Manchester City Council,Childrens & Education Services,Bed & Breakfast Acc,10/06/2022,1907766578,963.9,WWW.LUXINN.CO.UK
Manchester City Council,Childrens & Education Services,"Consumable items eg Toilet rolls, soap etc",17/06/2022,1907775986,787,Her Majesty's Passport Office
Manchester City Council,Childrens & Education Services,Training and Development,28/06/2022,5105822415,2824.95,HumanWare
Manchester City Council,Childrens & Education Services,Grant Payments,08/06/2022,1907764381,12475.56,Paypoint
Manchester City Council,Childrens & Education Services,Grant Payments,27/06/2022,1907788193,12475.56,Paypoint
Manchester City Council,Childrens & Education Services,General Office expenses,14/06/2022,1907768043,11288.66,Paypoint
Manchester City Council,Childrens & Education Services,Grant Payments,27/06/2022,5105822337,3216,Ofsted
Manchester City Council,Childrens & Education Services,Grant and subscriptions awarded,09/06/2022,5105819863,-3092,Ofsted
Manchester City Council,Childrens & Education Services,Grant and subscriptions awarded,09/06/2022,5105819866,-2557,Ofsted
Manchester City Council,Childrens & Education Services,Catering Provisions,20/06/2022,1907777865,45004.1,Ralph Livesey Ltd
Manchester City Council,Childrens & Education Services,Catering,10/06/2022,5105820039,15075,Manchester Central
Manchester City Council,Childrens & Education Services,General Office expenses,17/06/2022,1907774869,581.28,EE / Orange
Manchester City Council,Childrens & Education Services,Legal Fees,01/06/2022,1907762170,25825,Pizzey Porritt Partnership Ltd
Manchester City Council,Childrens & Education Services,Legal Fees,08/06/2022,5105819580,-4926.15,Warwickshire County Council
Manchester City Council,Childrens & Education Services,Professional fees,08/06/2022,5105819531,1436.82,Warwickshire County Council
Manchester City Council,Childrens & Education Services,Professional fees,08/06/2022,5105819534,3762.83,Warwickshire County Council
Manchester City Council,Childrens & Education Services,Professional fees,08/06/2022,5105819535,1388.78,Warwickshire County Council
Manchester City Council,Childrens & Education Services,Professional fees,08/06/2022,5105819537,1512.3,Warwickshire County Council
Manchester City Council,Childrens & Education Services,Professional fees,08/06/2022,5105819539,554.82,Warwickshire County Council
Manchester City Council,Childrens & Education Services,Professional fees,08/06/2022,5105819576,1491.42,Warwickshire County Council
Manchester City Council,Childrens & Education Services,Professional fees,08/06/2022,5105819577,809.17,Warwickshire County Council
Manchester City Council,Childrens & Education Services,Professional fees,08/06/2022,5105819578,698.74,Warwickshire County Council
Manchester City Council,Childrens & Education Services,Professional fees,08/06/2022,5105819579,1216.7,Warwickshire County Council
Manchester City Council,Childrens & Education Services,Professional fees,14/06/2022,5105820429,3699.47,Warwickshire County Council
Manchester City Council,Childrens & Education Services,Professional fees,14/06/2022,5105820430,711.7,Warwickshire County Council
Manchester City Council,Childrens & Education Services,Professional fees,14/06/2022,5105820441,1534.46,Warwickshire County Council
Manchester City Council,Childrens & Education Services,Professional fees,14/06/2022,5105820442,817.15,Warwickshire County Council
Manchester City Council,Childrens & Education Services,Professional fees,14/06/2022,5105820443,1149.93,Warwickshire County Council
Manchester City Council,Childrens & Education Services,Professional fees,14/06/2022,5105820444,1070.65,Warwickshire County Council
Manchester City Council,Childrens & Education Services,Professional fees,14/06/2022,5105820445,1961.47,Warwickshire County Council
Manchester City Council,Childrens & Education Services,Professional fees,14/06/2022,5105820447,-2722.96,Warwickshire County Council
Manchester City Council,Childrens & Education Services,Professional fees,14/06/2022,5105820448,862.1,Warwickshire County Council
Manchester City Council,Childrens & Education Services,Professional fees,15/06/2022,5105820531,1053.92,Warwickshire County Council
Manchester City Council,Childrens & Education Services,Professional fees,21/06/2022,5105820769,681.01,Warwickshire County Council
Manchester City Council,Childrens & Education Services,Professional fees,21/06/2022,5105820775,-3886.75,Warwickshire County Council
Manchester City Council,Childrens & Education Services,Professional fees,21/06/2022,5105820877,1396.87,Warwickshire County Council
Manchester City Council,Childrens & Education Services,Professional fees,21/06/2022,5105821534,2404.67,Warwickshire County Council
Manchester City Council,Childrens & Education Services,Professional fees,21/06/2022,5105821535,2039.24,Warwickshire County Council
Manchester City Council,Childrens & Education Services,Professional fees,21/06/2022,5105821536,1850.37,Warwickshire County Council
Manchester City Council,Childrens & Education Services,Professional fees,22/06/2022,5105821634,2968.68,Warwickshire County Council
Manchester City Council,Childrens & Education Services,Professional fees,22/06/2022,5105821635,3132,Warwickshire County Council
Manchester City Council,Childrens & Education Services,Professional fees,28/06/2022,5105822446,1773.08,Warwickshire County Council
Manchester City Council,Childrens & Education Services,Legal Fees,13/06/2022,1907762749,3812.2,Batley Law Ltd
Manchester City Council,Childrens & Education Services,Legal Fees,13/06/2022,1907767011,875,DEANS COURT CHAMBERS
Manchester City Council,Childrens & Education Services,Professional fees,01/06/2022,1907760335,960,DEANS COURT CHAMBERS
Manchester City Council,Childrens & Education Services,Legal Fees,16/06/2022,5105820885,700.5,Alpha Biolaboratories Limited
Manchester City Council,Childrens & Education Services,Legal Fees,22/06/2022,5105821724,665,Alpha Biolaboratories Limited
Manchester City Council,Childrens & Education Services,Legal Fees,21/06/2022,5105821537,2910,Redacted Personal Information
Manchester City Council,Childrens & Education Services,Legal Fees,29/06/2022,1907737339,540,Redacted Personal Information
Manchester City Council,Childrens & Education Services,Legal Fees,29/06/2022,1907751526,540,Redacted Personal Information
Manchester City Council,Childrens & Education Services,Legal Fees,29/06/2022,1907759224,853.5,Weightmans LLP Solicitors
Manchester City Council,Childrens & Education Services,Professional fees,13/06/2022,5105820204,7439.5,Weightmans LLP Solicitors
Manchester City Council,Childrens & Education Services,Professional fees,13/06/2022,5105820221,10679.7,Weightmans LLP Solicitors
Manchester City Council,Childrens & Education Services,Professional fees,21/06/2022,5105821479,3418.75,Weightmans LLP Solicitors
Manchester City Council,Childrens & Education Services,Signers/Interpreters,20/06/2022,5105821204,636.6,Language Line Ltd
Manchester City Council,Childrens & Education Services,Signers/Interpreters,21/06/2022,5105821373,1524.8,Language Line Ltd
Manchester City Council,Childrens & Education Services,Signers/Interpreters,22/06/2022,5105821744,583.2,Language Line Ltd
Manchester City Council,Childrens & Education Services,Professional fees,01/06/2022,1907759223,600,Redacted Personal Information
Manchester City Council,Childrens & Education Services,Professional fees,06/06/2022,1907750447,2000,Manchester Street Poem
Manchester City Council,Childrens & Education Services,Professional fees,06/06/2022,1907753469,500,Redacted Personal Information
Manchester City Council,Childrens & Education Services,Professional fees,06/06/2022,5105818929,787.5,Prospero Teaching
Manchester City Council,Childrens & Education Services,Professional fees,15/06/2022,5105820687,787.5,Prospero Teaching
Manchester City Council,Childrens & Education Services,Professional fees,22/06/2022,5105821783,787.5,Prospero Teaching
Manchester City Council,Childrens & Education Services,Professional fees,23/06/2022,5105821766,787.5,Prospero Teaching
Manchester City Council,Childrens & Education Services,Professional fees,23/06/2022,5105821784,630,Prospero Teaching
Manchester City Council,Childrens & Education Services,Professional fees,23/06/2022,5105821815,500,Prospero Teaching
Manchester City Council,Childrens & Education Services,Professional fees,23/06/2022,5105821817,500,Prospero Teaching
Manchester City Council,Childrens & Education Services,Professional fees,23/06/2022,5105821884,500,Prospero Teaching
Manchester City Council,Childrens & Education Services,Professional fees,29/06/2022,5105822688,787.5,Prospero Teaching
Manchester City Council,Childrens & Education Services,Professional fees,08/06/2022,1907762768,550,Kenworthy's Chambers
Manchester City Council,Childrens & Education Services,Professional fees,08/06/2022,1907762781,550,Kenworthy's Chambers
Manchester City Council,Childrens & Education Services,Professional fees,17/06/2022,1907772696,550,Kenworthy's Chambers
Manchester City Council,Childrens & Education Services,Professional fees,20/06/2022,1907772684,550,Kenworthy's Chambers
Manchester City Council,Childrens & Education Services,Professional fees,30/06/2022,1907788950,550,Kenworthy's Chambers
Manchester City Council,Childrens & Education Services,Professional fees,30/06/2022,1907789192,750,Kenworthy's Chambers
Manchester City Council,Childrens & Education Services,Professional fees,30/06/2022,1907789235,550,Kenworthy's Chambers
Manchester City Council,Childrens & Education Services,Professional fees,08/06/2022,5105819540,8241.26,Russell & Russell Solicitors LLP
Manchester City Council,Childrens & Education Services,Professional fees,08/06/2022,5105819543,1312.5,Russell & Russell Solicitors LLP
Manchester City Council,Childrens & Education Services,Professional fees,08/06/2022,5105819544,1765.05,Russell & Russell Solicitors LLP
Manchester City Council,Childrens & Education Services,Professional fees,08/06/2022,5105819558,1651.9,Russell & Russell Solicitors LLP
Manchester City Council,Childrens & Education Services,Professional fees,10/06/2022,1907759241,540,J Meehan & Partners Ltd
Manchester City Council,Childrens & Education Services,Professional fees,10/06/2022,1907760334,563.1,Forensic Testing Service Ltd
Manchester City Council,Childrens & Education Services,Professional fees,30/06/2022,1907788965,622.1,Forensic Testing Service Ltd
Manchester City Council,Childrens & Education Services,Professional fees,10/06/2022,1907762780,600,Central Chambers
Manchester City Council,Childrens & Education Services,Professional fees,10/06/2022,1907762802,550,Central Chambers
Manchester City Council,Childrens & Education Services,Professional fees,13/06/2022,1907766417,1125,Central Chambers
Manchester City Council,Childrens & Education Services,Professional fees,14/06/2022,1907766418,500,Central Chambers
Manchester City Council,Childrens & Education Services,Professional fees,17/06/2022,1907774421,550,Central Chambers
Manchester City Council,Childrens & Education Services,Professional fees,17/06/2022,1907774422,650,Central Chambers
Manchester City Council,Childrens & Education Services,Professional fees,10/06/2022,1907762805,585,Pickering Psychology Services Ltd
Manchester City Council,Childrens & Education Services,Professional fees,10/06/2022,1907762834,550,Redacted Personal Information
Manchester City Council,Childrens & Education Services,Professional fees,13/06/2022,1907766539,847.87,Target Psychology Ltd
Manchester City Council,Childrens & Education Services,Professional fees,14/06/2022,1907762838,500,Kirwin Maclean Associates LTD
Manchester City Council,Childrens & Education Services,Professional fees,15/06/2022,5105820577,950,Pennine School Improvement Ltd
Manchester City Council,Childrens & Education Services,Professional fees,15/06/2022,5105820615,2375,Arnoldsolutions
Manchester City Council,Childrens & Education Services,Professional fees,16/06/2022,5105820812,552.84,4syte Funding Limited
Manchester City Council,Childrens & Education Services,Professional fees,17/06/2022,5105821031,1425,Angela Westington Consulting Ltd
Manchester City Council,Childrens & Education Services,Professional fees,30/06/2022,5105822922,1425,Angela Westington Consulting Ltd
Manchester City Council,Childrens & Education Services,Professional fees,17/06/2022,5105821114,2040,Applied Psychology Services
Manchester City Council,Childrens & Education Services,Professional fees,21/06/2022,5105821604,563.72,Hays Specialist Recruitment Limited
Manchester City Council,Childrens & Education Services,Professional fees,21/06/2022,5105821606,704.65,Hays Specialist Recruitment Limited
Manchester City Council,Childrens & Education Services,Professional fees,21/06/2022,5105821608,563.72,Hays Specialist Recruitment Limited
Manchester City Council,Childrens & Education Services,Professional fees,24/06/2022,5105822039,704.65,Hays Specialist Recruitment Limited
Manchester City Council,Childrens & Education Services,Professional fees,24/06/2022,5105822040,704.65,Hays Specialist Recruitment Limited
Manchester City Council,Childrens & Education Services,Professional fees,24/06/2022,5105822051,704.65,Hays Specialist Recruitment Limited
Manchester City Council,Childrens & Education Services,Professional fees,22/06/2022,1907774735,708.1,Hart Psychological Consulting
Manchester City Council,Childrens & Education Services,Professional fees,22/06/2022,5105821717,1448.5,Advanced Child Care Assessments
Manchester City Council,Childrens & Education Services,Professional fees,23/06/2022,5105821895,1250,The Staff College
Manchester City Council,Childrens & Education Services,Professional fees,24/06/2022,5105822113,31768.71,Amore Social Care Ltd
Manchester City Council,Childrens & Education Services,Professional fees,27/06/2022,5105821957,923.75,Greater Manchester Police Sports &
Manchester City Council,Childrens & Education Services,Professional fees,28/06/2022,5105822566,2275,Bedspace Resource Ltd
Manchester City Council,Childrens & Education Services,Professional fees,29/06/2022,5105822581,5220,Compass Career Opportunties Ltd
Manchester City Council,Childrens & Education Services,Professional fees,29/06/2022,5105822595,950,Simon Taylor Consultancy
Manchester City Council,Childrens & Education Services,Professional fees,30/06/2022,5105822979,950,Simon Taylor Consultancy
Manchester City Council,Childrens & Education Services,Professional fees,29/06/2022,5105822636,4562.5,Waddington & Son Solicitors
Manchester City Council,Childrens & Education Services,Professional fees,29/06/2022,5105822637,2587.5,Waddington & Son Solicitors
Manchester City Council,Childrens & Education Services,Professional fees,29/06/2022,5105822639,1618.75,Waddington & Son Solicitors
Manchester City Council,Childrens & Education Services,Professional fees,29/06/2022,5105822640,519.95,Waddington & Son Solicitors
Manchester City Council,Childrens & Education Services,Professional fees,29/06/2022,5105822641,850,Waddington & Son Solicitors
Manchester City Council,Childrens & Education Services,Professional fees,30/06/2022,5105822901,1093.75,Waddington & Son Solicitors
Manchester City Council,Childrens & Education Services,Professional fees,30/06/2022,5105822903,2485.25,Waddington & Son Solicitors
Manchester City Council,Childrens & Education Services,Professional fees,30/06/2022,5105822904,3521.75,Waddington & Son Solicitors
Manchester City Council,Childrens & Education Services,Professional fees,29/06/2022,5105822694,855.01,Choice Home Tutoring Ltd
Manchester City Council,Childrens & Education Services,Professional fees,30/06/2022,5105821603,1076.66,Choice Home Tutoring Ltd
Manchester City Council,Childrens & Education Services,Professional fees,29/06/2022,5105822738,17000,Sloan Education Services Ltd
Manchester City Council,Childrens & Education Services,Professional fees,29/06/2022,5105822792,19734,Peopletoo Ltd
Manchester City Council,Childrens & Education Services,Mobilephone Charges,08/06/2022,5105819623,2175,Roda Telecom Limited
Manchester City Council,Childrens & Education Services,I T Provision,08/06/2022,5105819559,2049.9,Twinkl
Manchester City Council,Childrens & Education Services,I T Provision,10/06/2022,5105819708,2470.01,Allied Publicity Services (M\cr) Lt
Manchester City Council,Childrens & Education Services,I T Provision,15/06/2022,5105820722,1344.15,Valtech Limited
Manchester City Council,Childrens & Education Services,Subsistence and Conference Expenses,09/06/2022,5105819653,4200,Inclusive Choice
Manchester City Council,Childrens & Education Services,Subsistence and Conference Expenses,13/06/2022,5105820326,934,Assoc of Directors of Childrens Svs
Manchester City Council,Childrens & Education Services,Subsistence and Conference Expenses,20/06/2022,5105821295,5250,The Training Hub
Manchester City Council,Childrens & Education Services,Grant and subscriptions awarded,24/06/2022,5105822008,3000,Barlow Moor Community Association
Manchester City Council,Childrens & Education Services,Private Finance and Public Private partnership initiatives,16/06/2022,5105820938,84160.5,NU3PS
Manchester City Council,Childrens & Education Services,Private Finance and Public Private partnership initiatives,16/06/2022,5105820939,4588.29,NU3PS
Manchester City Council,Childrens & Education Services,Third party payments to other Local Authorities,06/06/2022,5105819177,17621,Co-Op Academy
Manchester City Council,Childrens & Education Services,Third party payments to other Local Authorities,07/06/2022,5105819336,8372,Priestnall School
Manchester City Council,Childrens & Education Services,Third party payments to other Local Authorities,07/06/2022,5105819486,954,Wilmslow High School
Manchester City Council,Childrens & Education Services,Third party payments to other Local Authorities,09/06/2022,5105819675,2567,The Oak Trust
Manchester City Council,Childrens & Education Services,Third party payments to other Local Authorities,09/06/2022,5105819696,954,Saint Ambrose College
Manchester City Council,Childrens & Education Services,Third party payments to other Local Authorities,13/06/2022,5105820201,12177,Chatsworth High School & College
Manchester City Council,Childrens & Education Services,Third party payments to other Local Authorities,14/06/2022,5105820482,27379,Tameside Metropolitan Bouough
Manchester City Council,Childrens & Education Services,Third party payments to other Local Authorities,14/06/2022,5105820483,20602,Tameside Metropolitan Bouough
Manchester City Council,Childrens & Education Services,Third party payments to other Local Authorities,15/06/2022,5105820632,1593.75,Pennine Care In Patient Services
Manchester City Council,Childrens & Education Services,Third party payments to other Local Authorities,15/06/2022,5105820634,3907,St Hugh's Catholic Primary School
Manchester City Council,Childrens & Education Services,Third party payments to other Local Authorities,15/06/2022,5105820700,954,Ashton On Mersey High School
Manchester City Council,Childrens & Education Services,Third party payments to other Local Authorities,15/06/2022,5105820724,3281.25,Pennine Care In Patient Services
Manchester City Council,Childrens & Education Services,Third party payments to other Local Authorities,16/06/2022,5105820814,5361,Marple Hall School
Manchester City Council,Childrens & Education Services,Third party payments to other Local Authorities,16/06/2022,5105820839,4333.34,North Ridge Community School
Manchester City Council,Childrens & Education Services,Third party payments to other Local Authorities,16/06/2022,5105820900,521.25,Firs Primary School
Manchester City Council,Childrens & Education Services,Third party payments to other Local Authorities,20/06/2022,5105820897,24025.55,New Bridge School
Manchester City Council,Childrens & Education Services,Third party payments to other Local Authorities,20/06/2022,5105820934,3470.61,New Bridge School
Manchester City Council,Childrens & Education Services,Third party payments to other Local Authorities,20/06/2022,5105820935,2019.43,New Bridge School
Manchester City Council,Childrens & Education Services,Third party payments to other Local Authorities,20/06/2022,5105821288,2223,Cygnet (NW) Ltd
Manchester City Council,Childrens & Education Services,Third party payments to other Local Authorities,20/06/2022,5105821290,5861,Old Trafford Community Academy
Manchester City Council,Childrens & Education Services,Third party payments to other Local Authorities,20/06/2022,5105821299,6233.96,Kisharon Noe School
Manchester City Council,Childrens & Education Services,Third party payments to other Local Authorities,20/06/2022,5105821322,32500,Atherton High School
Manchester City Council,Childrens & Education Services,Third party payments to other Local Authorities,23/06/2022,5105821985,3256,Handforth Grange Primary School
Manchester City Council,Childrens & Education Services,Third party payments to other Local Authorities,27/06/2022,5105821298,1953.5,St. Anne's CE Primary School
Manchester City Council,Childrens & Education Services,Third party payments to other Local Authorities,27/06/2022,5105822351,1684,Broughton Jewish Cassel Fox Prim
Manchester City Council,Childrens & Education Services,Third party payments relating to Voluntary Organisations,06/06/2022,5105819119,95891.43,Central Mcr Uni Hospital t/a
Manchester City Council,Childrens & Education Services,Third party payments relating to Voluntary Organisations,06/06/2022,5105819120,125000,Central Mcr Uni Hospital t/a
Manchester City Council,Childrens & Education Services,Third party payments relating to Voluntary Organisations,06/06/2022,5105819122,125000,Central Mcr Uni Hospital t/a
Manchester City Council,Childrens & Education Services,Third party payments relating to Voluntary Organisations,06/06/2022,5105819123,103168.57,Central Mcr Uni Hospital t/a
Manchester City Council,Childrens & Education Services,Third party payments relating to Voluntary Organisations,06/06/2022,5105819123,21831.43,Central Mcr Uni Hospital t/a
Manchester City Council,Childrens & Education Services,Third party payments relating to Voluntary Organisations,15/06/2022,5105820650,2700,TiPP Centre
Manchester City Council,Childrens & Education Services,Third party payments relating to Voluntary Organisations,30/06/2022,5105822646,147827.23,Family Action
Manchester City Council,Childrens & Education Services,Payments for services,01/06/2022,5105818926,7261.17,Enhance EHC Ltd
Manchester City Council,Childrens & Education Services,Payments for services,06/06/2022,5105818927,15000,Heyhead Farm Education Centre Ltd
Manchester City Council,Childrens & Education Services,Payments for services,06/06/2022,5105818928,11750,Heyhead Farm Education Centre Ltd
Manchester City Council,Childrens & Education Services,Payments for services,06/06/2022,5105819081,630,Redacted Personal Information
Manchester City Council,Childrens & Education Services,Payments for services,06/06/2022,5105819178,9890.26,Reed Employment Plc
Manchester City Council,Childrens & Education Services,Payments for services,06/06/2022,5105819237,9981.74,Reed Employment Plc
Manchester City Council,Childrens & Education Services,Payments for services,06/06/2022,5105819241,-3910.56,Reed Employment Plc
Manchester City Council,Childrens & Education Services,Payments for services,07/06/2022,5105819472,1046.04,Sense
Manchester City Council,Childrens & Education Services,Payments for services,07/06/2022,5105819493,5426.14,Rossendale School Priory
Manchester City Council,Childrens & Education Services,Payments for services,07/06/2022,5105819495,5581.33,Rossendale School Priory
Manchester City Council,Childrens & Education Services,Payments for services,08/06/2022,5105819496,6162,Rossendale School Priory
Manchester City Council,Childrens & Education Services,Payments for services,08/06/2022,5105819497,5607.01,Rossendale School Priory
Manchester City Council,Childrens & Education Services,Payments for services,08/06/2022,5105819500,5767.37,Rossendale School Priory
Manchester City Council,Childrens & Education Services,Payments for services,08/06/2022,5105819511,6367.4,Rossendale School Priory
Manchester City Council,Childrens & Education Services,Payments for services,08/06/2022,5105819512,4518.18,Chaigeley Education Foundation
Manchester City Council,Childrens & Education Services,Payments for services,08/06/2022,5105819513,4518.18,Chaigeley Education Foundation
Manchester City Council,Childrens & Education Services,Payments for services,08/06/2022,5105819514,84805.61,Teenage Works
Manchester City Council,Childrens & Education Services,Payments for services,08/06/2022,5105819515,5164.09,Teenage Works
Manchester City Council,Childrens & Education Services,Payments for services,08/06/2022,5105819516,1231,Holy Cross Catholic Sixth Form
Manchester City Council,Childrens & Education Services,Payments for services,09/06/2022,5105819155,873.31,Teaching Personnel Ltd
Manchester City Council,Childrens & Education Services,Payments for services,09/06/2022,5105819384,111264.53,Belmont School Ltd
Manchester City Council,Childrens & Education Services,Payments for services,09/06/2022,5105819385,-6253.76,Belmont School Ltd
Manchester City Council,Childrens & Education Services,Payments for services,09/06/2022,5105819716,1366.92,Teaching Personnel Ltd
Manchester City Council,Childrens & Education Services,Payments for services,09/06/2022,5105819730,1000,Link Mediation Services
Manchester City Council,Childrens & Education Services,Payments for services,09/06/2022,5105819781,10973.12,Reed Employment Plc
Manchester City Council,Childrens & Education Services,Payments for services,10/06/2022,5105819386,111264.53,Belmont School Ltd
Manchester City Council,Childrens & Education Services,Payments for services,10/06/2022,5105819672,21869.54,Trafford College
Manchester City Council,Childrens & Education Services,Payments for services,10/06/2022,5105819673,-11048.28,Trafford College
Manchester City Council,Childrens & Education Services,Payments for services,10/06/2022,5105819728,3639,Manchester Young Lives
Manchester City Council,Childrens & Education Services,Payments for services,13/06/2022,5105820338,16344.72,B4L Education Services Ltd
Manchester City Council,Childrens & Education Services,Payments for services,15/06/2022,5105820592,515.58,DHP Care Limited
Manchester City Council,Childrens & Education Services,Payments for services,15/06/2022,5105820684,9348.29,Enhance EHC Ltd
Manchester City Council,Childrens & Education Services,Payments for services,15/06/2022,5105820688,3545.46,Broadstones Independent Special Sch
Manchester City Council,Childrens & Education Services,Payments for services,15/06/2022,5105820720,4654.5,Time Specialist Support Ltd
Manchester City Council,Childrens & Education Services,Payments for services,15/06/2022,5105820733,19161.75,Time Specialist Support Ltd
Manchester City Council,Childrens & Education Services,Payments for services,16/06/2022,5105820639,847.6,Fairfield Care Ltd
Manchester City Council,Childrens & Education Services,Payments for services,16/06/2022,5105820640,1521.28,Fairfield Care Ltd
Manchester City Council,Childrens & Education Services,Payments for services,16/06/2022,5105820824,587.25,Time Specialist Support Ltd
Manchester City Council,Childrens & Education Services,Payments for services,16/06/2022,5105820866,1037.22,Sense
Manchester City Council,Childrens & Education Services,Payments for services,17/06/2022,5105821050,9765,National Offender Mgt Services
Manchester City Council,Childrens & Education Services,Payments for services,17/06/2022,5105821052,8820,National Offender Mgt Services
Manchester City Council,Childrens & Education Services,Payments for services,17/06/2022,5105821071,4095,National Offender Mgt Services
Manchester City Council,Childrens & Education Services,Payments for services,17/06/2022,5105821072,9765,National Offender Mgt Services
Manchester City Council,Childrens & Education Services,Payments for services,17/06/2022,5105821074,9765,National Offender Mgt Services
Manchester City Council,Childrens & Education Services,Payments for services,20/06/2022,5105821283,1588.14,Seashell trust
Manchester City Council,Childrens & Education Services,Payments for services,20/06/2022,5105821285,16136.23,Reed Employment Plc
Manchester City Council,Childrens & Education Services,Payments for services,21/06/2022,5105821510,32933.88,Music Stuff
Manchester City Council,Childrens & Education Services,Payments for services,21/06/2022,5105821531,9760,NAS Academies Trust
Manchester City Council,Childrens & Education Services,Payments for services,21/06/2022,5105821532,9760,NAS Academies Trust
Manchester City Council,Childrens & Education Services,Payments for services,21/06/2022,5105821590,1577,Chethams School Of Music
Manchester City Council,Childrens & Education Services,Payments for services,23/06/2022,5105821791,4200,Citywall
Manchester City Council,Childrens & Education Services,Payments for services,23/06/2022,5105821792,6767.25,Cedar House School
Manchester City Council,Childrens & Education Services,Payments for services,23/06/2022,5105821793,10008.67,Cedar House School
Manchester City Council,Childrens & Education Services,Payments for services,23/06/2022,5105821795,6767.25,Cedar House School
Manchester City Council,Childrens & Education Services,Payments for services,23/06/2022,5105821796,10008.67,Cedar House School
Manchester City Council,Childrens & Education Services,Payments for services,23/06/2022,5105821798,14017.32,Cedar House School
Manchester City Council,Childrens & Education Services,Payments for services,23/06/2022,5105821799,12923.33,Beechkeys Limited
Manchester City Council,Childrens & Education Services,Payments for services,23/06/2022,5105821800,30769.2,Horizon Care & Education Group Ltd
Manchester City Council,Childrens & Education Services,Payments for services,23/06/2022,5105821812,9210,National Offender Mgt Services
Manchester City Council,Childrens & Education Services,Payments for services,23/06/2022,5105821858,951.09,Carers Trust 4All
Manchester City Council,Childrens & Education Services,Payments for services,24/06/2022,5105822060,6240,Nugent
Manchester City Council,Childrens & Education Services,Payments for services,27/06/2022,5105821506,1260,Keys PCE Limited
Manchester City Council,Childrens & Education Services,Payments for services,27/06/2022,5105821507,4830,Keys PCE Limited
Manchester City Council,Childrens & Education Services,Payments for services,27/06/2022,5105821508,2100,Keys PCE Limited
Manchester City Council,Childrens & Education Services,Payments for services,27/06/2022,5105821509,3990,Keys PCE Limited
Manchester City Council,Childrens & Education Services,Payments for services,27/06/2022,5105822057,5426.14,Rossendale School Priory
Manchester City Council,Childrens & Education Services,Payments for services,27/06/2022,5105822058,5581.33,Rossendale School Priory
Manchester City Council,Childrens & Education Services,Payments for services,27/06/2022,5105822059,6162,Rossendale School Priory
Manchester City Council,Childrens & Education Services,Payments for services,27/06/2022,5105822271,14333.33,Hexagon Care Services Limited
Manchester City Council,Childrens & Education Services,Payments for services,27/06/2022,5105822331,9765,National Offender Mgt Services
Manchester City Council,Childrens & Education Services,Payments for services,27/06/2022,5105822332,23343,National Offender Mgt Services
Manchester City Council,Childrens & Education Services,Payments for services,27/06/2022,5105822333,5355,National Offender Mgt Services
Manchester City Council,Childrens & Education Services,Payments for services,27/06/2022,5105822334,-5355,National Offender Mgt Services
Manchester City Council,Childrens & Education Services,Payments for services,27/06/2022,5105822335,5355,National Offender Mgt Services
Manchester City Council,Childrens & Education Services,Payments for services,27/06/2022,5105822336,10542,National Offender Mgt Services
Manchester City Council,Childrens & Education Services,Payments for services,28/06/2022,5105822449,12403.43,Reed Employment Plc
Manchester City Council,Childrens & Education Services,Payments for services,28/06/2022,5105822450,14907.93,Reed Employment Plc
Manchester City Council,Childrens & Education Services,Payments for services,29/06/2022,5105820891,1000,Sense
Manchester City Council,Childrens & Education Services,Payments for services,29/06/2022,5105820892,1000,Sense
Manchester City Council,Childrens & Education Services,Payments for services,29/06/2022,5105822687,111264.57,Belmont School Ltd
Manchester City Council,Childrens & Education Services,Payments for services,29/06/2022,5105822693,5961.2,The Skills Company
Manchester City Council,Childrens & Education Services,Payments for services,29/06/2022,5105822696,10675,SMS Coaching Ltd
Manchester City Council,Childrens & Education Services,Payments for services,29/06/2022,5105822698,7625,SMS Coaching Ltd
Manchester City Council,Childrens & Education Services,Payments for services,29/06/2022,5105822699,7000,SMS Coaching Ltd
Manchester City Council,Childrens & Education Services,Payments for services,29/06/2022,5105822707,7000,SMS Coaching Ltd
Manchester City Council,Childrens & Education Services,Payments for services,29/06/2022,5105822708,7625,SMS Coaching Ltd
Manchester City Council,Childrens & Education Services,Payments for services,29/06/2022,5105822709,10675,SMS Coaching Ltd
Manchester City Council,Childrens & Education Services,Payments for services,29/06/2022,5105822714,5000,SMS Coaching Ltd
Manchester City Council,Childrens & Education Services,Payments for services,29/06/2022,5105822782,-1000,Sense
Manchester City Council,Childrens & Education Services,Payments for services,29/06/2022,5105822783,-1000,Sense
Manchester City Council,Childrens & Education Services,Payments for services,30/06/2022,5105822054,6711.94,Redacted Personal Information
Manchester City Council,Childrens & Education Services,Payments for services,30/06/2022,5105822055,4936.2,Redacted Personal Information
Manchester City Council,Childrens & Education Services,Payments for services,30/06/2022,5105822056,4487.04,Redacted Personal Information
Manchester City Council,Childrens & Education Services,Payments for services,30/06/2022,5105822751,12240.8,Reed Employment Plc
Manchester City Council,Childrens & Education Services,Foster Payments,15/06/2022,5105820715,8219.25,Foster Talk
Manchester City Council,Childrens & Education Services,Foster Payments,15/06/2022,5105820721,8219.25,Foster Talk
Manchester City Council,Childrens & Education Services,Foster Payments,21/06/2022,5105821585,22770,Family Futures CIC
Manchester City Council,Childrens & Education Services,Residential Care Homes Payments,24/06/2022,1907781289,530054.29,Independent Clinical Services Ltd
Manchester City Council,Childrens & Education Services,Home Care ,07/06/2022,5105819280,15070,Staff Resources Ltd
Manchester City Council,Childrens & Education Services,Home Care ,27/06/2022,5105822284,16554.44,Staff Resources Ltd
Manchester City Council,Childrens & Education Services,Day Care Payments,28/06/2022,5105822387,901.2,Brighter Beginnings (Newton Heath)
Manchester City Council,Childrens & Education Services,Supported Accommodation,01/06/2022,5105819052,10450,Redacted Personal Information
Manchester City Council,Childrens & Education Services,Supported Accommodation,01/06/2022,5105819056,1113,Redacted Personal Information
Manchester City Council,Childrens & Education Services,Supported Accommodation,01/06/2022,5105819061,1113,Redacted Personal Information
Manchester City Council,Childrens & Education Services,Supported Accommodation,07/06/2022,5105819340,1113,Redacted Personal Information
Manchester City Council,Childrens & Education Services,Supported Accommodation,13/06/2022,5105820297,2103.57,Bedspace Resource Ltd
Manchester City Council,Childrens & Education Services,Supported Accommodation,20/06/2022,5105821221,2035.71,Bedspace Resource Ltd
Manchester City Council,Childrens & Education Services,Supported Accommodation,21/06/2022,5105821424,1113,Redacted Personal Information
Manchester City Council,Childrens & Education Services,Supported Accommodation,21/06/2022,5105821435,1113,Redacted Personal Information
Manchester City Council,Childrens & Education Services,Supported Accommodation,23/06/2022,5105822009,3360,Care & Support Initiatives@ Rectory
Manchester City Council,Childrens & Education Services,Personal needs of client,10/06/2022,1907766675,512.92,Lockhart Catering Equipment Ltd
Manchester City Council,Childrens & Education Services,Personal needs of client,13/06/2022,5105820244,2145,Hemingways Marketing Services Ltd
Manchester City Council,Childrens & Education Services,Personal needs of client,22/06/2022,5105821740,2772,Hemingways Marketing Services Ltd
Manchester City Council,Childrens & Education Services,Personal needs of client,29/06/2022,5105822578,1000,Hemingways Marketing Services Ltd
Manchester City Council,Childrens & Education Services,Personal needs of client,30/06/2022,5105822648,1057.67,Connevans Ltd
Manchester City Council,Childrens & Education Services,Childminding Fee Pay,20/06/2022,5105821201,1950,The Manchester College
Manchester City Council,Childrens & Education Services,Childrens Allowances,01/06/2022,5105819066,712.8,Leaving Care Services Ltd t/a Pathw
Manchester City Council,Childrens & Education Services,Childrens Allowances,08/06/2022,5105819538,554.4,Bedspace Resource Ltd
Manchester City Council,Childrens & Education Services,Expenditure re Internal Trading Ordered Externally,06/06/2022,5105819189,3165,King's House Conference (Gtr Mcr)
Manchester City Council,Childrens & Education Services,Expenditure re Internal Trading Ordered Externally,13/06/2022,5105820342,2944.8,Language Line Ltd
Manchester City Council,Childrens & Education Services,Expenditure re Internal Trading Ordered Externally,30/06/2022,5105821491,1166.67,Manchester Conference Centre
Manchester City Council,Childrens & Education Services,Expenditure re Internal Trading Ordered Externally,30/06/2022,5105822215,876,Language Line Ltd
Manchester City Council,Adult Social Care,GRIR,08/06/2022,5105819679,-1357.76,Places for People Living +
Manchester City Council,Adult Social Care,GRIR,27/06/2022,5105822372,-32200,Redacted Personal Information
Manchester City Council,Adult Social Care,Agency staff provision,24/06/2022,5105822153,1079.46,Reed Employment Plc
Manchester City Council,Adult Social Care,Agency staff provision,24/06/2022,5105822154,1679.16,Reed Employment Plc
Manchester City Council,Adult Social Care,Agency staff provision,24/06/2022,5105822155,2278.86,Reed Employment Plc
Manchester City Council,Adult Social Care,Agency staff provision,24/06/2022,5105822156,1919.04,Reed Employment Plc
Manchester City Council,Adult Social Care,Agency staff provision,24/06/2022,5105822157,1679.16,Reed Employment Plc
Manchester City Council,Adult Social Care,Agency staff provision,24/06/2022,5105822158,1679.16,Reed Employment Plc
Manchester City Council,Adult Social Care,Agency staff provision,24/06/2022,5105822159,1679.16,Reed Employment Plc
Manchester City Council,Adult Social Care,Agency staff provision,24/06/2022,5105822160,1679.16,Reed Employment Plc
Manchester City Council,Adult Social Care,Agency staff provision,24/06/2022,5105822221,1679.16,Reed Employment Plc
Manchester City Council,Adult Social Care,Agency staff provision,24/06/2022,5105822222,1679.16,Reed Employment Plc
Manchester City Council,Adult Social Care,Agency staff provision,24/06/2022,5105822223,1439.28,Reed Employment Plc
Manchester City Council,Adult Social Care,Training and Development,07/06/2022,5105819211,750,Disabled Living
Manchester City Council,Adult Social Care,Training and Development,09/06/2022,5105819337,500,Kirwin Maclean Associates LTD
Manchester City Council,Adult Social Care,Training and Development,09/06/2022,5105819760,1724.11,Calm Training Limted
Manchester City Council,Adult Social Care,Training and Development,14/06/2022,5105820437,1249.95,University Of Manchester
Manchester City Council,Adult Social Care,Training and Development,14/06/2022,5105820438,1249.95,University Of Manchester
Manchester City Council,Adult Social Care,Training and Development,14/06/2022,5105820439,1249.95,University Of Manchester
Manchester City Council,Adult Social Care,Training and Development,14/06/2022,5105820471,1249.95,University Of Manchester
Manchester City Council,Adult Social Care,Training and Development,14/06/2022,5105820472,1249.95,University Of Manchester
Manchester City Council,Adult Social Care,Training and Development,14/06/2022,5105820473,1250,University Of Manchester
Manchester City Council,Adult Social Care,Training and Development,14/06/2022,5105820474,1249.95,University Of Manchester
Manchester City Council,Adult Social Care,Training and Development,14/06/2022,5105820475,1249.95,University Of Manchester
Manchester City Council,Adult Social Care,Training and Development,14/06/2022,5105820499,755,Calm Training Limted
Manchester City Council,Adult Social Care,Training and Development,20/06/2022,5105821190,4050,Disabled Living
Manchester City Council,Adult Social Care,Training and Development,20/06/2022,5105821191,750,Disabled Living
Manchester City Council,Adult Social Care,Training and Development,21/06/2022,5105821524,-3750,Disabled Living
Manchester City Council,Adult Social Care,Training and Development,21/06/2022,5105821525,3000,Disabled Living
Manchester City Council,Adult Social Care,Training and Development,28/06/2022,5105822490,640,Foundations
Manchester City Council,Adult Social Care,Training and Development,30/06/2022,5105822948,785,University Of Central Lancashire
Manchester City Council,Adult Social Care,Training and Development,30/06/2022,5105822949,3639,University Of Central Lancashire
Manchester City Council,Adult Social Care,External repairs and maintenance for buildings,20/06/2022,5105821203,6509.37,Sheridan Lifts Ltd
Manchester City Council,Adult Social Care,External repairs and maintenance for buildings,28/06/2022,5105822467,538,T F Jones Property Services Ltd
Manchester City Council,Adult Social Care,External repairs and maintenance for buildings,28/06/2022,5105822468,591.8,T F Jones Property Services Ltd
Manchester City Council,Adult Social Care,Gas,22/06/2022,5105821468,1204.27,British Gas Plc
Manchester City Council,Adult Social Care,Gas,23/06/2022,1907780976,556.28,Scottish & Southern Energy Plc
Manchester City Council,Adult Social Care,Gas,23/06/2022,1907780980,2983.9,Scottish & Southern Energy Plc
Manchester City Council,Adult Social Care,Gas,23/06/2022,1907781011,1188.36,Scottish & Southern Energy Plc
Manchester City Council,Adult Social Care,Gas,23/06/2022,1907781018,545.81,Scottish & Southern Energy Plc
Manchester City Council,Adult Social Care,Gas,23/06/2022,1907781019,696.28,Scottish & Southern Energy Plc
Manchester City Council,Adult Social Care,Gas,23/06/2022,1907781020,539.81,Scottish & Southern Energy Plc
Manchester City Council,Adult Social Care,Gas,23/06/2022,1907781025,1067.34,Scottish & Southern Energy Plc
Manchester City Council,Adult Social Care,Electricity,23/06/2022,1907780558,1523.49,Npower
Manchester City Council,Adult Social Care,Electricity,23/06/2022,1907780579,1428.1,Npower
Manchester City Council,Adult Social Care,Electricity,23/06/2022,1907780595,1638.55,Npower
Manchester City Council,Adult Social Care,Electricity,23/06/2022,1907780622,1941.63,Npower
Manchester City Council,Adult Social Care,Electricity,23/06/2022,1907780670,1008.35,Scottish & Southern Energy Plc
Manchester City Council,Adult Social Care,Electricity,23/06/2022,1907780680,1000.35,Scottish & Southern Energy Plc
Manchester City Council,Adult Social Care,Electricity,23/06/2022,1907780689,1007.85,Scottish & Southern Energy Plc
Manchester City Council,Adult Social Care,Electricity,23/06/2022,1907780705,1007.85,Scottish & Southern Energy Plc
Manchester City Council,Adult Social Care,Electricity,23/06/2022,1907780802,598.01,Scottish & Southern Energy Plc
Manchester City Council,Adult Social Care,Electricity,23/06/2022,1907780823,581.27,Scottish & Southern Energy Plc
Manchester City Council,Adult Social Care,Electricity,23/06/2022,1907780837,976.84,Scottish & Southern Energy Plc
Manchester City Council,Adult Social Care,CRC Carbon reduction,24/06/2022,5105822064,2528.18,District Homes Cic
Manchester City Council,Adult Social Care,Rents,01/06/2022,5105819067,45238.57,B & A Properties
Manchester City Council,Adult Social Care,Rents,06/06/2022,5105819075,66717.16,MJ Rental Ltd
Manchester City Council,Adult Social Care,Rents,06/06/2022,5105819111,2394.42,Jigsaw Homes North
Manchester City Council,Adult Social Care,Rents,06/06/2022,5105819233,11550,United Property Management Ltd
Manchester City Council,Adult Social Care,Rents,06/06/2022,5105819236,80650,Accommodation Links Ltd
Manchester City Council,Adult Social Care,Rents,06/06/2022,5105819238,9317.32,M&D Residential Ltd
Manchester City Council,Adult Social Care,Rents,06/06/2022,5105819240,4756.76,Houses4Homes 4U Ltd
Manchester City Council,Adult Social Care,Rents,06/06/2022,5105819246,1737.84,Mosscare Housing Ltd
Manchester City Council,Adult Social Care,Rents,06/06/2022,5105819247,19773.72,Mosscare Housing Ltd
Manchester City Council,Adult Social Care,Rents,06/06/2022,5105819248,3685.4,Mosscare Housing Ltd
Manchester City Council,Adult Social Care,Rents,06/06/2022,5105819250,3685.4,Mosscare Housing Ltd
Manchester City Council,Adult Social Care,Rents,08/06/2022,1907764507,1300,Queensway Property Services
Manchester City Council,Adult Social Care,Rents,08/06/2022,1907764511,1400,Walkers Properties Services
Manchester City Council,Adult Social Care,Rents,09/06/2022,1907765552,2321.6,Living Manchester Ltd
Manchester City Council,Adult Social Care,Rents,09/06/2022,1907765553,2592.88,Living Manchester Ltd
Manchester City Council,Adult Social Care,Rents,09/06/2022,5105819059,31717.36,Housing Social Ltd
Manchester City Council,Adult Social Care,Rents,09/06/2022,5105819479,4359.01,Housing Social Ltd
Manchester City Council,Adult Social Care,Rents,09/06/2022,5105819796,13184.4,Eeven Homes Ltd.
Manchester City Council,Adult Social Care,Rents,10/06/2022,5105819478,25518.63,United Property Management Ltd
Manchester City Council,Adult Social Care,Rents,13/06/2022,5105819794,13006.49,K L Properties
Manchester City Council,Adult Social Care,Rents,13/06/2022,5105819962,79276.33,Cromwood Ltd
Manchester City Council,Adult Social Care,Rents,16/06/2022,5105820840,1350,Mack Residential Letting Ltd
Manchester City Council,Adult Social Care,Rents,16/06/2022,5105820871,1020,Mack Residential Letting Ltd
Manchester City Council,Adult Social Care,Rents,16/06/2022,5105820927,13870.11,Eeven Homes Ltd.
Manchester City Council,Adult Social Care,Rents,16/06/2022,5105820946,13384.4,Eeven Homes Ltd.
Manchester City Council,Adult Social Care,Rents,17/06/2022,5105820538,103081.43,Accommodation Links Ltd
Manchester City Council,Adult Social Care,Rents,17/06/2022,5105821100,62531.16,Manchester Bumblebee Ltd
Manchester City Council,Adult Social Care,Rents,17/06/2022,5105821111,42995.71,B & A Properties
Manchester City Council,Adult Social Care,Rents,17/06/2022,5105821112,61929.73,District Homes Cic
Manchester City Council,Adult Social Care,Rents,20/06/2022,5105820602,58117.14,Accommodation Links Ltd
Manchester City Council,Adult Social Care,Rents,20/06/2022,5105821119,15928.05,M & Q Properties Management Ltd
Manchester City Council,Adult Social Care,Rents,20/06/2022,5105821251,4060,Southway Housing Trust
Manchester City Council,Adult Social Care,Rents,20/06/2022,5105821252,4108.38,Southway Housing Trust
Manchester City Council,Adult Social Care,Rents,21/06/2022,5105821349,2339.74,AJD Property Limited
Manchester City Council,Adult Social Care,Rents,21/06/2022,5105821350,2484.21,AJD Property Limited
Manchester City Council,Adult Social Care,Rents,21/06/2022,5105821431,4756.76,Houses4Homes 4U Ltd
Manchester City Council,Adult Social Care,Rents,21/06/2022,5105821582,5724.88,Hilldale Housing Association
Manchester City Council,Adult Social Care,Rents,23/06/2022,5105821589,31494.97,Housing Social Ltd
Manchester City Council,Adult Social Care,Rents,23/06/2022,5105821601,4359.01,Housing Social Ltd
Manchester City Council,Adult Social Care,Rents,23/06/2022,5105821808,4359.01,Housing Social Ltd
Manchester City Council,Adult Social Care,Rents,23/06/2022,5105821996,32966.29,Amco Management
Manchester City Council,Adult Social Care,Rents,24/06/2022,5105822047,4876.76,Houses4Homes 4U Ltd
Manchester City Council,Adult Social Care,Rents,24/06/2022,5105822177,9405.32,M&D Residential Ltd
Manchester City Council,Adult Social Care,Rents,24/06/2022,5105822178,12898.11,Eeven Homes Ltd.
Manchester City Council,Adult Social Care,Rents,27/06/2022,1700135379,-1238.35,Redacted Personal Information
Manchester City Council,Adult Social Care,Rents,27/06/2022,5105820985,12978.49,K L Properties
Manchester City Council,Adult Social Care,Rents,27/06/2022,5105821577,5724.88,Hilldale Housing Association
Manchester City Council,Adult Social Care,Rents,27/06/2022,5105821716,81143.43,Accommodation Links Ltd
Manchester City Council,Adult Social Care,Rents,27/06/2022,5105822207,12978.49,K L Properties
Manchester City Council,Adult Social Care,Rents,27/06/2022,5105822208,6351.44,Mears Limited
Manchester City Council,Adult Social Care,Rents,28/06/2022,5105822481,161179.19,Mack Residential Letting Ltd
Manchester City Council,Adult Social Care,Rents,28/06/2022,5105822485,31667.94,Housing Social Ltd
Manchester City Council,Adult Social Care,Rents,29/06/2022,5105822148,102305.05,Manchester Housing Group Ltd
Manchester City Council,Adult Social Care,Rents,30/06/2022,1907793322,910,Blue Print Estate Agents Ltd
Manchester City Council,Adult Social Care,Rents,30/06/2022,1907793323,1520.34,Blue Print Estate Agents Ltd
Manchester City Council,Adult Social Care,Rents,30/06/2022,5105821712,31214,Housing Social Ltd
Manchester City Council,Adult Social Care,Rents,30/06/2022,5105821987,4359.01,Housing Social Ltd
Manchester City Council,Adult Social Care,Rents,30/06/2022,5105822711,2722.56,Jigsaw Homes North
Manchester City Council,Adult Social Care,Rents,30/06/2022,5105822713,2394.41,Jigsaw Homes North
Manchester City Council,Adult Social Care,Rents,30/06/2022,5105822715,2872.93,Jigsaw Homes North
Manchester City Council,Adult Social Care,Rents,30/06/2022,5105822582,80933.71,Accommodation Links Ltd
Manchester City Council,Adult Social Care,Rents,30/06/2022,5105822971,4674.38,Wythenshawe Community Housing Group
Manchester City Council,Adult Social Care,Rents,30/06/2022,5105822504,12781.81,K L Properties
Manchester City Council,Adult Social Care,Rents,30/06/2022,5105822569,4966.76,Houses4Homes 4U Ltd
Manchester City Council,Adult Social Care,Rents,30/06/2022,5105822871,720,Wilkinson Bros
Manchester City Council,Adult Social Care,Rents,30/06/2022,5105821381,6856.86,AJD Property Limited
Manchester City Council,Adult Social Care,Water - Metered,23/06/2022,1907780390,741.97,Anglian Water Business (National)
Manchester City Council,Adult Social Care,Water - Metered,23/06/2022,1907780463,605.14,Anglian Water Business (National)
Manchester City Council,Adult Social Care,Cleaning Equipment and Materials,17/06/2022,1907777204,546,PHS Group
Manchester City Council,Adult Social Care,Cleaning Equipment and Materials,17/06/2022,1907777205,660.4,PHS Group
Manchester City Council,Adult Social Care,Cleaning Equipment and Materials,21/06/2022,1907777958,673.92,PHS Group
Manchester City Council,Adult Social Care,Cleaning Equipment and Materials,21/06/2022,1907777959,673.92,PHS Group
Manchester City Council,Adult Social Care,Cleaning Equipment and Materials,21/06/2022,1907777963,605.7,PHS Group
Manchester City Council,Adult Social Care,Security,29/06/2022,5105822667,1071,UNIQUE SPECIALIST SERVICES
Manchester City Council,Adult Social Care,Security,29/06/2022,5105822669,1071,UNIQUE SPECIALIST SERVICES
Manchester City Council,Adult Social Care,Security,29/06/2022,5105822673,1071,UNIQUE SPECIALIST SERVICES
Manchester City Council,Adult Social Care,Security,29/06/2022,5105822675,1071,UNIQUE SPECIALIST SERVICES
Manchester City Council,Adult Social Care,Security,29/06/2022,5105822680,1071,UNIQUE SPECIALIST SERVICES
Manchester City Council,Adult Social Care,Equipment,07/06/2022,5105819324,2330.6,NRS Healthcare
Manchester City Council,Adult Social Care,Equipment,07/06/2022,5105819451,1050,Doro Care Ltd
Manchester City Council,Adult Social Care,Equipment,09/06/2022,5105819441,997.2,NRS Healthcare
Manchester City Council,Adult Social Care,Equipment,09/06/2022,5105819683,9700,Aidapt Bathrooms Ltd
Manchester City Council,Adult Social Care,Equipment,13/06/2022,5105819771,909.6,NRS Healthcare
Manchester City Council,Adult Social Care,Equipment,15/06/2022,5105820510,1050,Doro Care Ltd
Manchester City Council,Adult Social Care,Equipment,20/06/2022,5105820815,2106,Invacare Limited
Manchester City Council,Adult Social Care,Equipment,20/06/2022,5105820870,3120,Invacare Limited
Manchester City Council,Adult Social Care,Equipment,20/06/2022,5105821195,1150,Aidapt Bathrooms Ltd
Manchester City Council,Adult Social Care,Equipment,21/06/2022,5105821067,1634,Sarabec Limited
Manchester City Council,Adult Social Care,Equipment,21/06/2022,5105821402,3398.5,Frontier Therapeutics
Manchester City Council,Adult Social Care,Equipment,21/06/2022,5105821422,664.6,Gordon Ellis & CO
Manchester City Council,Adult Social Care,Equipment,22/06/2022,5105821496,1433,Smitcare Ltd
Manchester City Council,Adult Social Care,Equipment,22/06/2022,5105821497,1987.5,Smitcare Ltd
Manchester City Council,Adult Social Care,Equipment,22/06/2022,5105821498,1205,Smitcare Ltd
Manchester City Council,Adult Social Care,Equipment,22/06/2022,5105821499,885,Smitcare Ltd
Manchester City Council,Adult Social Care,Equipment,22/06/2022,5105821500,930,Smitcare Ltd
Manchester City Council,Adult Social Care,Equipment,23/06/2022,5105821826,1606.5,Associated Optical Products
Manchester City Council,Adult Social Care,Equipment,23/06/2022,5105821863,4632,Drive Devilbiss Healthcare Ltd
Manchester City Council,Adult Social Care,Equipment,23/06/2022,5105821869,7150,Invacare Limited
Manchester City Council,Adult Social Care,Equipment,23/06/2022,5105821904,1430,Sarabec Limited
Manchester City Council,Adult Social Care,Equipment,27/06/2022,5105820972,7865,Invacare Limited
Manchester City Council,Adult Social Care,Equipment,27/06/2022,5105821391,5878,Drive Devilbiss Healthcare Ltd
Manchester City Council,Adult Social Care,Equipment,27/06/2022,5105822254,1890,Aidapt Bathrooms Ltd
Manchester City Council,Adult Social Care,Equipment,27/06/2022,5105822300,4860,Invacare Limited
Manchester City Council,Adult Social Care,Equipment,30/06/2022,5105822988,7306.48,Drive Devilbiss Healthcare Ltd
Manchester City Council,Adult Social Care,Equipment,30/06/2022,5105822989,4663.8,Drive Devilbiss Healthcare Ltd
Manchester City Council,Adult Social Care,Equipment,30/06/2022,5105820987,1947,Drive Devilbiss Healthcare Ltd
Manchester City Council,Adult Social Care,Equipment,30/06/2022,5105822114,21960,Tynetec
Manchester City Council,Adult Social Care,Equipment,30/06/2022,5105822695,3409.5,Tynetec
Manchester City Council,Adult Social Care,Furniture,01/06/2022,5105819020,-809,Back Care Solutions Ltd
Manchester City Council,Adult Social Care,Furniture,06/06/2022,5105819245,920,Back Care Solutions Ltd
Manchester City Council,Adult Social Care,Furniture,10/06/2022,5105820174,579.26,Furniture Resource Centre Ltd
Manchester City Council,Adult Social Care,Furniture,17/06/2022,5105821027,533.2,Furniture Resource Centre Ltd
Manchester City Council,Adult Social Care,"Consumable items eg Toilet rolls, soap etc",17/06/2022,1907774781,788,HOTEL AT BOOKING.COM
Manchester City Council,Adult Social Care,"Consumable items eg Toilet rolls, soap etc",17/06/2022,1907774783,1480,HOTEL AT BOOKING.COM
Manchester City Council,Adult Social Care,"Consumable items eg Toilet rolls, soap etc",17/06/2022,1907774786,544.5,Lockhart Catering Equipment Ltd
Manchester City Council,Adult Social Care,"Consumable items eg Toilet rolls, soap etc",17/06/2022,1907774788,1095,NOVUM MANAGEMENT GMBH
Manchester City Council,Adult Social Care,"Consumable items eg Toilet rolls, soap etc",17/06/2022,1907774794,962,HOTEL AT BOOKING.COM
Manchester City Council,Adult Social Care,"Consumable items eg Toilet rolls, soap etc",17/06/2022,1907774795,3019,HOTEL AT BOOKING.COM
Manchester City Council,Adult Social Care,"Consumable items eg Toilet rolls, soap etc",17/06/2022,1907774796,2298,HOTEL AT BOOKING.COM
Manchester City Council,Adult Social Care,"Consumable items eg Toilet rolls, soap etc",17/06/2022,1907774797,928,HOTEL AT BOOKING.COM
Manchester City Council,Adult Social Care,"Consumable items eg Toilet rolls, soap etc",17/06/2022,1907774799,1923,HOTEL AT BOOKING.COM
Manchester City Council,Adult Social Care,"Consumable items eg Toilet rolls, soap etc",17/06/2022,1907774801,720,NOVUM MANAGEMENT GMBH
Manchester City Council,Adult Social Care,"Consumable items eg Toilet rolls, soap etc",17/06/2022,1907774814,689,HOTEL AT BOOKING.COM
Manchester City Council,Adult Social Care,"Consumable items eg Toilet rolls, soap etc",17/06/2022,1907774824,2233.51,TRAVELODGE P CARD ONLY
Manchester City Council,Adult Social Care,"Consumable items eg Toilet rolls, soap etc",17/06/2022,1907774825,1032,HOTEL AT BOOKING.COM
Manchester City Council,Adult Social Care,"Consumable items eg Toilet rolls, soap etc",17/06/2022,1907774829,889,HOTEL AT BOOKING.COM
Manchester City Council,Adult Social Care,"Consumable items eg Toilet rolls, soap etc",17/06/2022,1907774830,1845,HOTEL AT BOOKING.COM
Manchester City Council,Adult Social Care,"Consumable items eg Toilet rolls, soap etc",17/06/2022,1907774831,728,MILTON MANCHESTER HOTE
Manchester City Council,Adult Social Care,"Consumable items eg Toilet rolls, soap etc",17/06/2022,1907774832,1015.95,Lockhart Catering Equipment Ltd
Manchester City Council,Adult Social Care,"Consumable items eg Toilet rolls, soap etc",17/06/2022,1907774834,1540,IZ *DJ SUITES THE
Manchester City Council,Adult Social Care,"Consumable items eg Toilet rolls, soap etc",17/06/2022,1907774840,977,HOTEL AT BOOKING.COM
Manchester City Council,Adult Social Care,"Consumable items eg Toilet rolls, soap etc",17/06/2022,1907774843,-977,HOTEL AT BOOKING.COM
Manchester City Council,Adult Social Care,"Consumable items eg Toilet rolls, soap etc",17/06/2022,1907774844,733,HOTEL AT BOOKING.COM
Manchester City Council,Adult Social Care,"Consumable items eg Toilet rolls, soap etc",17/06/2022,1907774845,706,Premier Inn P CARD ONLY
Manchester City Council,Adult Social Care,"Consumable items eg Toilet rolls, soap etc",17/06/2022,1907774847,653.78,Lockhart Catering Equipment Ltd
Manchester City Council,Adult Social Care,"Consumable items eg Toilet rolls, soap etc",17/06/2022,1907774855,1905.07,TRAVELODGE P CARD ONLY
Manchester City Council,Adult Social Care,"Consumable items eg Toilet rolls, soap etc",17/06/2022,1907774856,1757,HOTEL AT BOOKING.COM
Manchester City Council,Adult Social Care,"Consumable items eg Toilet rolls, soap etc",17/06/2022,1907774857,738,HOTEL AT BOOKING.COM
Manchester City Council,Adult Social Care,"Consumable items eg Toilet rolls, soap etc",17/06/2022,1907774858,593.57,TRAVELODGE P CARD ONLY
Manchester City Council,Adult Social Care,"Consumable items eg Toilet rolls, soap etc",17/06/2022,1907774863,984,HOTEL AT BOOKING.COM
Manchester City Council,Adult Social Care,"Consumable items eg Toilet rolls, soap etc",17/06/2022,1907774864,1540,IZ *DJ SUITES THE
Manchester City Council,Adult Social Care,"Consumable items eg Toilet rolls, soap etc",17/06/2022,1907774867,1112,HOTEL AT BOOKING.COM
Manchester City Council,Adult Social Care,"Consumable items eg Toilet rolls, soap etc",17/06/2022,1907774873,680,HOTEL AT BOOKING.COM
Manchester City Council,Adult Social Care,"Consumable items eg Toilet rolls, soap etc",17/06/2022,1907774874,616.99,TRAVELODGE P CARD ONLY
Manchester City Council,Adult Social Care,"Consumable items eg Toilet rolls, soap etc",17/06/2022,1907774875,2433,MILTON MANCHESTER HOTE
Manchester City Council,Adult Social Care,"Consumable items eg Toilet rolls, soap etc",17/06/2022,1907774877,738,HOTEL AT BOOKING.COM
Manchester City Council,Adult Social Care,"Consumable items eg Toilet rolls, soap etc",17/06/2022,1907774879,535,Premier Inn P CARD ONLY
Manchester City Council,Adult Social Care,"Consumable items eg Toilet rolls, soap etc",17/06/2022,1907774891,1101,MILTON MANCHESTER HOTE
Manchester City Council,Adult Social Care,"Consumable items eg Toilet rolls, soap etc",17/06/2022,1907774911,982,MILTON MANCHESTER HOTE
Manchester City Council,Adult Social Care,"Consumable items eg Toilet rolls, soap etc",17/06/2022,1907774918,684.3,TRAVELODGE P CARD ONLY
Manchester City Council,Adult Social Care,"Consumable items eg Toilet rolls, soap etc",17/06/2022,1907774924,590.5,TRAVELODGE P CARD ONLY
Manchester City Council,Adult Social Care,"Consumable items eg Toilet rolls, soap etc",17/06/2022,1907774927,1487,HOTEL AT BOOKING.COM
Manchester City Council,Adult Social Care,"Consumable items eg Toilet rolls, soap etc",17/06/2022,1907774928,1163,NOVUM MANAGEMENT GMBH
Manchester City Council,Adult Social Care,"Consumable items eg Toilet rolls, soap etc",17/06/2022,1907774931,592,Premier Inn P CARD ONLY
Manchester City Council,Adult Social Care,"Consumable items eg Toilet rolls, soap etc",17/06/2022,1907774944,2880,MILTON MANCHESTER HOTE
Manchester City Council,Adult Social Care,"Consumable items eg Toilet rolls, soap etc",17/06/2022,1907774947,760,HOTEL AT BOOKING.COM
Manchester City Council,Adult Social Care,"Consumable items eg Toilet rolls, soap etc",17/06/2022,1907774949,515,Premier Inn P CARD ONLY
Manchester City Council,Adult Social Care,"Consumable items eg Toilet rolls, soap etc",17/06/2022,1907774953,677.16,TRAVELODGE P CARD ONLY
Manchester City Council,Adult Social Care,"Consumable items eg Toilet rolls, soap etc",17/06/2022,1907774960,1087,NOVUM MANAGEMENT GMBH
Manchester City Council,Adult Social Care,"Consumable items eg Toilet rolls, soap etc",17/06/2022,1907774961,946,HOTEL AT BOOKING.COM
Manchester City Council,Adult Social Care,"Consumable items eg Toilet rolls, soap etc",17/06/2022,1907774962,799,HOTEL AT BOOKING.COM
Manchester City Council,Adult Social Care,"Consumable items eg Toilet rolls, soap etc",17/06/2022,1907774967,862,MILTON MANCHESTER HOTE
Manchester City Council,Adult Social Care,"Consumable items eg Toilet rolls, soap etc",17/06/2022,1907774974,503,HOTEL AT BOOKING.COM
Manchester City Council,Adult Social Care,"Consumable items eg Toilet rolls, soap etc",17/06/2022,1907774976,821,HOTEL AT BOOKING.COM
Manchester City Council,Adult Social Care,"Consumable items eg Toilet rolls, soap etc",17/06/2022,1907774981,864,HOTEL IBIS
Manchester City Council,Adult Social Care,"Consumable items eg Toilet rolls, soap etc",17/06/2022,1907774985,876.95,Lockhart Catering Equipment Ltd
Manchester City Council,Adult Social Care,"Consumable items eg Toilet rolls, soap etc",17/06/2022,1907774990,556,HOTEL AT BOOKING.COM
Manchester City Council,Adult Social Care,"Consumable items eg Toilet rolls, soap etc",17/06/2022,1907774991,600,GUESTHOUSE MANCHESTER
Manchester City Council,Adult Social Care,"Consumable items eg Toilet rolls, soap etc",17/06/2022,1907774992,1540,PARK CITY SUITES HOTEL
Manchester City Council,Adult Social Care,"Consumable items eg Toilet rolls, soap etc",17/06/2022,1907774994,1765.43,TRAVELODGE P CARD ONLY
Manchester City Council,Adult Social Care,"Consumable items eg Toilet rolls, soap etc",17/06/2022,1907775002,500,S AND S SALES MCR LTD
Manchester City Council,Adult Social Care,"Consumable items eg Toilet rolls, soap etc",17/06/2022,1907775003,581.95,Lockhart Catering Equipment Ltd
Manchester City Council,Adult Social Care,"Consumable items eg Toilet rolls, soap etc",17/06/2022,1907775005,1058,STAYCITY
Manchester City Council,Adult Social Care,"Consumable items eg Toilet rolls, soap etc",17/06/2022,1907775009,556,HOTEL AT BOOKING.COM
Manchester City Council,Adult Social Care,"Consumable items eg Toilet rolls, soap etc",17/06/2022,1907775010,700,S AND S SALES MCR LTD
Manchester City Council,Adult Social Care,"Consumable items eg Toilet rolls, soap etc",17/06/2022,1907775015,3960.02,S AND S SALES MCR LTD
Manchester City Council,Adult Social Care,"Consumable items eg Toilet rolls, soap etc",17/06/2022,1907775016,1987,HOTEL AT BOOKING.COM
Manchester City Council,Adult Social Care,"Consumable items eg Toilet rolls, soap etc",17/06/2022,1907775017,559,Lockhart Catering Equipment Ltd
Manchester City Council,Adult Social Care,"Consumable items eg Toilet rolls, soap etc",17/06/2022,1907775020,1509,STAYCITY
Manchester City Council,Adult Social Care,"Consumable items eg Toilet rolls, soap etc",17/06/2022,1907775026,891,MILTON MANCHESTER HOTE
Manchester City Council,Adult Social Care,"Consumable items eg Toilet rolls, soap etc",17/06/2022,1907775034,575.5,Premier Inn P CARD ONLY
Manchester City Council,Adult Social Care,"Consumable items eg Toilet rolls, soap etc",17/06/2022,1907775038,1416,MILTON MANCHESTER HOTE
Manchester City Council,Adult Social Care,"Consumable items eg Toilet rolls, soap etc",17/06/2022,1907775044,1540,PARK CITY SUITES HOTEL
Manchester City Council,Adult Social Care,"Consumable items eg Toilet rolls, soap etc",17/06/2022,1907775048,1495,MILTON MANCHESTER HOTE
Manchester City Council,Adult Social Care,"Consumable items eg Toilet rolls, soap etc",17/06/2022,1907775053,1540,PARK CITY SUITES HOTEL
Manchester City Council,Adult Social Care,"Consumable items eg Toilet rolls, soap etc",17/06/2022,1907775057,1327,MILTON MANCHESTER HOTE
Manchester City Council,Adult Social Care,"Consumable items eg Toilet rolls, soap etc",17/06/2022,1907775060,1540,PARK CITY SUITES HOTEL
Manchester City Council,Adult Social Care,"Consumable items eg Toilet rolls, soap etc",17/06/2022,1907775077,1540,PARK CITY SUITES HOTEL
Manchester City Council,Adult Social Care,"Consumable items eg Toilet rolls, soap etc",17/06/2022,1907775111,541,Premier Inn P CARD ONLY
Manchester City Council,Adult Social Care,"Consumable items eg Toilet rolls, soap etc",17/06/2022,1907775153,1540,PARK CITY SUITES HOTEL
Manchester City Council,Adult Social Care,"Consumable items eg Toilet rolls, soap etc",17/06/2022,1907775161,689,HOTEL AT BOOKING.COM
Manchester City Council,Adult Social Care,"Consumable items eg Toilet rolls, soap etc",17/06/2022,1907775169,593,Premier Inn P CARD ONLY
Manchester City Council,Adult Social Care,"Consumable items eg Toilet rolls, soap etc",17/06/2022,1907775182,1239,HOTEL AT BOOKING.COM
Manchester City Council,Adult Social Care,"Consumable items eg Toilet rolls, soap etc",17/06/2022,1907775185,2583,Britannia Hotels PCARD ONLY
Manchester City Council,Adult Social Care,"Consumable items eg Toilet rolls, soap etc",17/06/2022,1907775191,741,HOTEL AT BOOKING.COM
Manchester City Council,Adult Social Care,"Consumable items eg Toilet rolls, soap etc",17/06/2022,1907775192,689,HOTEL AT BOOKING.COM
Manchester City Council,Adult Social Care,"Consumable items eg Toilet rolls, soap etc",17/06/2022,1907775205,2006,STAYCITY
Manchester City Council,Adult Social Care,"Consumable items eg Toilet rolls, soap etc",17/06/2022,1907775209,3000,JOTS CONSULTANCY LTD
Manchester City Council,Adult Social Care,"Consumable items eg Toilet rolls, soap etc",17/06/2022,1907775214,562.03,ALLPAY *MOSSCARE ST VINCE
Manchester City Council,Adult Social Care,"Consumable items eg Toilet rolls, soap etc",17/06/2022,1907775216,1851,MILTON MANCHESTER HOTE
Manchester City Council,Adult Social Care,"Consumable items eg Toilet rolls, soap etc",17/06/2022,1907775226,507,HOTEL AT BOOKING.COM
Manchester City Council,Adult Social Care,"Consumable items eg Toilet rolls, soap etc",17/06/2022,1907775228,3190,JOTS CONSULTANCY LTD
Manchester City Council,Adult Social Care,"Consumable items eg Toilet rolls, soap etc",17/06/2022,1907775232,858,HOTEL ON BOOKING.COM
Manchester City Council,Adult Social Care,"Consumable items eg Toilet rolls, soap etc",17/06/2022,1907775238,4444.3,MILTON MANCHESTER HOTE
Manchester City Council,Adult Social Care,"Consumable items eg Toilet rolls, soap etc",17/06/2022,1907775239,1345,NOVUM MANAGEMENT GMBH
Manchester City Council,Adult Social Care,"Consumable items eg Toilet rolls, soap etc",17/06/2022,1907775248,3190,JOTS CONSULTANCY LTD
Manchester City Council,Adult Social Care,"Consumable items eg Toilet rolls, soap etc",17/06/2022,1907775253,3631,STAYCITY
Manchester City Council,Adult Social Care,"Consumable items eg Toilet rolls, soap etc",17/06/2022,1907775257,3000,H PROPERTY MANAGMENT
Manchester City Council,Adult Social Care,"Consumable items eg Toilet rolls, soap etc",17/06/2022,1907775260,785.25,TRAVELODGE P CARD ONLY
Manchester City Council,Adult Social Care,"Consumable items eg Toilet rolls, soap etc",17/06/2022,1907775261,3000,H PROPERTY MANAGMENT
Manchester City Council,Adult Social Care,"Consumable items eg Toilet rolls, soap etc",17/06/2022,1907775264,1595,HOTEL AT BOOKING.COM
Manchester City Council,Adult Social Care,"Consumable items eg Toilet rolls, soap etc",17/06/2022,1907775265,910,VICTORIA PARK  RE
Manchester City Council,Adult Social Care,"Consumable items eg Toilet rolls, soap etc",17/06/2022,1907775267,892,HOTEL AT BOOKING.COM
Manchester City Council,Adult Social Care,"Consumable items eg Toilet rolls, soap etc",17/06/2022,1907775269,3631,STAYCITY
Manchester City Council,Adult Social Care,"Consumable items eg Toilet rolls, soap etc",17/06/2022,1907775271,3000,H PROPERTY MANAGMENT
Manchester City Council,Adult Social Care,"Consumable items eg Toilet rolls, soap etc",17/06/2022,1907775276,3450,MILTON MANCHESTER HOTE
Manchester City Council,Adult Social Care,"Consumable items eg Toilet rolls, soap etc",17/06/2022,1907775278,1540,PARK CITY SUITES HOTEL
Manchester City Council,Adult Social Care,"Consumable items eg Toilet rolls, soap etc",17/06/2022,1907775304,548.5,Premier Inn P CARD ONLY
Manchester City Council,Adult Social Care,"Consumable items eg Toilet rolls, soap etc",17/06/2022,1907775324,962,HOTEL IBIS
Manchester City Council,Adult Social Care,"Consumable items eg Toilet rolls, soap etc",17/06/2022,1907775335,1540,PARK VIEW RESIDENCE
Manchester City Council,Adult Social Care,"Consumable items eg Toilet rolls, soap etc",17/06/2022,1907775351,677,NOVUM MANAGEMENT GMBH
Manchester City Council,Adult Social Care,"Consumable items eg Toilet rolls, soap etc",17/06/2022,1907775356,680,HOTEL AT BOOKING.COM
Manchester City Council,Adult Social Care,"Consumable items eg Toilet rolls, soap etc",17/06/2022,1907775359,595.6,TRAVELODGE P CARD ONLY
Manchester City Council,Adult Social Care,"Consumable items eg Toilet rolls, soap etc",17/06/2022,1907775361,1089,Premier Inn P CARD ONLY
Manchester City Council,Adult Social Care,"Consumable items eg Toilet rolls, soap etc",17/06/2022,1907775372,4656,MILTON MANCHESTER HOTE
Manchester City Council,Adult Social Care,"Consumable items eg Toilet rolls, soap etc",17/06/2022,1907775380,770,PARK VIEW RESIDENCE
Manchester City Council,Adult Social Care,"Consumable items eg Toilet rolls, soap etc",17/06/2022,1907775389,856,HOTEL AT BOOKING.COM
Manchester City Council,Adult Social Care,"Consumable items eg Toilet rolls, soap etc",17/06/2022,1907775403,680,HOTEL AT BOOKING.COM
Manchester City Council,Adult Social Care,"Consumable items eg Toilet rolls, soap etc",17/06/2022,1907775410,2308,NOVUM MANAGEMENT GMBH
Manchester City Council,Adult Social Care,"Consumable items eg Toilet rolls, soap etc",17/06/2022,1907775415,600,GUESTHOUSE MANCHESTER
Manchester City Council,Adult Social Care,"Consumable items eg Toilet rolls, soap etc",17/06/2022,1907775418,600,GUESTHOUSE MANCHESTER
Manchester City Council,Adult Social Care,"Consumable items eg Toilet rolls, soap etc",17/06/2022,1907775421,575,HOTEL AT BOOKING.COM
Manchester City Council,Adult Social Care,"Consumable items eg Toilet rolls, soap etc",17/06/2022,1907775425,650,HOTEL AT BOOKING.COM
Manchester City Council,Adult Social Care,"Consumable items eg Toilet rolls, soap etc",17/06/2022,1907775429,2216,HOTEL AT BOOKING.COM
Manchester City Council,Adult Social Care,"Consumable items eg Toilet rolls, soap etc",17/06/2022,1907775432,700,GUESTHOUSE MANCHESTER
Manchester City Council,Adult Social Care,"Consumable items eg Toilet rolls, soap etc",17/06/2022,1907775437,550,GUESTHOUSE MANCHESTER
Manchester City Council,Adult Social Care,"Consumable items eg Toilet rolls, soap etc",17/06/2022,1907775438,600,GUESTHOUSE MANCHESTER
Manchester City Council,Adult Social Care,"Consumable items eg Toilet rolls, soap etc",17/06/2022,1907775439,502,HOTEL AT BOOKING.COM
Manchester City Council,Adult Social Care,"Consumable items eg Toilet rolls, soap etc",17/06/2022,1907775441,622,STAYCITY
Manchester City Council,Adult Social Care,"Consumable items eg Toilet rolls, soap etc",17/06/2022,1907775442,2488,STAYCITY
Manchester City Council,Adult Social Care,"Consumable items eg Toilet rolls, soap etc",17/06/2022,1907775444,798,HOTEL AT BOOKING.COM
Manchester City Council,Adult Social Care,"Consumable items eg Toilet rolls, soap etc",17/06/2022,1907775447,700,GUESTHOUSE MANCHESTER
Manchester City Council,Adult Social Care,"Consumable items eg Toilet rolls, soap etc",17/06/2022,1907775450,-1506,HOTEL AT BOOKING.COM
Manchester City Council,Adult Social Care,"Consumable items eg Toilet rolls, soap etc",17/06/2022,1907775453,1400,TRIVELLES ECCLES HOTEL
Manchester City Council,Adult Social Care,"Consumable items eg Toilet rolls, soap etc",17/06/2022,1907775456,1400,TRIVELLES ECCLES HOTEL
Manchester City Council,Adult Social Care,"Consumable items eg Toilet rolls, soap etc",17/06/2022,1907775459,1737,HOLIDAY INN P CARD ONLY
Manchester City Council,Adult Social Care,"Consumable items eg Toilet rolls, soap etc",17/06/2022,1907775461,1680,TRIVELLES ECCLES HOTEL
Manchester City Council,Adult Social Care,"Consumable items eg Toilet rolls, soap etc",17/06/2022,1907775462,654.8,HOTEL AT BOOKING.COM
Manchester City Council,Adult Social Care,"Consumable items eg Toilet rolls, soap etc",17/06/2022,1907775468,803,HOTEL AT BOOKING.COM
Manchester City Council,Adult Social Care,"Consumable items eg Toilet rolls, soap etc",17/06/2022,1907775469,613,NOVUM MANAGEMENT GMBH
Manchester City Council,Adult Social Care,"Consumable items eg Toilet rolls, soap etc",17/06/2022,1907775472,654,HOTEL AT BOOKING.COM
Manchester City Council,Adult Social Care,"Consumable items eg Toilet rolls, soap etc",17/06/2022,1907775474,1091.95,Lockhart Catering Equipment Ltd
Manchester City Council,Adult Social Care,"Consumable items eg Toilet rolls, soap etc",17/06/2022,1907775476,543,NOVUM MANAGEMENT GMBH
Manchester City Council,Adult Social Care,"Consumable items eg Toilet rolls, soap etc",17/06/2022,1907775478,2362,Britannia Hotels PCARD ONLY
Manchester City Council,Adult Social Care,"Consumable items eg Toilet rolls, soap etc",17/06/2022,1907775479,1540,TRIVELLES ECCLES HOTEL
Manchester City Council,Adult Social Care,"Consumable items eg Toilet rolls, soap etc",17/06/2022,1907775486,903.1,HOTEL AT BOOKING.COM
Manchester City Council,Adult Social Care,"Consumable items eg Toilet rolls, soap etc",17/06/2022,1907775489,1400,TRIVELLES ECCLES HOTEL
Manchester City Council,Adult Social Care,"Consumable items eg Toilet rolls, soap etc",17/06/2022,1907775491,1540,NORMANHURST HOTEL
Manchester City Council,Adult Social Care,"Consumable items eg Toilet rolls, soap etc",17/06/2022,1907775501,529,Premier Inn P CARD ONLY
Manchester City Council,Adult Social Care,"Consumable items eg Toilet rolls, soap etc",17/06/2022,1907775503,1400,TRIVELLES ECCLES HOTEL
Manchester City Council,Adult Social Care,"Consumable items eg Toilet rolls, soap etc",17/06/2022,1907775507,1400,TRIVELLES ECCLES HOTEL
Manchester City Council,Adult Social Care,"Consumable items eg Toilet rolls, soap etc",17/06/2022,1907775509,597,Premier Inn P CARD ONLY
Manchester City Council,Adult Social Care,"Consumable items eg Toilet rolls, soap etc",17/06/2022,1907775518,721,HOTEL AT BOOKING.COM
Manchester City Council,Adult Social Care,"Consumable items eg Toilet rolls, soap etc",17/06/2022,1907775521,677,HOTEL AT BOOKING.COM
Manchester City Council,Adult Social Care,"Consumable items eg Toilet rolls, soap etc",17/06/2022,1907775524,2531,HOTEL AT BOOKING.COM
Manchester City Council,Adult Social Care,"Consumable items eg Toilet rolls, soap etc",17/06/2022,1907775526,721,GARDENS HOTEL
Manchester City Council,Adult Social Care,"Consumable items eg Toilet rolls, soap etc",17/06/2022,1907775527,2828,MILTON MANCHESTER HOTE
Manchester City Council,Adult Social Care,"Consumable items eg Toilet rolls, soap etc",17/06/2022,1907775535,596,HOTEL AT BOOKING.COM
Manchester City Council,Adult Social Care,"Consumable items eg Toilet rolls, soap etc",17/06/2022,1907775537,4817,STAYCITY
Manchester City Council,Adult Social Care,"Consumable items eg Toilet rolls, soap etc",17/06/2022,1907775538,603,NOVUM MANAGEMENT GMBH
Manchester City Council,Adult Social Care,"Consumable items eg Toilet rolls, soap etc",17/06/2022,1907775551,608,GARDENS HOTEL
Manchester City Council,Adult Social Care,"Consumable items eg Toilet rolls, soap etc",17/06/2022,1907775555,513,Premier Inn P CARD ONLY
Manchester City Council,Adult Social Care,"Consumable items eg Toilet rolls, soap etc",17/06/2022,1907775560,1962,HOTEL AT BOOKING.COM
Manchester City Council,Adult Social Care,"Consumable items eg Toilet rolls, soap etc",17/06/2022,1907775564,525,HOTEL AT BOOKING.COM
Manchester City Council,Adult Social Care,"Consumable items eg Toilet rolls, soap etc",17/06/2022,1907775567,654,HOTEL AT BOOKING.COM
Manchester City Council,Adult Social Care,"Consumable items eg Toilet rolls, soap etc",17/06/2022,1907775573,1963,HOTEL AT BOOKING.COM
Manchester City Council,Adult Social Care,"Consumable items eg Toilet rolls, soap etc",17/06/2022,1907775575,533,NOVUM MANAGEMENT GMBH
Manchester City Council,Adult Social Care,"Consumable items eg Toilet rolls, soap etc",17/06/2022,1907775585,513,Premier Inn P CARD ONLY
Manchester City Council,Adult Social Care,"Consumable items eg Toilet rolls, soap etc",17/06/2022,1907775586,670.5,Premier Inn P CARD ONLY
Manchester City Council,Adult Social Care,"Consumable items eg Toilet rolls, soap etc",17/06/2022,1907775587,960,HOTEL AT BOOKING.COM
Manchester City Council,Adult Social Care,"Consumable items eg Toilet rolls, soap etc",17/06/2022,1907775588,728,HOTEL AT BOOKING.COM
Manchester City Council,Adult Social Care,"Consumable items eg Toilet rolls, soap etc",17/06/2022,1907775590,600,GUESTHOUSE MANCHESTER
Manchester City Council,Adult Social Care,"Consumable items eg Toilet rolls, soap etc",17/06/2022,1907775593,2028,MILTON MANCHESTER HOTE
Manchester City Council,Adult Social Care,"Consumable items eg Toilet rolls, soap etc",17/06/2022,1907775598,2028,MILTON MANCHESTER HOTE
Manchester City Council,Adult Social Care,"Consumable items eg Toilet rolls, soap etc",17/06/2022,1907775615,769.95,TRAVELODGE P CARD ONLY
Manchester City Council,Adult Social Care,"Consumable items eg Toilet rolls, soap etc",17/06/2022,1907775621,685.34,TRAVELODGE P CARD ONLY
Manchester City Council,Adult Social Care,"Consumable items eg Toilet rolls, soap etc",17/06/2022,1907775628,787.31,TRAVELODGE P CARD ONLY
Manchester City Council,Adult Social Care,"Consumable items eg Toilet rolls, soap etc",17/06/2022,1907775629,1540,PARK CITY SUITES HOTEL
Manchester City Council,Adult Social Care,"Consumable items eg Toilet rolls, soap etc",17/06/2022,1907775631,932,MILTON MANCHESTER HOTE
Manchester City Council,Adult Social Care,"Consumable items eg Toilet rolls, soap etc",17/06/2022,1907775632,1864,MILTON MANCHESTER HOTE
Manchester City Council,Adult Social Care,"Consumable items eg Toilet rolls, soap etc",17/06/2022,1907775634,890,HOTEL AT BOOKING.COM
Manchester City Council,Adult Social Care,"Consumable items eg Toilet rolls, soap etc",17/06/2022,1907775636,702.65,TRAVELODGE P CARD ONLY
Manchester City Council,Adult Social Care,"Consumable items eg Toilet rolls, soap etc",17/06/2022,1907775647,1946,HOTEL AT BOOKING.COM
Manchester City Council,Adult Social Care,"Consumable items eg Toilet rolls, soap etc",17/06/2022,1907775649,886,HOTEL AT BOOKING.COM
Manchester City Council,Adult Social Care,"Consumable items eg Toilet rolls, soap etc",17/06/2022,1907775651,5055,NOVUM MANAGEMENT GMBH
Manchester City Council,Adult Social Care,"Consumable items eg Toilet rolls, soap etc",17/06/2022,1907775652,2028,MILTON MANCHESTER HOTE
Manchester City Council,Adult Social Care,"Consumable items eg Toilet rolls, soap etc",17/06/2022,1907775653,1268,HOTEL AT BOOKING.COM
Manchester City Council,Adult Social Care,"Consumable items eg Toilet rolls, soap etc",17/06/2022,1907775656,4404,STAYCITY MANCHESTER LI
Manchester City Council,Adult Social Care,"Consumable items eg Toilet rolls, soap etc",17/06/2022,1907775664,550,Premier Inn P CARD ONLY
Manchester City Council,Adult Social Care,"Consumable items eg Toilet rolls, soap etc",17/06/2022,1907775670,501,HOTEL AT BOOKING.COM
Manchester City Council,Adult Social Care,"Consumable items eg Toilet rolls, soap etc",17/06/2022,1907775674,-858,HOTEL ON BOOKING.COM
Manchester City Council,Adult Social Care,"Consumable items eg Toilet rolls, soap etc",17/06/2022,1907775683,1540,PARK CITY SUITES HOTEL
Manchester City Council,Adult Social Care,"Consumable items eg Toilet rolls, soap etc",17/06/2022,1907775689,602,HOTEL AT BOOKING.COM
Manchester City Council,Adult Social Care,"Consumable items eg Toilet rolls, soap etc",17/06/2022,1907775690,601,HOTEL AT BOOKING.COM
Manchester City Council,Adult Social Care,"Consumable items eg Toilet rolls, soap etc",17/06/2022,1907775708,5960.22,TRAVELODGE P CARD ONLY
Manchester City Council,Adult Social Care,"Consumable items eg Toilet rolls, soap etc",17/06/2022,1907775711,563.4,HOTEL AT BOOKING.COM
Manchester City Council,Adult Social Care,"Consumable items eg Toilet rolls, soap etc",17/06/2022,1907775714,640,HOTEL AT BOOKING.COM
Manchester City Council,Adult Social Care,"Consumable items eg Toilet rolls, soap etc",17/06/2022,1907775729,522,Premier Inn P CARD ONLY
Manchester City Council,Adult Social Care,"Consumable items eg Toilet rolls, soap etc",17/06/2022,1907775731,642,NOVUM MANAGEMENT GMBH
Manchester City Council,Adult Social Care,"Consumable items eg Toilet rolls, soap etc",17/06/2022,1907775743,1576,HOTEL AT BOOKING.COM
Manchester City Council,Adult Social Care,"Consumable items eg Toilet rolls, soap etc",17/06/2022,1907775748,736.5,Premier Inn P CARD ONLY
Manchester City Council,Adult Social Care,"Consumable items eg Toilet rolls, soap etc",17/06/2022,1907775749,1022,HOTEL AT BOOKING.COM
Manchester City Council,Adult Social Care,"Consumable items eg Toilet rolls, soap etc",17/06/2022,1907775754,577,Premier Inn P CARD ONLY
Manchester City Council,Adult Social Care,"Consumable items eg Toilet rolls, soap etc",17/06/2022,1907775759,976,HOTEL AT BOOKING.COM
Manchester City Council,Adult Social Care,"Consumable items eg Toilet rolls, soap etc",17/06/2022,1907775764,553.5,Premier Inn P CARD ONLY
Manchester City Council,Adult Social Care,"Consumable items eg Toilet rolls, soap etc",17/06/2022,1907775770,565,Premier Inn P CARD ONLY
Manchester City Council,Adult Social Care,"Consumable items eg Toilet rolls, soap etc",17/06/2022,1907775778,554,Premier Inn P CARD ONLY
Manchester City Council,Adult Social Care,"Consumable items eg Toilet rolls, soap etc",17/06/2022,1907775783,1116,NOVUM MANAGEMENT GMBH
Manchester City Council,Adult Social Care,"Consumable items eg Toilet rolls, soap etc",17/06/2022,1907775784,511,HOTEL AT BOOKING.COM
Manchester City Council,Adult Social Care,"Consumable items eg Toilet rolls, soap etc",17/06/2022,1907775790,749,HOTEL AT BOOKING.COM
Manchester City Council,Adult Social Care,"Consumable items eg Toilet rolls, soap etc",17/06/2022,1907775794,3000,JOTS CONSULTANCY LTD
Manchester City Council,Adult Social Care,"Consumable items eg Toilet rolls, soap etc",17/06/2022,1907775795,3000,MILTON MANCHESTER HOTE
Manchester City Council,Adult Social Care,"Consumable items eg Toilet rolls, soap etc",17/06/2022,1907775796,621,HOTEL AT BOOKING.COM
Manchester City Council,Adult Social Care,"Consumable items eg Toilet rolls, soap etc",17/06/2022,1907775797,1421.6,STAYCITY
Manchester City Council,Adult Social Care,"Consumable items eg Toilet rolls, soap etc",17/06/2022,1907775799,3190,JOTS CONSULTANCY LTD
Manchester City Council,Adult Social Care,"Consumable items eg Toilet rolls, soap etc",17/06/2022,1907775801,1116,NOVUM MANAGEMENT GMBH
Manchester City Council,Adult Social Care,"Consumable items eg Toilet rolls, soap etc",17/06/2022,1907775804,3299,HOTEL AT BOOKING.COM
Manchester City Council,Adult Social Care,"Consumable items eg Toilet rolls, soap etc",17/06/2022,1907775805,3708,MILTON MANCHESTER HOTE
Manchester City Council,Adult Social Care,"Consumable items eg Toilet rolls, soap etc",17/06/2022,1907775812,579.5,Premier Inn P CARD ONLY
Manchester City Council,Adult Social Care,"Consumable items eg Toilet rolls, soap etc",17/06/2022,1907775814,3190,JOTS CONSULTANCY LTD
Manchester City Council,Adult Social Care,"Consumable items eg Toilet rolls, soap etc",17/06/2022,1907775816,854.66,TRAVELODGE P CARD ONLY
Manchester City Council,Adult Social Care,"Consumable items eg Toilet rolls, soap etc",17/06/2022,1907775823,1442.21,HIE MANCHESTER EAST
Manchester City Council,Adult Social Care,"Consumable items eg Toilet rolls, soap etc",17/06/2022,1907775829,4078.76,IBIS STYLES MANCHESTER
Manchester City Council,Adult Social Care,"Consumable items eg Toilet rolls, soap etc",17/06/2022,1907775832,505,NOVUM MANAGEMENT GMBH
Manchester City Council,Adult Social Care,"Consumable items eg Toilet rolls, soap etc",17/06/2022,1907775835,679,HOTEL AT BOOKING.COM
Manchester City Council,Adult Social Care,"Consumable items eg Toilet rolls, soap etc",17/06/2022,1907775843,530,HOLIDAY INN P CARD ONLY
Manchester City Council,Adult Social Care,"Consumable items eg Toilet rolls, soap etc",17/06/2022,1907775850,1651,UKLOM THE NIU LOOM
Manchester City Council,Adult Social Care,"Consumable items eg Toilet rolls, soap etc",17/06/2022,1907775851,764.95,Lockhart Catering Equipment Ltd
Manchester City Council,Adult Social Care,"Consumable items eg Toilet rolls, soap etc",17/06/2022,1907775855,539,GARDENS HOTEL
Manchester City Council,Adult Social Care,"Consumable items eg Toilet rolls, soap etc",17/06/2022,1907775857,501,Premier Inn P CARD ONLY
Manchester City Council,Adult Social Care,"Consumable items eg Toilet rolls, soap etc",17/06/2022,1907775860,531,Premier Inn P CARD ONLY
Manchester City Council,Adult Social Care,"Consumable items eg Toilet rolls, soap etc",17/06/2022,1907775865,543,HOTEL AT BOOKING.COM
Manchester City Council,Adult Social Care,"Consumable items eg Toilet rolls, soap etc",17/06/2022,1907775867,528.5,Premier Inn P CARD ONLY
Manchester City Council,Adult Social Care,"Consumable items eg Toilet rolls, soap etc",17/06/2022,1907775869,4464,UKLOM THE NIU LOOM
Manchester City Council,Adult Social Care,"Consumable items eg Toilet rolls, soap etc",17/06/2022,1907775877,676,HOTEL AT BOOKING.COM
Manchester City Council,Adult Social Care,"Consumable items eg Toilet rolls, soap etc",17/06/2022,1907775884,962.32,HOTEL AT BOOKING.COM
Manchester City Council,Adult Social Care,"Consumable items eg Toilet rolls, soap etc",17/06/2022,1907775886,1966,UKLOM THE NIU LOOM
Manchester City Council,Adult Social Care,"Consumable items eg Toilet rolls, soap etc",17/06/2022,1907775895,620.5,Premier Inn P CARD ONLY
Manchester City Council,Adult Social Care,"Consumable items eg Toilet rolls, soap etc",17/06/2022,1907775899,521,HOTEL AT BOOKING.COM
Manchester City Council,Adult Social Care,"Consumable items eg Toilet rolls, soap etc",17/06/2022,1907775900,712.5,VICTORIA PARK  RE
Manchester City Council,Adult Social Care,"Consumable items eg Toilet rolls, soap etc",17/06/2022,1907775902,543,HOTEL AT BOOKING.COM
Manchester City Council,Adult Social Care,"Consumable items eg Toilet rolls, soap etc",17/06/2022,1907775907,531,Premier Inn P CARD ONLY
Manchester City Council,Adult Social Care,"Consumable items eg Toilet rolls, soap etc",17/06/2022,1907775918,676,HOTEL AT BOOKING.COM
Manchester City Council,Adult Social Care,"Consumable items eg Toilet rolls, soap etc",17/06/2022,1907775919,962.32,HOTEL AT BOOKING.COM
Manchester City Council,Adult Social Care,"Consumable items eg Toilet rolls, soap etc",17/06/2022,1907775923,643,HOLIDAY INN P CARD ONLY
Manchester City Council,Adult Social Care,"Consumable items eg Toilet rolls, soap etc",17/06/2022,1907775931,632.04,HOTEL AT BOOKING.COM
Manchester City Council,Adult Social Care,"Consumable items eg Toilet rolls, soap etc",17/06/2022,1907775935,500.5,Premier Inn P CARD ONLY
Manchester City Council,Adult Social Care,"Consumable items eg Toilet rolls, soap etc",17/06/2022,1907775941,987,HOTEL AT BOOKING.COM
Manchester City Council,Adult Social Care,"Consumable items eg Toilet rolls, soap etc",17/06/2022,1907775946,530.5,Premier Inn P CARD ONLY
Manchester City Council,Adult Social Care,"Consumable items eg Toilet rolls, soap etc",17/06/2022,1907775948,501,Premier Inn P CARD ONLY
Manchester City Council,Adult Social Care,"Consumable items eg Toilet rolls, soap etc",17/06/2022,1907775951,3812,STAYCITY MANCHESTER LI
Manchester City Council,Adult Social Care,"Consumable items eg Toilet rolls, soap etc",17/06/2022,1907775966,1612,HOTEL AT BOOKING.COM
Manchester City Council,Adult Social Care,"Consumable items eg Toilet rolls, soap etc",17/06/2022,1907775976,515,Lockhart Catering Equipment Ltd
Manchester City Council,Adult Social Care,"Consumable items eg Toilet rolls, soap etc",17/06/2022,1907775993,606.66,ALLPAY *MOSSCARE ST VINCE
Manchester City Council,Adult Social Care,"Consumable items eg Toilet rolls, soap etc",17/06/2022,1907776021,576,Premier Inn P CARD ONLY
Manchester City Council,Adult Social Care,"Consumable items eg Toilet rolls, soap etc",17/06/2022,1907776022,631,Premier Inn P CARD ONLY
Manchester City Council,Adult Social Care,"Consumable items eg Toilet rolls, soap etc",17/06/2022,1907776033,575,Premier Inn P CARD ONLY
Manchester City Council,Adult Social Care,"Consumable items eg Toilet rolls, soap etc",17/06/2022,1907776038,576,Premier Inn P CARD ONLY
Manchester City Council,Adult Social Care,"Consumable items eg Toilet rolls, soap etc",17/06/2022,1907776039,539.5,Premier Inn P CARD ONLY
Manchester City Council,Adult Social Care,"Consumable items eg Toilet rolls, soap etc",17/06/2022,1907776041,576,Premier Inn P CARD ONLY
Manchester City Council,Adult Social Care,"Consumable items eg Toilet rolls, soap etc",17/06/2022,1907776044,782.62,Lockhart Catering Equipment Ltd
Manchester City Council,Adult Social Care,"Consumable items eg Toilet rolls, soap etc",17/06/2022,1907776051,515,Premier Inn P CARD ONLY
Manchester City Council,Adult Social Care,"Consumable items eg Toilet rolls, soap etc",17/06/2022,1907776052,1178,NOVUM MANAGEMENT GMBH
Manchester City Council,Adult Social Care,"Consumable items eg Toilet rolls, soap etc",17/06/2022,1907776055,863,Lockhart Catering Equipment Ltd
Manchester City Council,Adult Social Care,"Consumable items eg Toilet rolls, soap etc",17/06/2022,1907776057,1379,NOVUM MANAGEMENT GMBH
Manchester City Council,Adult Social Care,"Consumable items eg Toilet rolls, soap etc",17/06/2022,1907776058,1050,NOVUM MANAGEMENT GMBH
Manchester City Council,Adult Social Care,"Consumable items eg Toilet rolls, soap etc",17/06/2022,1907776061,1582,HOTEL AT BOOKING.COM
Manchester City Council,Adult Social Care,"Consumable items eg Toilet rolls, soap etc",17/06/2022,1907776065,591.5,Premier Inn P CARD ONLY
